{"text_format":"1","workbook":"xlsx","n_sheets":4,"sheets":["Leas","Calendar","data","FY20_sped-prices_combined file"],"not_rendered":{"charts":0,"images":0,"macros":1,"external_links":0,"defined_names":7,"comments":3,"pivot_tables":0},"unopened":[],"bounds":{"document_bytes":16777216,"sheet_cells":100000,"rows_first":2000,"rows_last":500,"rows_between":2000,"halvings":0,"cell_chars":16384,"cell_head_chars":4096},"cells_cut":0,"cells_raw":0,"read":"whole","date_system":"1900"}

{"sheet":"Leas","index":0,"n_rows":0,"n_cols":0,"rows_kept":0,"cut":false,"hidden":true,"merged":[]}

{"sheet":"Calendar","index":1,"n_rows":380,"n_cols":35,"rows_kept":380,"cut":false,"hidden":false,"merged":[[15,19,15,25],[33,19,33,25],[15,10,15,16],[24,1,24,7],[15,1,15,7],[33,1,33,7],[24,19,24,25],[24,10,24,16],[55,11,55,16],[56,11,56,16],[51,22,51,23],[42,19,42,25],[33,10,33,16],[62,1,62,7],[42,1,42,7],[42,10,42,16],[55,21,55,25],[56,21,56,25],[54,11,54,16],[61,1,61,26],[57,21,57,25],[58,21,58,25],[57,11,57,16],[58,11,58,16],[2,19,2,25],[5,16,5,17],[6,16,6,17],[7,16,7,17],[12,2,12,26],[8,7,8,10],[10,19,10,25]]}
[null,null,null,null,null,null,"FY 2025 Private School Calendar",null,null,null,null,null,null,null,null,null,null,null,null,null,null,null,null,null,null,null,{"$f":"IF(Q8=\"Summer\",\"\",IF(AI13<>W52,\"Date Enter Error\",\"\"))","v":""}]
[null,"SAVE TO YOUR HARD DRIVE FIRST, DO NOT WORK ON THE WEB! "]
[1,"Program Information: (Select your program code from the dropdown)",null,null,null,null,null,null,null,null,null,null,null,null,null,null,null,null,null,"June 2024"]
[null,null,null,null,null,null,null,null,1,null,null,null,null,null,null,null,null,null,null,"S","M","T","W","T","F","S"]
[null,null,null,null,null,null,null,null,null,null,null,null,null,null,null,null,null,null,null,null,null,null,null,null,null,1,"June 2024"]
[null,"Program Code:",null,null,null,null,null,null,null,null,null,null,"Annual Rate: ",null,null,null,{"$f":"IF($I$6=\"\",\"\",VLOOKUP($I$6,rates,5))","v":""},null,null,2,3,4,5,6,7,8,"Total Days"]
[null,"Private School Name:",null,null,null,null,null,{"$f":"IF($I$6=\"\",\"\",VLOOKUP($I$6,rates,3))","v":""},null,null,null,null,"Daily Rate:",null,null,null,{"$f":"IF($I$6=\"\",\"\",VLOOKUP($I$6,rates,6))","v":""},null,null,9,10,11,12,13,14,15,"IN Session"]
[null,"Program Name:",null,null,null,null,null,{"$f":"IF($I$6=\"\",\"\",VLOOKUP($I$6,rates,4))","v":""},null,null,null,null,"Program Type:",null,null,null,{"$f":"IF($I$6=\"\",\"\",VLOOKUP($I$6,rates,2))","v":""},null,null,16,17,18,19,20,21,22,{"$f":"IF(AND(I6<>\"\",Q8=\"Summer\"),COUNTA(T5:Z10),0)","v":0}]
[null,"OSD Approved Total Days:",null,null,null,null,null,{"$f":"IF($I$6=\"\",\"\",IF(VLOOKUP($I$6,rates,7,FALSE)=\"\",\"No Calendar\",VLOOKUP($I$6,rates,7,FALSE)))","v":""},null,null,null,null,null,null,null,null,null,null,null,23,24,25,26,27,28,29]
[null,null,null,null,null,null,null,null,null," ",null,null,null,null,null,null,null,null,null,30]
[2,"Calendar Information:",null,null,null,null,null,null,null,null,null,null,null,null,null,null,null,null,null,"Note: For summer programs operating in June 2024 - Delete the dates school is NOT open."]
[null,"A. ","If program operates 365 days, complete Other Information below and proceed to saving the file instructions.",null,null,null,null,null,null,null,null,null,null,null,null,null,null,null,null,null,null,null,null,null,null,null,null,null,null,null,null,null,null,null,{"$f":"IF(W52=AI13,\"\",\"Not Match\")","v":""}]
[null,"B. ","Programs operating less than 365 days, delete dates school is not in session. Please use DELETE button rather than space bar to remove dates. Complete Other Information and proceed to saving the file instructions below.  (ONLY for those programs operating summer programs starting in June 2024 see \"Note\" above)",null,null,null,null,null,null,null,null,null,null,null,null,null,null,null,null,null,null,null,null,null,null,null,null,null,null,null,null,null,null,"Total Days:",{"$f":"SUM(AI16:AJ381)","v":365}]
[]
[null,null,null,null,null,null,null,null,null,null,null,null,null,null,null,null,null,null,null,null,null,null,null,null,null,null,null,null,null,null,null,"Col","Row",{"$f":"I6","v":0}]
[null,"July 2024",null,null,null,null,null,null,null,null,"August 2024",null,null,null,null,null,null,null,null,"September 2024",null,null,null,null,null,null,null,null,null,null,"2024-07-01","C",18,{"$f":"IF(INDIRECT(AF16&AG16)=\"\",\"\",AE16)","v":"2024-07-01"},{"$f":"IF(AH16=\"\",0,1)","v":1}]
[null,"S","M","T","W","T","F","S",null,null,"S","M","T","W","T","F","S",null,null,"S","M","T","W","T","F","S",null,null,null,null,"2024-07-02","D",18,{"$f":"IF(INDIRECT(AF17&AG17)=\"\",\"\",AE17)","v":"2024-07-02"},1]
[null,null,1,2,3,4,5,6,null,null,null,null,null,null,1,2,3,null,null,1,2,3,4,5,6,7,null,null,null,null,"2024-07-03","E",18,{"$f":"IF(INDIRECT(AF18&AG18)=\"\",\"\",AE18)","v":"2024-07-03"},1]
[null,7,8,9,10,11,12,13,"July 2024",null,4,5,6,7,8,9,10,"Aug 2024",null,8,9,10,11,12,13,14,"Sept 2024",null,null,null,"2024-07-04","F",18,"2024-07-04",1]
[null,14,15,16,17,18,19,20,"Total Days",null,11,12,13,14,15,16,17,"Total Days",null,15,16,17,18,19,20,21,"Total Days",null,null,null,"2024-07-05","G",18,"2024-07-05",1]
[null,21,22,23,24,25,26,27,"in Session",null,18,19,20,21,22,23,24,"in Session",null,22,23,24,25,26,27,28,"in Session",null,null,null,"2024-07-06","H",18,"2024-07-06",1]
[null,28,29,30,31,null,null,null,{"$f":"COUNT(B18:H23)","v":31},null,25,26,27,28,29,30,31,{"$f":"COUNT(K18:Q23)","v":31},null,29,30,null,null,null,null,null,{"$f":"COUNT(T18:Z23)","v":30},null,null,null,"2024-07-07","B",19,"2024-07-07",1]
[null,null,null,null,null,null,null,null,null,null,null,null,null,null,null,null,null,null,null,null,null,null,null,null,null,null,null,null,null,null,"2024-07-08","C",19,"2024-07-08",1]
[null,null,null,null,null,null,null,null,null,null,null,null,null,null,null,null,null,null,null,null,null,null,null,null,null,null,null,null,null,null,"2024-07-09","D",19,"2024-07-09",1]
[null,"October 2024",null,null,null,null,null,null,null,null,"November 2024",null,null,null,null,null,null,null,null,"December 2024",null,null,null,null,null,null,null,null,null,null,"2024-07-10","E",19,"2024-07-10",1]
[null,"S","M","T","W","T","F","S",null,null,"S","M","T","W","T","F","S",null,null,"S","M","T","W","T","F","S",null,null,null,null,"2024-07-11","F",19,"2024-07-11",1]
[null,null,null,1,2,3,4,5,null,null,null,null,null,null,null,1,2,null,null,1,2,3,4,5,6,7,null,null,null,null,"2024-07-12","G",19,"2024-07-12",1]
[null,6,7,8,9,10,11,12,"Oct 2024",null,3,4,5,6,7,8,9,"Nov 2024",null,8,9,10,11,12,13,14,"Dec 2024",null,null,null,"2024-07-13","H",19,"2024-07-13",1]
[null,13,14,15,16,17,18,19,"Total Days",null,10,11,12,13,14,15,16,"Total Days",null,15,16,17,18,19,20,21,"Total Days",null,null,null,"2024-07-14","B",20,"2024-07-14",1]
[null,20,21,22,23,24,25,26,"in Session",null,17,18,19,20,21,22,23,"in Session",null,22,23,24,25,26,27,28,"in Session",null,null,null,"2024-07-15","C",20,"2024-07-15",1]
[null,27,28,29,30,31,null,null,{"$f":"COUNT(B27:H32)","v":31},null,24,25,26,27,28,29,30,{"$f":"COUNT(K27:Q32)","v":30},null,29,30,31,null,null,null,null,{"$f":"COUNT(T27:Z32)","v":31},null,null,null,"2024-07-16","D",20,"2024-07-16",1]
[null,null,null,null,null,null,null,null,null,null,null,null,null,null,null,null,null,null,null,null,null,null,null,null,null,null,null,null,null,null,"2024-07-17","E",20,"2024-07-17",1]
[null,null,null,null,null,null,null,null,null,null,null,null,null,null,null,null,null,null,null,null,null,null,null,null,null,null,null,null,null,null,"2024-07-18","F",20,"2024-07-18",1]
[null,"January 2025",null,null,null,null,null,null,null,null,"February 2025",null,null,null,null,null,null,null,null,"March 2025",null,null,null,null,null,null,null,null,null,null,"2024-07-19","G",20,"2024-07-19",1]
[null,"S","M","T","W","T","F","S",null,null,"S","M","T","W","T","F","S",null,null,"S","M","T","W","T","F","S",null,null,null,null,"2024-07-20","H",20,"2024-07-20",1]
[null,null,null,null,1,2,3,4,null,null,null,null,null,null,null,null,1,null,null,null,null,null,null,null,null,1,null,null,null,null,"2024-07-21","B",21,"2024-07-21",1]
[null,5,6,7,8,9,10,11,"Jan 2025",null,2,3,4,5,6,7,8,"Feb 2025",null,2,3,4,5,6,7,8,"Mar 2025",null,null,null,"2024-07-22","C",21,"2024-07-22",1]
[null,12,13,14,15,16,17,18,"Total Days",null,9,10,11,12,13,14,15,"Total Days",null,9,10,11,12,13,14,15,"Total Days",null,null,null,"2024-07-23","D",21,"2024-07-23",1]
[null,19,20,21,22,23,24,25,"in Session",null,16,17,18,19,20,21,22,"in Session",null,16,17,18,19,20,21,22,"in Session",null,null,null,"2024-07-24","E",21,"2024-07-24",1]
[null,26,27,28,29,30,31,null,{"$f":"COUNT(B36:H41)","v":31},null,23,24,25,26,27,28,null,{"$f":"COUNT(K36:Q41)","v":28},null,23,24,25,26,27,28,29,{"$f":"COUNT(T36:Z41)","v":31},null,null,null,"2024-07-25","F",21,"2024-07-25",1]
[null,null,null,null,null,null,null,null,null,null,null,null,null,null,null,null,null,null,null,30,31,null,null,null,null,null,null,null,null,null,"2024-07-26","G",21,"2024-07-26",1]
[null,null,null,null,null,null,null,null,null,null,null,null,null,null,null,null,null,null,null,null,null,null,null,null,null,null,null,null,null,null,"2024-07-27","H",21,"2024-07-27",1]
[null,"April 2025",null,null,null,null,null,null,null,null,"May 2025",null,null,null,null,null,null,null,null,"June 2025",null,null,null,null,null,null,null,null,null,null,"2024-07-28","B",22,"2024-07-28",1]
[null,"S","M","T","W","T","F","S",null,null,"S","M","T","W","T","F","S",null,null,"S","M","T","W","T","F","S",null,null,null,null,"2024-07-29","C",22,"2024-07-29",1]
[null,null,null,1,2,3,4,5,null,null,null,null,null,null,1,2,3,null,null,1,2,3,4,5,6,7,null,null,null,null,"2024-07-30","D",22,"2024-07-30",1]
[null,6,7,8,9,10,11,12,"April 2025",null,4,5,6,7,8,9,10,"May 2025",null,8,9,10,11,12,13,14,"June 2025",null,null,null,"2024-07-31","E",22,"2024-07-31",1]
[null,13,14,15,16,17,18,19,"Total Days",null,11,12,13,14,15,16,17,"Total Days",null,15,16,17,18,19,20,21,"Total Days",null,null,null,"2024-08-01","O",18,{"$f":"IF(INDIRECT(AF47&AG47)=\"\",\"\",AE47)","v":"2024-08-01"},1]
[null,20,21,22,23,24,25,26,"in Session",null,18,19,20,21,22,23,24,"in Session",null,22,23,24,25,26,27,28,"In Session",null,null,null,"2024-08-02","P",18,"2024-08-02",1]
[null,27,28,29,30,null,null,null,{"$f":"COUNT(B45:H50)","v":30},null,25,26,27,28,29,30,31,{"$f":"COUNT(K45:Q50)","v":31},null,29,30,null,null,null,null,null,{"$f":"COUNT(T45:Z50)","v":30},null,null,null,"2024-08-03","Q",18,"2024-08-03",1]
[null,null,null,null,null,null,null,null,null,null,null,null,null,null,null,null,null,null,null,null,null,null,null,null,null,null,null,null,null,null,"2024-08-04","K",19,"2024-08-04",1]
[null,null,null,null,null,null,null,null,null,null,null,null,null,null,null,null,null,null,null,null,null,null,null,null,null,null,null,"  ",null,null,"2024-08-05","L",19,"2024-08-05",1]
[null,{"$f":"AA8+I22+R22+AA22+I31+R31+AA31+I40+R40+AA40+I49+R49+AA49","v":365},null,null,null,null,null,null,"Grand Total of Days is in Session for the Entire Fiscal Year: ",null,null,null,null,null,null,null,null,null,null,null,null,null,{"$f":"B52","v":365},null,null,null,null,null,null,null,"2024-08-06","M",19,"2024-08-06",1]
[null,null,null,null,null,null,null,null,{"$f":"IF(B52>H9,\"Total open days > than appproved open days\",IF(H9=\"No Calendar\",\"No Calendar, please submit Calendar first.\",IF(H9=\"\",\"\",\"\")))","v":""},null,null,null,null,null,null,null,null,null,null,null,null,null,null,null,null,null,null,null,null,null,"2024-08-07","N",19,"2024-08-07",1]
[3,"Other Information",null,null,null,null,null,null,null,null,null,null,null,null,null,null,null,null,null,null,null,null,null,null,null,null,null,null,null,null,"2024-08-08","O",19,"2024-08-08",1]
[null,null,null,null,null,null,null,null,null,null,null,null,null,null,null,null,null,null,null,null,null,null,null,null,null,null,null,null,null,null,"2024-08-09","P",19,"2024-08-09",1]
[null,null,"Printed Name of Person Completing Form:",null,null,null,null,null,null,null,null,null,null,null,null,null,null,null,"Date:",null,null,null,null,null,null,null,null,null,null,null,"2024-08-10","Q",19,"2024-08-10",1]
[null,null,"Title of Person Completing Form:",null,null,null,null,null,null,null,null,null,null,null,null,null,null,null,"Phone#:",null,null,null,null,null,null,null,null,null,null,null,"2024-08-11","K",20,"2024-08-11",1]
[null,null,"Contact person if not same as person above:",null,null,null,null,null,null,null,null,null,null,null,null,null,null,null,"Fax #:",null,null,null,null,null,null,null,null,null,null,null,"2024-08-12","L",20,"2024-08-12",1]
[null,null,"E-Mail:",null,null,null,null,null,null,null,null,null,null,null,null,null,null,null,null,null,null,null,null,null,null,null,null,null,null,null,"2024-08-13","M",20,"2024-08-13",1]
[null,null,null,null,null,null,null,null,null,null,null,null,null,null,null,null,null,null,null,null,null,null,null,null,null,null,null,null,null,null,"2024-08-14","N",20,"2024-08-14",1]
[4,"Saving the file",null,null,null,null,null,null,null,null,null,null,null,null,null,null,null,null,null,null,null,null,null,null,null,null,null,null,null,null,"2024-08-15","O",20,"2024-08-15",1]
[null,"Once you have entered the dates that are open/closed, click the \"Save Calendar\" button located in the upper right hand corner of this sheet. The file will be automatically saved as \"25CBxxxxx.xls\" (xxxxx represents the program code). Please email a copy of this file to circuitbreaker@mass.gov.",null,null,null,null,null,null,null,null,null,null,null,null,null,null,null,null,null,null,null,null,null,null,null,null,null,null,null,null,"2024-08-16","P",20,"2024-08-16",1]
[null," ",null,null,null,null,null,null,null,null,null,null,null,null,null,null,null,null,null,null,null,null,null,null,null,null,null,null,null,null,"2024-08-17","Q",20,"2024-08-17",1]
[null,null,null,null,null,null,null,null,null,null,null,null,null,null,null,null,null,null,null,null,null,null,null,null,null,null,null,null,null,null,"2024-08-18","K",21,"2024-08-18",1]
[null,null,null,null,null,null,null,null,null,null,null,null,null,null,null,null,null,null,null,null,null,null,null,null,null,null,null,null,null,null,"2024-08-19","L",21,"2024-08-19",1]
[null,null,null,null,null,null,null,null,null,null,null,null,null,null,null,null,null,null,null,null,null,null,null,null,null,null,null,null,null,null,"2024-08-20","M",21,"2024-08-20",1]
[null,null,null,null,null,null,null,null,null,null,null,null,null,null,null,null,null,null,null,null,null,null,null,null,null,null,null,null,null,null,"2024-08-21","N",21,"2024-08-21",1]
[null,null,null,null,null,null,null,null,null,null,null,null,null,null,null,null,null,null,null,null,null,null,null,null,null,null,null,null,null,null,"2024-08-22","O",21,"2024-08-22",1]
[null,null,null,null,null,null,null,null,null,null,null,null,null,null,null,null,null,null,null,null,null,null,null,null,null,null,null,null,null,null,"2024-08-23","P",21,"2024-08-23",1]
[null,null,null,null,null,null,null,null,null,null,null,null,null,null,null,null,null,null,null,null,null,null,null,null,null,null,null,null,null,null,"2024-08-24","Q",21,"2024-08-24",1]
[null,null,null,null,null,null,null,null,null,null,null,null,null,null,null,null,null,null,null,null,null,null,null,null,null,null,null,null,null,null,"2024-08-25","K",22,"2024-08-25",1]
[null,null,null,null,null,null,null,null,null,null,null,null,null,null,null,null,null,null,null,null,null,null,null,null,null,null,null,null,null,null,"2024-08-26","L",22,"2024-08-26",1]
[null,null,null,null,null,null,null,null,null,null,null,null,null,null,null,null,null,null,null,null,null,null,null,null,null,null,null,null,null,null,"2024-08-27","M",22,"2024-08-27",1]
[null,null,null,null,null,null,null,null,null,null,null,null,null,null,null,null,null,null,null,null,null,null,null,null,null,null,null,null,null,null,"2024-08-28","N",22,"2024-08-28",1]
[null,null,null,null,null,null,null,null,null,null,null,null,null,null,null,null,null,null,null,null,null,null,null,null,null,null,null,null,null,null,"2024-08-29","O",22,"2024-08-29",1]
[null,null,null,null,null,null,null,null,null,null,null,null,null,null,null,null,null,null,null,null,null,null,null,null,null,null,null,null,null,null,"2024-08-30","P",22,"2024-08-30",1]
[null,null,null,null,null,null,null,null,null,null,null,null,null,null,null,null,null,null,null,null,null,null,null,null,null,null,null,null,null,null,"2024-08-31","Q",22,"2024-08-31",1]
[null,null,null,null,null,null,null,null,null,null,null,null,null,null,null,null,null,null,null,null,null,null,null,null,null,null,null,null,null,null,"2024-09-01","T",18,"2024-09-01",1]
[null,null,null,null,null,null,null,null,null,null,null,null,null,null,null,null,null,null,null,null,null,null,null,null,null,null,null,null,null,null,"2024-09-02","U",18,"2024-09-02",1]
[null,null,null,null,null,null,null,null,null,null,null,null,null,null,null,null,null,null,null,null,null,null,null,null,null,null,null,null,null,null,"2024-09-03","V",18,"2024-09-03",{"$f":"IF(AH80=\"\",0,1)","v":1}]
[null,null,null,null,null,null,null,null,null,null,null,null,null,null,null,null,null,null,null,null,null,null,null,null,null,null,null,null,null,null,"2024-09-04","W",18,"2024-09-04",1]
[null,null,null,null,null,null,null,null,null,null,null,null,null,null,null,null,null,null,null,null,null,null,null,null,null,null,null,null,null,null,"2024-09-05","X",18,"2024-09-05",1]
[null,null,null,null,null,null,null,null,null,null,null,null,null,null,null,null,null,null,null,null,null,null,null,null,null,null,null,null,null,null,"2024-09-06","Y",18,"2024-09-06",1]
[null,null,null,null,null,null,null,null,null,null,null,null,null,null,null,null,null,null,null,null,null,null,null,null,null,null,null,null,null,null,"2024-09-07","Z",18,"2024-09-07",1]
[null,null,null,null,null,null,null,null,null,null,null,null,null,null,null,null,null,null,null,null,null,null,null,null,null,null,null,null,null,null,"2024-09-08","T",19,"2024-09-08",1]
[null,null,null,null,null,null,null,null,null,null,null,null,null,null,null,null,null,null,null,null,null,null,null,null,null,null,null,null,null,null,"2024-09-09","U",19,"2024-09-09",1]
[null,null,null,null,null,null,null,null,null,null,null,null,null,null,null,null,null,null,null,null,null,null,null,null,null,null,null,null,null,null,"2024-09-10","V",19,"2024-09-10",1]
[null,null,null,null,null,null,null,null,null,null,null,null,null,null,null,null,null,null,null,null,null,null,null,null,null,null,null,null,null,null,"2024-09-11","W",19,"2024-09-11",1]
[null,null,null,null,null,null,null,null,null,null,null,null,null,null,null,null,null,null,null,null,null,null,null,null,null,null,null,null,null,null,"2024-09-12","X",19,"2024-09-12",1]
[null,null,null,null,null,null,null,null,null,null,null,null,null,null,null,null,null,null,null,null,null,null,null,null,null,null,null,null,null,null,"2024-09-13","Y",19,"2024-09-13",1]
[null,null,null,null,null,null,null,null,null,null,null,null,null,null,null,null,null,null,null,null,null,null,null,null,null,null,null,null,null,null,"2024-09-14","Z",19,"2024-09-14",1]
[null,null,null,null,null,null,null,null,null,null,null,null,null,null,null,null,null,null,null,null,null,null,null,null,null,null,null,null,null,null,"2024-09-15","T",20,"2024-09-15",1]
[null,null,null,null,null,null,null,null,null,null,null,null,null,null,null,null,null,null,null,null,null,null,null,null,null,null,null,null,null,null,"2024-09-16","U",20,"2024-09-16",1]
[null,null,null,null,null,null,null,null,null,null,null,null,null,null,null,null,null,null,null,null,null,null,null,null,null,null,null,null,null,null,"2024-09-17","V",20,"2024-09-17",1]
[null,null,null,null,null,null,null,null,null,null,null,null,null,null,null,null,null,null,null,null,null,null,null,null,null,null,null,null,null,null,"2024-09-18","W",20,"2024-09-18",1]
[null,null,null,null,null,null,null,null,null,null,null,null,null,null,null,null,null,null,null,null,null,null,null,null,null,null,null,null,null,null,"2024-09-19","X",20,"2024-09-19",1]
[null,null,null,null,null,null,null,null,null,null,null,null,null,null,null,null,null,null,null,null,null,null,null,null,null,null,null,null,null,null,"2024-09-20","Y",20,"2024-09-20",1]
[null,null,null,null,null,null,null,null,null,null,null,null,null,null,null,null,null,null,null,null,null,null,null,null,null,null,null,null,null,null,"2024-09-21","Z",20,"2024-09-21",1]
[null,null,null,null,null,null,null,null,null,null,null,null,null,null,null,null,null,null,null,null,null,null,null,null,null,null,null,null,null,null,"2024-09-22","T",21,"2024-09-22",1]
[null,null,null,null,null,null,null,null,null,null,null,null,null,null,null,null,null,null,null,null,null,null,null,null,null,null,null,null,null,null,"2024-09-23","U",21,"2024-09-23",1]
[null,null,null,null,null,null,null,null,null,null,null,null,null,null,null,null,null,null,null,null,null,null,null,null,null,null,null,null,null,null,"2024-09-24","V",21,"2024-09-24",1]
[null,null,null,null,null,null,null,null,null,null,null,null,null,null,null,null,null,null,null,null,null,null,null,null,null,null,null,null,null,null,"2024-09-25","W",21,"2024-09-25",1]
[null,null,null,null,null,null,null,null,null,null,null,null,null,null,null,null,null,null,null,null,null,null,null,null,null,null,null,null,null,null,"2024-09-26","X",21,"2024-09-26",1]
[null,null,null,null,null,null,null,null,null,null,null,null,null,null,null,null,null,null,null,null,null,null,null,null,null,null,null,null,null,null,"2024-09-27","Y",21,"2024-09-27",1]
[null,null,null,null,null,null,null,null,null,null,null,null,null,null,null,null,null,null,null,null,null,null,null,null,null,null,null,null,null,null,"2024-09-28","Z",21,"2024-09-28",1]
[null,null,null,null,null,null,null,null,null,null,null,null,null,null,null,null,null,null,null,null,null,null,null,null,null,null,null,null,null,null,"2024-09-29","T",22,"2024-09-29",1]
[null,null,null,null,null,null,null,null,null,null,null,null,null,null,null,null,null,null,null,null,null,null,null,null,null,null,null,null,null,null,"2024-09-30","U",22,"2024-09-30",1]
[null,null,null,null,null,null,null,null,null,null,null,null,null,null,null,null,null,null,null,null,null,null,null,null,null,null,null,null,null,null,"2024-10-01","D",27,"2024-10-01",1]
[null,null,null,null,null,null,null,null,null,null,null,null,null,null,null,null,null,null,null,null,null,null,null,null,null,null,null,null,null,null,"2024-10-02","E",27,"2024-10-02",1]
[null,null,null,null,null,null,null,null,null,null,null,null,null,null,null,null,null,null,null,null,null,null,null,null,null,null,null,null,null,null,"2024-10-03","F",27,"2024-10-03",1]
[null,null,null,null,null,null,null,null,null,null,null,null,null,null,null,null,null,null,null,null,null,null,null,null,null,null,null,null,null,null,"2024-10-04","G",27,{"$f":"IF(INDIRECT(AF111&AG111)=\"\",\"\",AE111)","v":"2024-10-04"},1]
[null,null,null,null,null,null,null,null,null,null,null,null,null,null,null,null,null,null,null,null,null,null,null,null,null,null,null,null,null,null,"2024-10-05","H",27,"2024-10-05",1]
[null,null,null,null,null,null,null,null,null,null,null,null,null,null,null,null,null,null,null,null,null,null,null,null,null,null,null,null,null,null,"2024-10-06","B",28,"2024-10-06",1]
[null,null,null,null,null,null,null,null,null,null,null,null,null,null,null,null,null,null,null,null,null,null,null,null,null,null,null,null,null,null,"2024-10-07","C",28,"2024-10-07",1]
[null,null,null,null,null,null,null,null,null,null,null,null,null,null,null,null,null,null,null,null,null,null,null,null,null,null,null,null,null,null,"2024-10-08","D",28,"2024-10-08",1]
[null,null,null,null,null,null,null,null,null,null,null,null,null,null,null,null,null,null,null,null,null,null,null,null,null,null,null,null,null,null,"2024-10-09","E",28,"2024-10-09",1]
[null,null,null,null,null,null,null,null,null,null,null,null,null,null,null,null,null,null,null,null,null,null,null,null,null,null,null,null,null,null,"2024-10-10","F",28,"2024-10-10",1]
[null,null,null,null,null,null,null,null,null,null,null,null,null,null,null,null,null,null,null,null,null,null,null,null,null,null,null,null,null,null,"2024-10-11","G",28,"2024-10-11",1]
[null,null,null,null,null,null,null,null,null,null,null,null,null,null,null,null,null,null,null,null,null,null,null,null,null,null,null,null,null,null,"2024-10-12","H",28,"2024-10-12",1]
[null,null,null,null,null,null,null,null,null,null,null,null,null,null,null,null,null,null,null,null,null,null,null,null,null,null,null,null,null,null,"2024-10-13","B",29,"2024-10-13",1]
[null,null,null,null,null,null,null,null,null,null,null,null,null,null,null,null,null,null,null,null,null,null,null,null,null,null,null,null,null,null,"2024-10-14","C",29,"2024-10-14",1]
[null,null,null,null,null,null,null,null,null,null,null,null,null,null,null,null,null,null,null,null,null,null,null,null,null,null,null,null,null,null,"2024-10-15","D",29,"2024-10-15",1]
[null,null,null,null,null,null,null,null,null,null,null,null,null,null,null,null,null,null,null,null,null,null,null,null,null,null,null,null,null,null,"2024-10-16","E",29,"2024-10-16",1]
[null,null,null,null,null,null,null,null,null,null,null,null,null,null,null,null,null,null,null,null,null,null,null,null,null,null,null,null,null,null,"2024-10-17","F",29,"2024-10-17",1]
[null,null,null,null,null,null,null,null,null,null,null,null,null,null,null,null,null,null,null,null,null,null,null,null,null,null,null,null,null,null,"2024-10-18","G",29,"2024-10-18",1]
[null,null,null,null,null,null,null,null,null,null,null,null,null,null,null,null,null,null,null,null,null,null,null,null,null,null,null,null,null,null,"2024-10-19","H",29,"2024-10-19",1]
[null,null,null,null,null,null,null,null,null,null,null,null,null,null,null,null,null,null,null,null,null,null,null,null,null,null,null,null,null,null,"2024-10-20","B",30,"2024-10-20",1]
[null,null,null,null,null,null,null,null,null,null,null,null,null,null,null,null,null,null,null,null,null,null,null,null,null,null,null,null,null,null,"2024-10-21","C",30,"2024-10-21",1]
[null,null,null,null,null,null,null,null,null,null,null,null,null,null,null,null,null,null,null,null,null,null,null,null,null,null,null,null,null,null,"2024-10-22","D",30,"2024-10-22",1]
[null,null,null,null,null,null,null,null,null,null,null,null,null,null,null,null,null,null,null,null,null,null,null,null,null,null,null,null,null,null,"2024-10-23","E",30,"2024-10-23",1]
[null,null,null,null,null,null,null,null,null,null,null,null,null,null,null,null,null,null,null,null,null,null,null,null,null,null,null,null,null,null,"2024-10-24","F",30,"2024-10-24",1]
[null,null,null,null,null,null,null,null,null,null,null,null,null,null,null,null,null,null,null,null,null,null,null,null,null,null,null,null,null,null,"2024-10-25","G",30,"2024-10-25",1]
[null,null,null,null,null,null,null,null,null,null,null,null,null,null,null,null,null,null,null,null,null,null,null,null,null,null,null,null,null,null,"2024-10-26","H",30,"2024-10-26",1]
[null,null,null,null,null,null,null,null,null,null,null,null,null,null,null,null,null,null,null,null,null,null,null,null,null,null,null,null,null,null,"2024-10-27","B",31,"2024-10-27",1]
[null,null,null,null,null,null,null,null,null,null,null,null,null,null,null,null,null,null,null,null,null,null,null,null,null,null,null,null,null,null,"2024-10-28","C",31,"2024-10-28",1]
[null,null,null,null,null,null,null,null,null,null,null,null,null,null,null,null,null,null,null,null,null,null,null,null,null,null,null,null,null,null,"2024-10-29","D",31,"2024-10-29",1]
[null,null,null,null,null,null,null,null,null,null,null,null,null,null,null,null,null,null,null,null,null,null,null,null,null,null,null,null,null,null,"2024-10-30","E",31,"2024-10-30",1]
[null,null,null,null,null,null,null,null,null,null,null,null,null,null,null,null,null,null,null,null,null,null,null,null,null,null,null,null,null,null,"2024-10-31","F",31,"2024-10-31",1]
[null,null,null,null,null,null,null,null,null,null,null,null,null,null,null,null,null,null,null,null,null,null,null,null,null,null,null,null,null,null,"2024-11-01","P",27,"2024-11-01",1]
[null,null,null,null,null,null,null,null,null,null,null,null,null,null,null,null,null,null,null,null,null,null,null,null,null,null,null,null,null,null,"2024-11-02","Q",27,"2024-11-02",1]
[null,null,null,null,null,null,null,null,null,null,null,null,null,null,null,null,null,null,null,null,null,null,null,null,null,null,null,null,null,null,"2024-11-03","K",28,"2024-11-03",1]
[null,null,null,null,null,null,null,null,null,null,null,null,null,null,null,null,null,null,null,null,null,null,null,null,null,null,null,null,null,null,"2024-11-04","L",28,"2024-11-04",1]
[null,null,null,null,null,null,null,null,null,null,null,null,null,null,null,null,null,null,null,null,null,null,null,null,null,null,null,null,null,null,"2024-11-05","M",28,"2024-11-05",1]
[null,null,null,null,null,null,null,null,null,null,null,null,null,null,null,null,null,null,null,null,null,null,null,null,null,null,null,null,null,null,"2024-11-06","N",28,"2024-11-06",{"$f":"IF(AH144=\"\",0,1)","v":1}]
[null,null,null,null,null,null,null,null,null,null,null,null,null,null,null,null,null,null,null,null,null,null,null,null,null,null,null,null,null,null,"2024-11-07","O",28,"2024-11-07",1]
[null,null,null,null,null,null,null,null,null,null,null,null,null,null,null,null,null,null,null,null,null,null,null,null,null,null,null,null,null,null,"2024-11-08","P",28,"2024-11-08",1]
[null,null,null,null,null,null,null,null,null,null,null,null,null,null,null,null,null,null,null,null,null,null,null,null,null,null,null,null,null,null,"2024-11-09","Q",28,"2024-11-09",1]
[null,null,null,null,null,null,null,null,null,null,null,null,null,null,null,null,null,null,null,null,null,null,null,null,null,null,null,null,null,null,"2024-11-10","K",29,"2024-11-10",1]
[null,null,null,null,null,null,null,null,null,null,null,null,null,null,null,null,null,null,null,null,null,null,null,null,null,null,null,null,null,null,"2024-11-11","L",29,"2024-11-11",1]
[null,null,null,null,null,null,null,null,null,null,null,null,null,null,null,null,null,null,null,null,null,null,null,null,null,null,null,null,null,null,"2024-11-12","M",29,"2024-11-12",1]
[null,null,null,null,null,null,null,null,null,null,null,null,null,null,null,null,null,null,null,null,null,null,null,null,null,null,null,null,null,null,"2024-11-13","N",29,"2024-11-13",1]
[null,null,null,null,null,null,null,null,null,null,null,null,null,null,null,null,null,null,null,null,null,null,null,null,null,null,null,null,null,null,"2024-11-14","O",29,"2024-11-14",1]
[null,null,null,null,null,null,null,null,null,null,null,null,null,null,null,null,null,null,null,null,null,null,null,null,null,null,null,null,null,null,"2024-11-15","P",29,"2024-11-15",1]
[null,null,null,null,null,null,null,null,null,null,null,null,null,null,null,null,null,null,null,null,null,null,null,null,null,null,null,null,null,null,"2024-11-16","Q",29,"2024-11-16",1]
[null,null,null,null,null,null,null,null,null,null,null,null,null,null,null,null,null,null,null,null,null,null,null,null,null,null,null,null,null,null,"2024-11-17","K",30,"2024-11-17",1]
[null,null,null,null,null,null,null,null,null,null,null,null,null,null,null,null,null,null,null,null,null,null,null,null,null,null,null,null,null,null,"2024-11-18","L",30,"2024-11-18",1]
[null,null,null,null,null,null,null,null,null,null,null,null,null,null,null,null,null,null,null,null,null,null,null,null,null,null,null,null,null,null,"2024-11-19","M",30,"2024-11-19",1]
[null,null,null,null,null,null,null,null,null,null,null,null,null,null,null,null,null,null,null,null,null,null,null,null,null,null,null,null,null,null,"2024-11-20","N",30,"2024-11-20",1]
[null,null,null,null,null,null,null,null,null,null,null,null,null,null,null,null,null,null,null,null,null,null,null,null,null,null,null,null,null,null,"2024-11-21","O",30,"2024-11-21",1]
[null,null,null,null,null,null,null,null,null,null,null,null,null,null,null,null,null,null,null,null,null,null,null,null,null,null,null,null,null,null,"2024-11-22","P",30,"2024-11-22",1]
[null,null,null,null,null,null,null,null,null,null,null,null,null,null,null,null,null,null,null,null,null,null,null,null,null,null,null,null,null,null,"2024-11-23","Q",30,"2024-11-23",1]
[null,null,null,null,null,null,null,null,null,null,null,null,null,null,null,null,null,null,null,null,null,null,null,null,null,null,null,null,null,null,"2024-11-24","K",31,"2024-11-24",1]
[null,null,null,null,null,null,null,null,null,null,null,null,null,null,null,null,null,null,null,null,null,null,null,null,null,null,null,null,null,null,"2024-11-25","L",31,"2024-11-25",1]
[null,null,null,null,null,null,null,null,null,null,null,null,null,null,null,null,null,null,null,null,null,null,null,null,null,null,null,null,null,null,"2024-11-26","M",31,"2024-11-26",1]
[null,null,null,null,null,null,null,null,null,null,null,null,null,null,null,null,null,null,null,null,null,null,null,null,null,null,null,null,null,null,"2024-11-27","N",31,"2024-11-27",1]
[null,null,null,null,null,null,null,null,null,null,null,null,null,null,null,null,null,null,null,null,null,null,null,null,null,null,null,null,null,null,"2024-11-28","O",31,"2024-11-28",1]
[null,null,null,null,null,null,null,null,null,null,null,null,null,null,null,null,null,null,null,null,null,null,null,null,null,null,null,null,null,null,"2024-11-29","P",31,"2024-11-29",1]
[null,null,null,null,null,null,null,null,null,null,null,null,null,null,null,null,null,null,null,null,null,null,null,null,null,null,null,null,null,null,"2024-11-30","Q",31,"2024-11-30",1]
[null,null,null,null,null,null,null,null,null,null,null,null,null,null,null,null,null,null,null,null,null,null,null,null,null,null,null,null,null,null,"2024-12-01","T",27,"2024-12-01",1]
[null,null,null,null,null,null,null,null,null,null,null,null,null,null,null,null,null,null,null,null,null,null,null,null,null,null,null,null,null,null,"2024-12-02","U",27,"2024-12-02",1]
[null,null,null,null,null,null,null,null,null,null,null,null,null,null,null,null,null,null,null,null,null,null,null,null,null,null,null,null,null,null,"2024-12-03","V",27,"2024-12-03",1]
[null,null,null,null,null,null,null,null,null,null,null,null,null,null,null,null,null,null,null,null,null,null,null,null,null,null,null,null,null,null,"2024-12-04","W",27,"2024-12-04",1]
[null,null,null,null,null,null,null,null,null,null,null,null,null,null,null,null,null,null,null,null,null,null,null,null,null,null,null,null,null,null,"2024-12-05","X",27,"2024-12-05",1]
[null,null,null,null,null,null,null,null,null,null,null,null,null,null,null,null,null,null,null,null,null,null,null,null,null,null,null,null,null,null,"2024-12-06","Y",27,"2024-12-06",1]
[null,null,null,null,null,null,null,null,null,null,null,null,null,null,null,null,null,null,null,null,null,null,null,null,null,null,null,null,null,null,"2024-12-07","Z",27,{"$f":"IF(INDIRECT(AF175&AG175)=\"\",\"\",AE175)","v":"2024-12-07"},1]
[null,null,null,null,null,null,null,null,null,null,null,null,null,null,null,null,null,null,null,null,null,null,null,null,null,null,null,null,null,null,"2024-12-08","T",28,"2024-12-08",1]
[null,null,null,null,null,null,null,null,null,null,null,null,null,null,null,null,null,null,null,null,null,null,null,null,null,null,null,null,null,null,"2024-12-09","U",28,"2024-12-09",1]
[null,null,null,null,null,null,null,null,null,null,null,null,null,null,null,null,null,null,null,null,null,null,null,null,null,null,null,null,null,null,"2024-12-10","V",28,"2024-12-10",1]
[null,null,null,null,null,null,null,null,null,null,null,null,null,null,null,null,null,null,null,null,null,null,null,null,null,null,null,null,null,null,"2024-12-11","W",28,"2024-12-11",1]
[null,null,null,null,null,null,null,null,null,null,null,null,null,null,null,null,null,null,null,null,null,null,null,null,null,null,null,null,null,null,"2024-12-12","X",28,"2024-12-12",1]
[null,null,null,null,null,null,null,null,null,null,null,null,null,null,null,null,null,null,null,null,null,null,null,null,null,null,null,null,null,null,"2024-12-13","Y",28,"2024-12-13",1]
[null,null,null,null,null,null,null,null,null,null,null,null,null,null,null,null,null,null,null,null,null,null,null,null,null,null,null,null,null,null,"2024-12-14","Z",28,"2024-12-14",1]
[null,null,null,null,null,null,null,null,null,null,null,null,null,null,null,null,null,null,null,null,null,null,null,null,null,null,null,null,null,null,"2024-12-15","T",29,"2024-12-15",1]
[null,null,null,null,null,null,null,null,null,null,null,null,null,null,null,null,null,null,null,null,null,null,null,null,null,null,null,null,null,null,"2024-12-16","U",29,"2024-12-16",1]
[null,null,null,null,null,null,null,null,null,null,null,null,null,null,null,null,null,null,null,null,null,null,null,null,null,null,null,null,null,null,"2024-12-17","V",29,"2024-12-17",1]
[null,null,null,null,null,null,null,null,null,null,null,null,null,null,null,null,null,null,null,null,null,null,null,null,null,null,null,null,null,null,"2024-12-18","W",29,"2024-12-18",1]
[null,null,null,null,null,null,null,null,null,null,null,null,null,null,null,null,null,null,null,null,null,null,null,null,null,null,null,null,null,null,"2024-12-19","X",29,"2024-12-19",1]
[null,null,null,null,null,null,null,null,null,null,null,null,null,null,null,null,null,null,null,null,null,null,null,null,null,null,null,null,null,null,"2024-12-20","Y",29,"2024-12-20",1]
[null,null,null,null,null,null,null,null,null,null,null,null,null,null,null,null,null,null,null,null,null,null,null,null,null,null,null,null,null,null,"2024-12-21","Z",29,"2024-12-21",1]
[null,null,null,null,null,null,null,null,null,null,null,null,null,null,null,null,null,null,null,null,null,null,null,null,null,null,null,null,null,null,"2024-12-22","T",30,"2024-12-22",1]
[null,null,null,null,null,null,null,null,null,null,null,null,null,null,null,null,null,null,null,null,null,null,null,null,null,null,null,null,null,null,"2024-12-23","U",30,"2024-12-23",1]
[null,null,null,null,null,null,null,null,null,null,null,null,null,null,null,null,null,null,null,null,null,null,null,null,null,null,null,null,null,null,"2024-12-24","V",30,"2024-12-24",1]
[null,null,null,null,null,null,null,null,null,null,null,null,null,null,null,null,null,null,null,null,null,null,null,null,null,null,null,null,null,null,"2024-12-25","W",30,"2024-12-25",1]
[null,null,null,null,null,null,null,null,null,null,null,null,null,null,null,null,null,null,null,null,null,null,null,null,null,null,null,null,null,null,"2024-12-26","X",30,"2024-12-26",1]
[null,null,null,null,null,null,null,null,null,null,null,null,null,null,null,null,null,null,null,null,null,null,null,null,null,null,null,null,null,null,"2024-12-27","Y",30,"2024-12-27",1]
[null,null,null,null,null,null,null,null,null,null,null,null,null,null,null,null,null,null,null,null,null,null,null,null,null,null,null,null,null,null,"2024-12-28","Z",30,"2024-12-28",1]
[null,null,null,null,null,null,null,null,null,null,null,null,null,null,null,null,null,null,null,null,null,null,null,null,null,null,null,null,null,null,"2024-12-29","T",31,"2024-12-29",1]
[null,null,null,null,null,null,null,null,null,null,null,null,null,null,null,null,null,null,null,null,null,null,null,null,null,null,null,null,null,null,"2024-12-30","U",31,"2024-12-30",1]
[null,null,null,null,null,null,null,null,null,null,null,null,null,null,null,null,null,null,null,null,null,null,null,null,null,null,null,null,null,null,"2024-12-31","V",31,"2024-12-31",1]
[null,null,null,null,null,null,null,null,null,null,null,null,null,null,null,null,null,null,null,null,null,null,null,null,null,null,null,null,null,null,"2025-01-01","E",36,"2025-01-01",1]
[null,null,null,null,null,null,null,null,null,null,null,null,null,null,null,null,null,null,null,null,null,null,null,null,null,null,null,null,null,null,"2025-01-02","F",36,"2025-01-02",1]
[null,null,null,null,null,null,null,null,null,null,null,null,null,null,null,null,null,null,null,null,null,null,null,null,null,null,null,null,null,null,"2025-01-03","G",36,"2025-01-03",1]
[null,null,null,null,null,null,null,null,null,null,null,null,null,null,null,null,null,null,null,null,null,null,null,null,null,null,null,null,null,null,"2025-01-04","H",36,"2025-01-04",1]
[null,null,null,null,null,null,null,null,null,null,null,null,null,null,null,null,null,null,null,null,null,null,null,null,null,null,null,null,null,null,"2025-01-05","B",37,"2025-01-05",1]
[null,null,null,null,null,null,null,null,null,null,null,null,null,null,null,null,null,null,null,null,null,null,null,null,null,null,null,null,null,null,"2025-01-06","C",37,"2025-01-06",1]
[null,null,null,null,null,null,null,null,null,null,null,null,null,null,null,null,null,null,null,null,null,null,null,null,null,null,null,null,null,null,"2025-01-07","D",37,"2025-01-07",1]
[null,null,null,null,null,null,null,null,null,null,null,null,null,null,null,null,null,null,null,null,null,null,null,null,null,null,null,null,null,null,"2025-01-08","E",37,"2025-01-08",1]
[null,null,null,null,null,null,null,null,null,null,null,null,null,null,null,null,null,null,null,null,null,null,null,null,null,null,null,null,null,null,"2025-01-09","F",37,"2025-01-09",{"$f":"IF(AH208=\"\",0,1)","v":1}]
[null,null,null,null,null,null,null,null,null,null,null,null,null,null,null,null,null,null,null,null,null,null,null,null,null,null,null,null,null,null,"2025-01-10","G",37,"2025-01-10",1]
[null,null,null,null,null,null,null,null,null,null,null,null,null,null,null,null,null,null,null,null,null,null,null,null,null,null,null,null,null,null,"2025-01-11","H",37,"2025-01-11",1]
[null,null,null,null,null,null,null,null,null,null,null,null,null,null,null,null,null,null,null,null,null,null,null,null,null,null,null,null,null,null,"2025-01-12","B",38,"2025-01-12",1]
[null,null,null,null,null,null,null,null,null,null,null,null,null,null,null,null,null,null,null,null,null,null,null,null,null,null,null,null,null,null,"2025-01-13","C",38,"2025-01-13",1]
[null,null,null,null,null,null,null,null,null,null,null,null,null,null,null,null,null,null,null,null,null,null,null,null,null,null,null,null,null,null,"2025-01-14","D",38,"2025-01-14",1]
[null,null,null,null,null,null,null,null,null,null,null,null,null,null,null,null,null,null,null,null,null,null,null,null,null,null,null,null,null,null,"2025-01-15","E",38,"2025-01-15",1]
[null,null,null,null,null,null,null,null,null,null,null,null,null,null,null,null,null,null,null,null,null,null,null,null,null,null,null,null,null,null,"2025-01-16","F",38,"2025-01-16",1]
[null,null,null,null,null,null,null,null,null,null,null,null,null,null,null,null,null,null,null,null,null,null,null,null,null,null,null,null,null,null,"2025-01-17","G",38,"2025-01-17",1]
[null,null,null,null,null,null,null,null,null,null,null,null,null,null,null,null,null,null,null,null,null,null,null,null,null,null,null,null,null,null,"2025-01-18","H",38,"2025-01-18",1]
[null,null,null,null,null,null,null,null,null,null,null,null,null,null,null,null,null,null,null,null,null,null,null,null,null,null,null,null,null,null,"2025-01-19","B",39,"2025-01-19",1]
[null,null,null,null,null,null,null,null,null,null,null,null,null,null,null,null,null,null,null,null,null,null,null,null,null,null,null,null,null,null,"2025-01-20","C",39,"2025-01-20",1]
[null,null,null,null,null,null,null,null,null,null,null,null,null,null,null,null,null,null,null,null,null,null,null,null,null,null,null,null,null,null,"2025-01-21","D",39,"2025-01-21",1]
[null,null,null,null,null,null,null,null,null,null,null,null,null,null,null,null,null,null,null,null,null,null,null,null,null,null,null,null,null,null,"2025-01-22","E",39,"2025-01-22",1]
[null,null,null,null,null,null,null,null,null,null,null,null,null,null,null,null,null,null,null,null,null,null,null,null,null,null,null,null,null,null,"2025-01-23","F",39,"2025-01-23",1]
[null,null,null,null,null,null,null,null,null,null,null,null,null,null,null,null,null,null,null,null,null,null,null,null,null,null,null,null,null,null,"2025-01-24","G",39,"2025-01-24",1]
[null,null,null,null,null,null,null,null,null,null,null,null,null,null,null,null,null,null,null,null,null,null,null,null,null,null,null,null,null,null,"2025-01-25","H",39,"2025-01-25",1]
[null,null,null,null,null,null,null,null,null,null,null,null,null,null,null,null,null,null,null,null,null,null,null,null,null,null,null,null,null,null,"2025-01-26","B",40,"2025-01-26",1]
[null,null,null,null,null,null,null,null,null,null,null,null,null,null,null,null,null,null,null,null,null,null,null,null,null,null,null,null,null,null,"2025-01-27","C",40,"2025-01-27",1]
[null,null,null,null,null,null,null,null,null,null,null,null,null,null,null,null,null,null,null,null,null,null,null,null,null,null,null,null,null,null,"2025-01-28","D",40,"2025-01-28",1]
[null,null,null,null,null,null,null,null,null,null,null,null,null,null,null,null,null,null,null,null,null,null,null,null,null,null,null,null,null,null,"2025-01-29","E",40,"2025-01-29",1]
[null,null,null,null,null,null,null,null,null,null,null,null,null,null,null,null,null,null,null,null,null,null,null,null,null,null,null,null,null,null,"2025-01-30","F",40,"2025-01-30",1]
[null,null,null,null,null,null,null,null,null,null,null,null,null,null,null,null,null,null,null,null,null,null,null,null,null,null,null,null,null,null,"2025-01-31","G",40,"2025-01-31",1]
[null,null,null,null,null,null,null,null,null,null,null,null,null,null,null,null,null,null,null,null,null,null,null,null,null,null,null,null,null,null,"2025-02-01","Q",36,"2025-02-01",1]
[null,null,null,null,null,null,null,null,null,null,null,null,null,null,null,null,null,null,null,null,null,null,null,null,null,null,null,null,null,null,"2025-02-02","K",37,"2025-02-02",1]
[null,null,null,null,null,null,null,null,null,null,null,null,null,null,null,null,null,null,null,null,null,null,null,null,null,null,null,null,null,null,"2025-02-03","L",37,"2025-02-03",1]
[null,null,null,null,null,null,null,null,null,null,null,null,null,null,null,null,null,null,null,null,null,null,null,null,null,null,null,null,null,null,"2025-02-04","M",37,"2025-02-04",1]
[null,null,null,null,null,null,null,null,null,null,null,null,null,null,null,null,null,null,null,null,null,null,null,null,null,null,null,null,null,null,"2025-02-05","N",37,"2025-02-05",1]
[null,null,null,null,null,null,null,null,null,null,null,null,null,null,null,null,null,null,null,null,null,null,null,null,null,null,null,null,null,null,"2025-02-06","O",37,"2025-02-06",1]
[null,null,null,null,null,null,null,null,null,null,null,null,null,null,null,null,null,null,null,null,null,null,null,null,null,null,null,null,null,null,"2025-02-07","P",37,"2025-02-07",1]
[null,null,null,null,null,null,null,null,null,null,null,null,null,null,null,null,null,null,null,null,null,null,null,null,null,null,null,null,null,null,"2025-02-08","Q",37,"2025-02-08",1]
[null,null,null,null,null,null,null,null,null,null,null,null,null,null,null,null,null,null,null,null,null,null,null,null,null,null,null,null,null,null,"2025-02-09","K",38,{"$f":"IF(INDIRECT(AF239&AG239)=\"\",\"\",AE239)","v":"2025-02-09"},1]
[null,null,null,null,null,null,null,null,null,null,null,null,null,null,null,null,null,null,null,null,null,null,null,null,null,null,null,null,null,null,"2025-02-10","L",38,"2025-02-10",1]
[null,null,null,null,null,null,null,null,null,null,null,null,null,null,null,null,null,null,null,null,null,null,null,null,null,null,null,null,null,null,"2025-02-11","M",38,"2025-02-11",1]
[null,null,null,null,null,null,null,null,null,null,null,null,null,null,null,null,null,null,null,null,null,null,null,null,null,null,null,null,null,null,"2025-02-12","N",38,"2025-02-12",1]
[null,null,null,null,null,null,null,null,null,null,null,null,null,null,null,null,null,null,null,null,null,null,null,null,null,null,null,null,null,null,"2025-02-13","O",38,"2025-02-13",1]
[null,null,null,null,null,null,null,null,null,null,null,null,null,null,null,null,null,null,null,null,null,null,null,null,null,null,null,null,null,null,"2025-02-14","P",38,"2025-02-14",1]
[null,null,null,null,null,null,null,null,null,null,null,null,null,null,null,null,null,null,null,null,null,null,null,null,null,null,null,null,null,null,"2025-02-15","Q",38,"2025-02-15",1]
[null,null,null,null,null,null,null,null,null,null,null,null,null,null,null,null,null,null,null,null,null,null,null,null,null,null,null,null,null,null,"2025-02-16","K",39,"2025-02-16",1]
[null,null,null,null,null,null,null,null,null,null,null,null,null,null,null,null,null,null,null,null,null,null,null,null,null,null,null,null,null,null,"2025-02-17","L",39,"2025-02-17",1]
[null,null,null,null,null,null,null,null,null,null,null,null,null,null,null,null,null,null,null,null,null,null,null,null,null,null,null,null,null,null,"2025-02-18","M",39,"2025-02-18",1]
[null,null,null,null,null,null,null,null,null,null,null,null,null,null,null,null,null,null,null,null,null,null,null,null,null,null,null,null,null,null,"2025-02-19","N",39,"2025-02-19",1]
[null,null,null,null,null,null,null,null,null,null,null,null,null,null,null,null,null,null,null,null,null,null,null,null,null,null,null,null,null,null,"2025-02-20","O",39,"2025-02-20",1]
[null,null,null,null,null,null,null,null,null,null,null,null,null,null,null,null,null,null,null,null,null,null,null,null,null,null,null,null,null,null,"2025-02-21","P",39,"2025-02-21",1]
[null,null,null,null,null,null,null,null,null,null,null,null,null,null,null,null,null,null,null,null,null,null,null,null,null,null,null,null,null,null,"2025-02-22","Q",39,"2025-02-22",1]
[null,null,null,null,null,null,null,null,null,null,null,null,null,null,null,null,null,null,null,null,null,null,null,null,null,null,null,null,null,null,"2025-02-23","K",40,"2025-02-23",1]
[null,null,null,null,null,null,null,null,null,null,null,null,null,null,null,null,null,null,null,null,null,null,null,null,null,null,null,null,null,null,"2025-02-24","L",40,"2025-02-24",1]
[null,null,null,null,null,null,null,null,null,null,null,null,null,null,null,null,null,null,null,null,null,null,null,null,null,null,null,null,null,null,"2025-02-25","M",40,"2025-02-25",1]
[null,null,null,null,null,null,null,null,null,null,null,null,null,null,null,null,null,null,null,null,null,null,null,null,null,null,null,null,null,null,"2025-02-26","N",40,"2025-02-26",1]
[null,null,null,null,null,null,null,null,null,null,null,null,null,null,null,null,null,null,null,null,null,null,null,null,null,null,null,null,null,null,"2025-02-27","O",40,"2025-02-27",1]
[null,null,null,null,null,null,null,null,null,null,null,null,null,null,null,null,null,null,null,null,null,null,null,null,null,null,null,null,null,null,"2025-02-28","P",40,"2025-02-28",1]
[null,null,null,null,null,null,null,null,null,null,null,null,null,null,null,null,null,null,null,null,null,null,null,null,null,null,null,null,null,null,"2025-03-01","Z",36,"2025-03-01",1]
[null,null,null,null,null,null,null,null,null,null,null,null,null,null,null,null,null,null,null,null,null,null,null,null,null,null,null,null,null,null,"2025-03-02","T",37,"2025-03-02",1]
[null,null,null,null,null,null,null,null,null,null,null,null,null,null,null,null,null,null,null,null,null,null,null,null,null,null,null,null,null,null,"2025-03-03","U",37,"2025-03-03",1]
[null,null,null,null,null,null,null,null,null,null,null,null,null,null,null,null,null,null,null,null,null,null,null,null,null,null,null,null,null,null,"2025-03-04","V",37,"2025-03-04",1]
[null,null,null,null,null,null,null,null,null,null,null,null,null,null,null,null,null,null,null,null,null,null,null,null,null,null,null,null,null,null,"2025-03-05","W",37,"2025-03-05",1]
[null,null,null,null,null,null,null,null,null,null,null,null,null,null,null,null,null,null,null,null,null,null,null,null,null,null,null,null,null,null,"2025-03-06","X",37,"2025-03-06",1]
[null,null,null,null,null,null,null,null,null,null,null,null,null,null,null,null,null,null,null,null,null,null,null,null,null,null,null,null,null,null,"2025-03-07","Y",37,"2025-03-07",1]
[null,null,null,null,null,null,null,null,null,null,null,null,null,null,null,null,null,null,null,null,null,null,null,null,null,null,null,null,null,null,"2025-03-08","Z",37,"2025-03-08",1]
[null,null,null,null,null,null,null,null,null,null,null,null,null,null,null,null,null,null,null,null,null,null,null,null,null,null,null,null,null,null,"2025-03-09","T",38,"2025-03-09",1]
[null,null,null,null,null,null,null,null,null,null,null,null,null,null,null,null,null,null,null,null,null,null,null,null,null,null,null,null,null,null,"2025-03-10","U",38,"2025-03-10",1]
[null,null,null,null,null,null,null,null,null,null,null,null,null,null,null,null,null,null,null,null,null,null,null,null,null,null,null,null,null,null,"2025-03-11","V",38,"2025-03-11",1]
[null,null,null,null,null,null,null,null,null,null,null,null,null,null,null,null,null,null,null,null,null,null,null,null,null,null,null,null,null,null,"2025-03-12","W",38,"2025-03-12",1]
[null,null,null,null,null,null,null,null,null,null,null,null,null,null,null,null,null,null,null,null,null,null,null,null,null,null,null,null,null,null,"2025-03-13","X",38,"2025-03-13",1]
[null,null,null,null,null,null,null,null,null,null,null,null,null,null,null,null,null,null,null,null,null,null,null,null,null,null,null,null,null,null,"2025-03-14","Y",38,"2025-03-14",{"$f":"IF(AH272=\"\",0,1)","v":1}]
[null,null,null,null,null,null,null,null,null,null,null,null,null,null,null,null,null,null,null,null,null,null,null,null,null,null,null,null,null,null,"2025-03-15","Z",38,"2025-03-15",1]
[null,null,null,null,null,null,null,null,null,null,null,null,null,null,null,null,null,null,null,null,null,null,null,null,null,null,null,null,null,null,"2025-03-16","T",39,"2025-03-16",1]
[null,null,null,null,null,null,null,null,null,null,null,null,null,null,null,null,null,null,null,null,null,null,null,null,null,null,null,null,null,null,"2025-03-17","U",39,"2025-03-17",1]
[null,null,null,null,null,null,null,null,null,null,null,null,null,null,null,null,null,null,null,null,null,null,null,null,null,null,null,null,null,null,"2025-03-18","V",39,"2025-03-18",1]
[null,null,null,null,null,null,null,null,null,null,null,null,null,null,null,null,null,null,null,null,null,null,null,null,null,null,null,null,null,null,"2025-03-19","W",39,"2025-03-19",1]
[null,null,null,null,null,null,null,null,null,null,null,null,null,null,null,null,null,null,null,null,null,null,null,null,null,null,null,null,null,null,"2025-03-20","X",39,"2025-03-20",1]
[null,null,null,null,null,null,null,null,null,null,null,null,null,null,null,null,null,null,null,null,null,null,null,null,null,null,null,null,null,null,"2025-03-21","Y",39,"2025-03-21",1]
[null,null,null,null,null,null,null,null,null,null,null,null,null,null,null,null,null,null,null,null,null,null,null,null,null,null,null,null,null,null,"2025-03-22","Z",39,"2025-03-22",1]
[null,null,null,null,null,null,null,null,null,null,null,null,null,null,null,null,null,null,null,null,null,null,null,null,null,null,null,null,null,null,"2025-03-23","T",40,"2025-03-23",1]
[null,null,null,null,null,null,null,null,null,null,null,null,null,null,null,null,null,null,null,null,null,null,null,null,null,null,null,null,null,null,"2025-03-24","U",40,"2025-03-24",1]
[null,null,null,null,null,null,null,null,null,null,null,null,null,null,null,null,null,null,null,null,null,null,null,null,null,null,null,null,null,null,"2025-03-25","V",40,"2025-03-25",1]
[null,null,null,null,null,null,null,null,null,null,null,null,null,null,null,null,null,null,null,null,null,null,null,null,null,null,null,null,null,null,"2025-03-26","W",40,"2025-03-26",1]
[null,null,null,null,null,null,null,null,null,null,null,null,null,null,null,null,null,null,null,null,null,null,null,null,null,null,null,null,null,null,"2025-03-27","X",40,"2025-03-27",1]
[null,null,null,null,null,null,null,null,null,null,null,null,null,null,null,null,null,null,null,null,null,null,null,null,null,null,null,null,null,null,"2025-03-28","Y",40,"2025-03-28",1]
[null,null,null,null,null,null,null,null,null,null,null,null,null,null,null,null,null,null,null,null,null,null,null,null,null,null,null,null,null,null,"2025-03-29","Z",40,"2025-03-29",1]
[null,null,null,null,null,null,null,null,null,null,null,null,null,null,null,null,null,null,null,null,null,null,null,null,null,null,null,null,null,null,"2025-03-30","T",41,"2025-03-30",1]
[null,null,null,null,null,null,null,null,null,null,null,null,null,null,null,null,null,null,null,null,null,null,null,null,null,null,null,null,null,null,"2025-03-31","U",41,"2025-03-31",1]
[null,null,null,null,null,null,null,null,null,null,null,null,null,null,null,null,null,null,null,null,null,null,null,null,null,null,null,null,null,null,"2025-04-01","D",45,"2025-04-01",1]
[null,null,null,null,null,null,null,null,null,null,null,null,null,null,null,null,null,null,null,null,null,null,null,null,null,null,null,null,null,null,"2025-04-02","E",45,"2025-04-02",1]
[null,null,null,null,null,null,null,null,null,null,null,null,null,null,null,null,null,null,null,null,null,null,null,null,null,null,null,null,null,null,"2025-04-03","F",45,"2025-04-03",1]
[null,null,null,null,null,null,null,null,null,null,null,null,null,null,null,null,null,null,null,null,null,null,null,null,null,null,null,null,null,null,"2025-04-04","G",45,"2025-04-04",1]
[null,null,null,null,null,null,null,null,null,null,null,null,null,null,null,null,null,null,null,null,null,null,null,null,null,null,null,null,null,null,"2025-04-05","H",45,"2025-04-05",1]
[null,null,null,null,null,null,null,null,null,null,null,null,null,null,null,null,null,null,null,null,null,null,null,null,null,null,null,null,null,null,"2025-04-06","B",46,"2025-04-06",1]
[null,null,null,null,null,null,null,null,null,null,null,null,null,null,null,null,null,null,null,null,null,null,null,null,null,null,null,null,null,null,"2025-04-07","C",46,"2025-04-07",1]
[null,null,null,null,null,null,null,null,null,null,null,null,null,null,null,null,null,null,null,null,null,null,null,null,null,null,null,null,null,null,"2025-04-08","D",46,"2025-04-08",1]
[null,null,null,null,null,null,null,null,null,null,null,null,null,null,null,null,null,null,null,null,null,null,null,null,null,null,null,null,null,null,"2025-04-09","E",46,"2025-04-09",1]
[null,null,null,null,null,null,null,null,null,null,null,null,null,null,null,null,null,null,null,null,null,null,null,null,null,null,null,null,null,null,"2025-04-10","F",46,"2025-04-10",1]
[null,null,null,null,null,null,null,null,null,null,null,null,null,null,null,null,null,null,null,null,null,null,null,null,null,null,null,null,null,null,"2025-04-11","G",46,"2025-04-11",1]
[null,null,null,null,null,null,null,null,null,null,null,null,null,null,null,null,null,null,null,null,null,null,null,null,null,null,null,null,null,null,"2025-04-12","H",46,"2025-04-12",1]
[null,null,null,null,null,null,null,null,null,null,null,null,null,null,null,null,null,null,null,null,null,null,null,null,null,null,null,null,null,null,"2025-04-13","B",47,"2025-04-13",1]
[null,null,null,null,null,null,null,null,null,null,null,null,null,null,null,null,null,null,null,null,null,null,null,null,null,null,null,null,null,null,"2025-04-14","C",47,{"$f":"IF(INDIRECT(AF303&AG303)=\"\",\"\",AE303)","v":"2025-04-14"},1]
[null,null,null,null,null,null,null,null,null,null,null,null,null,null,null,null,null,null,null,null,null,null,null,null,null,null,null,null,null,null,"2025-04-15","D",47,"2025-04-15",1]
[null,null,null,null,null,null,null,null,null,null,null,null,null,null,null,null,null,null,null,null,null,null,null,null,null,null,null,null,null,null,"2025-04-16","E",47,"2025-04-16",1]
[null,null,null,null,null,null,null,null,null,null,null,null,null,null,null,null,null,null,null,null,null,null,null,null,null,null,null,null,null,null,"2025-04-17","F",47,"2025-04-17",1]
[null,null,null,null,null,null,null,null,null,null,null,null,null,null,null,null,null,null,null,null,null,null,null,null,null,null,null,null,null,null,"2025-04-18","G",47,"2025-04-18",1]
[null,null,null,null,null,null,null,null,null,null,null,null,null,null,null,null,null,null,null,null,null,null,null,null,null,null,null,null,null,null,"2025-04-19","H",47,"2025-04-19",1]
[null,null,null,null,null,null,null,null,null,null,null,null,null,null,null,null,null,null,null,null,null,null,null,null,null,null,null,null,null,null,"2025-04-20","B",48,"2025-04-20",1]
[null,null,null,null,null,null,null,null,null,null,null,null,null,null,null,null,null,null,null,null,null,null,null,null,null,null,null,null,null,null,"2025-04-21","C",48,"2025-04-21",1]
[null,null,null,null,null,null,null,null,null,null,null,null,null,null,null,null,null,null,null,null,null,null,null,null,null,null,null,null,null,null,"2025-04-22","D",48,"2025-04-22",1]
[null,null,null,null,null,null,null,null,null,null,null,null,null,null,null,null,null,null,null,null,null,null,null,null,null,null,null,null,null,null,"2025-04-23","E",48,"2025-04-23",1]
[null,null,null,null,null,null,null,null,null,null,null,null,null,null,null,null,null,null,null,null,null,null,null,null,null,null,null,null,null,null,"2025-04-24","F",48,"2025-04-24",1]
[null,null,null,null,null,null,null,null,null,null,null,null,null,null,null,null,null,null,null,null,null,null,null,null,null,null,null,null,null,null,"2025-04-25","G",48,"2025-04-25",1]
[null,null,null,null,null,null,null,null,null,null,null,null,null,null,null,null,null,null,null,null,null,null,null,null,null,null,null,null,null,null,"2025-04-26","H",48,"2025-04-26",1]
[null,null,null,null,null,null,null,null,null,null,null,null,null,null,null,null,null,null,null,null,null,null,null,null,null,null,null,null,null,null,"2025-04-27","B",49,"2025-04-27",1]
[null,null,null,null,null,null,null,null,null,null,null,null,null,null,null,null,null,null,null,null,null,null,null,null,null,null,null,null,null,null,"2025-04-28","C",49,"2025-04-28",1]
[null,null,null,null,null,null,null,null,null,null,null,null,null,null,null,null,null,null,null,null,null,null,null,null,null,null,null,null,null,null,"2025-04-29","D",49,"2025-04-29",1]
[null,null,null,null,null,null,null,null,null,null,null,null,null,null,null,null,null,null,null,null,null,null,null,null,null,null,null,null,null,null,"2025-04-30","E",49,"2025-04-30",1]
[null,null,null,null,null,null,null,null,null,null,null,null,null,null,null,null,null,null,null,null,null,null,null,null,null,null,null,null,null,null,"2025-05-01","O",45,"2025-05-01",1]
[null,null,null,null,null,null,null,null,null,null,null,null,null,null,null,null,null,null,null,null,null,null,null,null,null,null,null,null,null,null,"2025-05-02","P",45,"2025-05-02",1]
[null,null,null,null,null,null,null,null,null,null,null,null,null,null,null,null,null,null,null,null,null,null,null,null,null,null,null,null,null,null,"2025-05-03","Q",45,"2025-05-03",1]
[null,null,null,null,null,null,null,null,null,null,null,null,null,null,null,null,null,null,null,null,null,null,null,null,null,null,null,null,null,null,"2025-05-04","K",46,"2025-05-04",1]
[null,null,null,null,null,null,null,null,null,null,null,null,null,null,null,null,null,null,null,null,null,null,null,null,null,null,null,null,null,null,"2025-05-05","L",46,"2025-05-05",1]
[null,null,null,null,null,null,null,null,null,null,null,null,null,null,null,null,null,null,null,null,null,null,null,null,null,null,null,null,null,null,"2025-05-06","M",46,"2025-05-06",1]
[null,null,null,null,null,null,null,null,null,null,null,null,null,null,null,null,null,null,null,null,null,null,null,null,null,null,null,null,null,null,"2025-05-07","N",46,"2025-05-07",1]
[null,null,null,null,null,null,null,null,null,null,null,null,null,null,null,null,null,null,null,null,null,null,null,null,null,null,null,null,null,null,"2025-05-08","O",46,"2025-05-08",1]
[null,null,null,null,null,null,null,null,null,null,null,null,null,null,null,null,null,null,null,null,null,null,null,null,null,null,null,null,null,null,"2025-05-09","P",46,"2025-05-09",1]
[null,null,null,null,null,null,null,null,null,null,null,null,null,null,null,null,null,null,null,null,null,null,null,null,null,null,null,null,null,null,"2025-05-10","Q",46,"2025-05-10",1]
[null,null,null,null,null,null,null,null,null,null,null,null,null,null,null,null,null,null,null,null,null,null,null,null,null,null,null,null,null,null,"2025-05-11","K",47,"2025-05-11",1]
[null,null,null,null,null,null,null,null,null,null,null,null,null,null,null,null,null,null,null,null,null,null,null,null,null,null,null,null,null,null,"2025-05-12","L",47,"2025-05-12",1]
[null,null,null,null,null,null,null,null,null,null,null,null,null,null,null,null,null,null,null,null,null,null,null,null,null,null,null,null,null,null,"2025-05-13","M",47,"2025-05-13",1]
[null,null,null,null,null,null,null,null,null,null,null,null,null,null,null,null,null,null,null,null,null,null,null,null,null,null,null,null,null,null,"2025-05-14","N",47,"2025-05-14",1]
[null,null,null,null,null,null,null,null,null,null,null,null,null,null,null,null,null,null,null,null,null,null,null,null,null,null,null,null,null,null,"2025-05-15","O",47,"2025-05-15",1]
[null,null,null,null,null,null,null,null,null,null,null,null,null,null,null,null,null,null,null,null,null,null,null,null,null,null,null,null,null,null,"2025-05-16","P",47,"2025-05-16",{"$f":"IF(AH335=\"\",0,1)","v":1}]
[null,null,null,null,null,null,null,null,null,null,null,null,null,null,null,null,null,null,null,null,null,null,null,null,null,null,null,null,null,null,"2025-05-17","Q",47,"2025-05-17",1]
[null,null,null,null,null,null,null,null,null,null,null,null,null,null,null,null,null,null,null,null,null,null,null,null,null,null,null,null,null,null,"2025-05-18","K",48,"2025-05-18",1]
[null,null,null,null,null,null,null,null,null,null,null,null,null,null,null,null,null,null,null,null,null,null,null,null,null,null,null,null,null,null,"2025-05-19","L",48,"2025-05-19",1]
[null,null,null,null,null,null,null,null,null,null,null,null,null,null,null,null,null,null,null,null,null,null,null,null,null,null,null,null,null,null,"2025-05-20","M",48,"2025-05-20",1]
[null,null,null,null,null,null,null,null,null,null,null,null,null,null,null,null,null,null,null,null,null,null,null,null,null,null,null,null,null,null,"2025-05-21","N",48,"2025-05-21",1]
[null,null,null,null,null,null,null,null,null,null,null,null,null,null,null,null,null,null,null,null,null,null,null,null,null,null,null,null,null,null,"2025-05-22","O",48,"2025-05-22",1]
[null,null,null,null,null,null,null,null,null,null,null,null,null,null,null,null,null,null,null,null,null,null,null,null,null,null,null,null,null,null,"2025-05-23","P",48,"2025-05-23",1]
[null,null,null,null,null,null,null,null,null,null,null,null,null,null,null,null,null,null,null,null,null,null,null,null,null,null,null,null,null,null,"2025-05-24","Q",48,"2025-05-24",1]
[null,null,null,null,null,null,null,null,null,null,null,null,null,null,null,null,null,null,null,null,null,null,null,null,null,null,null,null,null,null,"2025-05-25","K",49,"2025-05-25",1]
[null,null,null,null,null,null,null,null,null,null,null,null,null,null,null,null,null,null,null,null,null,null,null,null,null,null,null,null,null,null,"2025-05-26","L",49,"2025-05-26",1]
[null,null,null,null,null,null,null,null,null,null,null,null,null,null,null,null,null,null,null,null,null,null,null,null,null,null,null,null,null,null,"2025-05-27","M",49,"2025-05-27",1]
[null,null,null,null,null,null,null,null,null,null,null,null,null,null,null,null,null,null,null,null,null,null,null,null,null,null,null,null,null,null,"2025-05-28","N",49,"2025-05-28",1]
[null,null,null,null,null,null,null,null,null,null,null,null,null,null,null,null,null,null,null,null,null,null,null,null,null,null,null,null,null,null,"2025-05-29","O",49,"2025-05-29",1]
[null,null,null,null,null,null,null,null,null,null,null,null,null,null,null,null,null,null,null,null,null,null,null,null,null,null,null,null,null,null,"2025-05-30","P",49,"2025-05-30",1]
[null,null,null,null,null,null,null,null,null,null,null,null,null,null,null,null,null,null,null,null,null,null,null,null,null,null,null,null,null,null,"2025-05-31","Q",49,"2025-05-31",1]
[null,null,null,null,null,null,null,null,null,null,null,null,null,null,null,null,null,null,null,null,null,null,null,null,null,null,null,null,null,null,"2025-06-01","T",45,"2025-06-01",1]
[null,null,null,null,null,null,null,null,null,null,null,null,null,null,null,null,null,null,null,null,null,null,null,null,null,null,null,null,null,null,"2025-06-02","U",45,"2025-06-02",1]
[null,null,null,null,null,null,null,null,null,null,null,null,null,null,null,null,null,null,null,null,null,null,null,null,null,null,null,null,null,null,"2025-06-03","V",45,"2025-06-03",1]
[null,null,null,null,null,null,null,null,null,null,null,null,null,null,null,null,null,null,null,null,null,null,null,null,null,null,null,null,null,null,"2025-06-04","W",45,"2025-06-04",1]
[null,null,null,null,null,null,null,null,null,null,null,null,null,null,null,null,null,null,null,null,null,null,null,null,null,null,null,null,null,null,"2025-06-05","X",45,"2025-06-05",1]
[null,null,null,null,null,null,null,null,null,null,null,null,null,null,null,null,null,null,null,null,null,null,null,null,null,null,null,null,null,null,"2025-06-06","Y",45,"2025-06-06",1]
[null,null,null,null,null,null,null,null,null,null,null,null,null,null,null,null,null,null,null,null,null,null,null,null,null,null,null,null,null,null,"2025-06-07","Z",45,"2025-06-07",1]
[null,null,null,null,null,null,null,null,null,null,null,null,null,null,null,null,null,null,null,null,null,null,null,null,null,null,null,null,null,null,"2025-06-08","T",46,"2025-06-08",1]
[null,null,null,null,null,null,null,null,null,null,null,null,null,null,null,null,null,null,null,null,null,null,null,null,null,null,null,null,null,null,"2025-06-09","U",46,"2025-06-09",1]
[null,null,null,null,null,null,null,null,null,null,null,null,null,null,null,null,null,null,null,null,null,null,null,null,null,null,null,null,null,null,"2025-06-10","V",46,"2025-06-10",1]
[null,null,null,null,null,null,null,null,null,null,null,null,null,null,null,null,null,null,null,null,null,null,null,null,null,null,null,null,null,null,"2025-06-11","W",46,"2025-06-11",1]
[null,null,null,null,null,null,null,null,null,null,null,null,null,null,null,null,null,null,null,null,null,null,null,null,null,null,null,null,null,null,"2025-06-12","X",46,"2025-06-12",1]
[null,null,null,null,null,null,null,null,null,null,null,null,null,null,null,null,null,null,null,null,null,null,null,null,null,null,null,null,null,null,"2025-06-13","Y",46,"2025-06-13",1]
[null,null,null,null,null,null,null,null,null,null,null,null,null,null,null,null,null,null,null,null,null,null,null,null,null,null,null,null,null,null,"2025-06-14","Z",46,"2025-06-14",1]
[null,null,null,null,null,null,null,null,null,null,null,null,null,null,null,null,null,null,null,null,null,null,null,null,null,null,null,null,null,null,"2025-06-15","T",47,"2025-06-15",1]
[null,null,null,null,null,null,null,null,null,null,null,null,null,null,null,null,null,null,null,null,null,null,null,null,null,null,null,null,null,null,"2025-06-16","U",47,"2025-06-16",1]
[null,null,null,null,null,null,null,null,null,null,null,null,null,null,null,null,null,null,null,null,null,null,null,null,null,null,null,null,null,null,"2025-06-17","V",47,{"$f":"IF(INDIRECT(AF367&AG367)=\"\",\"\",AE367)","v":"2025-06-17"},1]
[null,null,null,null,null,null,null,null,null,null,null,null,null,null,null,null,null,null,null,null,null,null,null,null,null,null,null,null,null,null,"2025-06-18","W",47,"2025-06-18",1]
[null,null,null,null,null,null,null,null,null,null,null,null,null,null,null,null,null,null,null,null,null,null,null,null,null,null,null,null,null,null,"2025-06-19","X",47,"2025-06-19",1]
[null,null,null,null,null,null,null,null,null,null,null,null,null,null,null,null,null,null,null,null,null,null,null,null,null,null,null,null,null,null,"2025-06-20","Y",47,"2025-06-20",1]
[null,null,null,null,null,null,null,null,null,null,null,null,null,null,null,null,null,null,null,null,null,null,null,null,null,null,null,null,null,null,"2025-06-21","Z",47,"2025-06-21",1]
[null,null,null,null,null,null,null,null,null,null,null,null,null,null,null,null,null,null,null,null,null,null,null,null,null,null,null,null,null,null,"2025-06-22","T",48,"2025-06-22",1]
[null,null,null,null,null,null,null,null,null,null,null,null,null,null,null,null,null,null,null,null,null,null,null,null,null,null,null,null,null,null,"2025-06-23","U",48,"2025-06-23",1]
[null,null,null,null,null,null,null,null,null,null,null,null,null,null,null,null,null,null,null,null,null,null,null,null,null,null,null,null,null,null,"2025-06-24","V",48,"2025-06-24",1]
[null,null,null,null,null,null,null,null,null,null,null,null,null,null,null,null,null,null,null,null,null,null,null,null,null,null,null,null,null,null,"2025-06-25","W",48,"2025-06-25",1]
[null,null,null,null,null,null,null,null,null,null,null,null,null,null,null,null,null,null,null,null,null,null,null,null,null,null,null,null,null,null,"2025-06-26","X",48,"2025-06-26",1]
[null,null,null,null,null,null,null,null,null,null,null,null,null,null,null,null,null,null,null,null,null,null,null,null,null,null,null,null,null,null,"2025-06-27","Y",48,"2025-06-27",1]
[null,null,null,null,null,null,null,null,null,null,null,null,null,null,null,null,null,null,null,null,null,null,null,null,null,null,null,null,null,null,"2025-06-28","Z",48,"2025-06-28",1]
[null,null,null,null,null,null,null,null,null,null,null,null,null,null,null,null,null,null,null,null,null,null,null,null,null,null,null,null,null,null,"2025-06-29","T",49,"2025-06-29",1]
[null,null,null,null,null,null,null,null,null,null,null,null,null,null,null,null,null,null,null,null,null,null,null,null,null,null,null,null,null,null,"2025-06-30","U",49,"2025-06-30",1]

{"sheet":"data","index":2,"n_rows":215,"n_cols":20,"rows_kept":215,"cut":false,"hidden":false,"merged":[]}
["DA OrgCode","Type","School_Name","Prog_Name","Rate_Annual","Rate_Daily","Total_Days","Start_Date","End_Date","State","Legacy Program Code","DA Org Name","DA Code + Legacy Code + Name","Summer (Y/N)","DA Code + Legacy Code + Name",null,null,null,"Leap Year (366 annual rate calculation)","Per Elena, we have to change 365 days per OSD to 366 days and adjust an annual rate only for the programs that run for a full year (366 days in FY24)"]
[]
[]
["09505001","Res Ed","American School for the Deaf","MA Educational/Residential",121303,673.92,180,null,null,"CT","5021E","American School for the Deaf: MA Educational/Residential",{"$f":"CONCATENATE($A4,\"-\",$K4, \"-\",$L4)","v":"09505001-5021E-American School for the Deaf: MA Educational/Residential"},{"$f":"IF(B4<>\"Summer\", \"No\", \"Yes\")","v":"No"},{"$f":"CONCATENATE($A4,\"-\",$K4, \"-\",$L4)","v":"09505001-5021E-American School for the Deaf: MA Educational/Residential"}," ",{"$f":"TRIM(A4)","v":"09505001"},null,{"$f":"IF(G4=366,366*F4,0)","v":0}]
["09505002","Day","American School for the Deaf","MA Educational/Day",84065,467.02777777777777,180,null,null,"CT","5021C","American School for the Deaf: MA Educational/Day",{"$f":"CONCATENATE($A5,\"-\",$K5, \"-\",$L5)","v":"09505002-5021C-American School for the Deaf: MA Educational/Day"},"No",{"$f":"CONCATENATE($A5,\"-\",$K5, \"-\",$L5)","v":"09505002-5021C-American School for the Deaf: MA Educational/Day"}," ","09505002",null,0]
["09505004","Day","American School for the Deaf","PACES Day Education 215",212895,990.20930232558135,215,null,null,"CT","5021O","American School for the Deaf: PACES Day Education 215","09505004-5021O-American School for the Deaf: PACES Day Education 215","No","09505004-5021O-American School for the Deaf: PACES Day Education 215"," ","09505004",null,0]
["09505005","Day","Seven Hills New Hampshire, Inc.","Seven Hills at Crotched Mountain Day Program",122501,556.82272727272732,220,null,null,"NH","6005B","Seven Hills New Hampshire, Inc.: Seven Hills at Crotched Mountain Day Program","09505005-6005B-Seven Hills New Hampshire, Inc.: Seven Hills at Crotched Mountain Day Program","No","09505005-6005B-Seven Hills New Hampshire, Inc.: Seven Hills at Crotched Mountain Day Program"," ","09505005",null,0]
["09505006","Res Ed","Seven Hills New Hampshire, Inc.","Seven Hills at Crotched Mountain Residential Program",289112,792.08767123287669,365,null,null,"NH","6005A","Seven Hills New Hampshire, Inc.: Seven Hills at Crotched Mountain Residential Program","09505006-6005A-Seven Hills New Hampshire, Inc.: Seven Hills at Crotched Mountain Residential Program","No","09505006-6005A-Seven Hills New Hampshire, Inc.: Seven Hills at Crotched Mountain Residential Program"," ","09505006",null,0]
["09505008","Res Ed","Easter Seals of New Hampshire","Easterseals Gammon Academy at Krol House - Regular",299493.76000000001,820.53084931506851,365,null,null,"NH","5338C","Easter Seals of New Hampshire: Easterseals Gammon Academy at Krol House - Regular","09505008-5338C-Easter Seals of New Hampshire: Easterseals Gammon Academy at Krol House - Regular","No","09505008-5338C-Easter Seals of New Hampshire: Easterseals Gammon Academy at Krol House - Regular"," ","09505008",null,0]
["09505009","Res Ed","Easter Seals of New Hampshire","Easterseals Gammon Academy at Zachary Road - Regular",414811.86,1136.4708493150686,365,null,null,"NH","5338E","Easter Seals of New Hampshire: Easterseals Gammon Academy at Zachary Road - Regular","09505009-5338E-Easter Seals of New Hampshire: Easterseals Gammon Academy at Zachary Road - Regular","No","09505009-5338E-Easter Seals of New Hampshire: Easterseals Gammon Academy at Zachary Road - Regular"," ","09505009",null,0]
["09505010","Res Ed","Easter Seals of New Hampshire","Easterseals Gammon Academy at Zachary Road - Intensive",570402.99,1562.7479178082192,365,null,null,"NH","5338F","Easter Seals of New Hampshire: Easterseals Gammon Academy at Zachary Road - Intensive","09505010-5338F-Easter Seals of New Hampshire: Easterseals Gammon Academy at Zachary Road - Intensive","No","09505010-5338F-Easter Seals of New Hampshire: Easterseals Gammon Academy at Zachary Road - Intensive"," ","09505010",null,0]
["09505012","Res Ed","Easter Seals of New Hampshire","Easterseals Gammon Academy at Lancaster- Regular ",403460.16,1105.370301369863,365,null,null,"NH","5338I","Easter Seals of New Hampshire: Easterseals Gammon Academy at Lancaster- Regular","09505012-5338I-Easter Seals of New Hampshire: Easterseals Gammon Academy at Lancaster- Regular","No","09505012-5338I-Easter Seals of New Hampshire: Easterseals Gammon Academy at Lancaster- Regular"," ","09505012",null,0]
["09505013","Res Ed","Easter Seals of New Hampshire","Easterseals Gammon Academy at Lancaster - Int.",599051.29,1641.2364109589041,365,null,null,"NH","5338J","Easter Seals of New Hampshire: Easterseals Gammon Academy at Lancaster - Intensive","09505013-5338J-Easter Seals of New Hampshire: Easterseals Gammon Academy at Lancaster - Intensive","No","09505013-5338J-Easter Seals of New Hampshire: Easterseals Gammon Academy at Lancaster - Intensive"," ","09505013",null,0]
["09505014","Day","Greenwood School","Greenwood School -Day",76400,499.34640522875816,153,null,null,"VT","5451B","Greenwood School: Greenwood School - Day Program","09505014-5451B-Greenwood School: Greenwood School - Day Program","No","09505014-5451B-Greenwood School: Greenwood School - Day Program"," ","09505014",null,0]
["09505017","Day","The learning Clinic, Inc.","Day",117964.77,515.13,229,null,null,"CT","5620B","The Learning Clinic, Inc.: Day","09505017-5620B-The Learning Clinic, Inc.: Day","No","09505017-5620B-The Learning Clinic, Inc.: Day"," ","09505017",null,0]
["09505018","Res Ed","The learning Clinic, Inc.","Residential",200089.77000000002,548.19115068493159,365,null,null,"CT","5620E","The Learning Clinic, Inc.: Residential","09505018-5620E-The Learning Clinic, Inc.: Residential","No","09505018-5620E-The Learning Clinic, Inc.: Residential"," ","09505018",null,0]
["09505019","Day","Learning Skills Academy, Inc.","Learning Skills Academy",64301.4,357.23,180,null,null,"NH","5625A","Learning Skills Academy, Inc.: Learning Skills Academy","09505019-5625A-Learning Skills Academy, Inc.: Learning Skills Academy","No","09505019-5625A-Learning Skills Academy, Inc.: Learning Skills Academy"," ","09505019",null,0]
["09505020","Day","Learning Skills Academy, Inc.","Summer",2794.88,174.68,16,null,null,"NH","5625B","Learning Skills Academy, Inc.: Summer","09505020-5625B-Learning Skills Academy, Inc.: Summer","No","09505020-5625B-Learning Skills Academy, Inc.: Summer"," ","09505020",null,0]
["09505021","Day","Meeting Street School","Basic",86317,403.35046728971963,214,null,null,"RI","5730A","Meeting Street School: Basic (Standard Rate and ESY)","09505021-5730A-Meeting Street School: Basic (Standard Rate and ESY)","No","09505021-5730A-Meeting Street School: Basic (Standard Rate and ESY)"," ","09505021",null,0]
["09505024","Day","The Home for Little Wanderers","Wediko School at The home for Little Wanderers",85707.54,386.07,222,null,null,"NH","5785H","The Home for Little Wanderers: Wediko School at the Home for Little Wanderers Day Program","09505024-5785H-The Home for Little Wanderers: Wediko School at the Home for Little Wanderers Day Program","No","09505024-5785H-The Home for Little Wanderers: Wediko School at the Home for Little Wanderers Day Program"," ","09505024",null,0]
["09505025","Day","Wolf School","Wolf School",69600,421.81818181818181,165,null,null,"RI","6263A","Wolf School: Wolf School","09505025-6263A-Wolf School: Wolf School","No","09505025-6263A-Wolf School: Wolf School"," ","09505025",null,0]
["09505028","Res Ed","Mount Prospect Academy","Mount Prospect Academy/Campton",376282.15,1030.9100000000001,365,null,null,"NH","6276H","Becket: Mount Prospect Academy/Campton","09505028-6276H-Becket: Mount Prospect Academy/Campton","No","09505028-6276H-Becket: Mount Prospect Academy/Campton"," ","09505028",null,0]
["09505029","Res Ed","Mount Prospect Academy","Mount Prospect Academy/Rummey",320167.05,877.17,365,null,null,"NH","6276I","Becket: Mount Prospect Academy/Rummey Program","09505029-6276I-Becket: Mount Prospect Academy/Rummey Program","No","09505029-6276I-Becket: Mount Prospect Academy/Rummey Program"," ","09505029",null,0]
["09505031","Res Ed","Mount Prospect Academy","Mount Prospect Academy/Warren",299745.3,821.22,365,null,null,"NH","6277B","Becket: Mount Prospect Academy/Warren Program","09505031-6277B-Becket: Mount Prospect Academy/Warren Program","No","09505031-6277B-Becket: Mount Prospect Academy/Warren Program"," ","09505031",null,0]
["09505034","Day","Lifespan School Solutions/Bradley Schools","Bradley School Portsmouth Program Standard Rate",64070,298,215,null,null,"RI","5341J","Lifespan School Solutions/Bradley Schools: Bradley School Portsmouth Program Standard Rate","09505034-5341J-Lifespan School Solutions/Bradley Schools: Bradley School Portsmouth Program Standard Rate","No","09505034-5341J-Lifespan School Solutions/Bradley Schools: Bradley School Portsmouth Program Standard Rate"," ","09505034",null,0]
["09505035","Day","Lifespan School Solutions/Bradley Schools","Bradley School Portsmouth Program Intensive Rate",77830,362,215,null,null,"RI","5341E","Lifespan School Solutions/Bradley Schools: Bradley School Portsmouth Program Intensive Rate","09505035-5341E-Lifespan School Solutions/Bradley Schools: Bradley School Portsmouth Program Intensive Rate","No","09505035-5341E-Lifespan School Solutions/Bradley Schools: Bradley School Portsmouth Program Intensive Rate"," ","09505035",null,0]
["09505037","Day","Lifespan School Solutions/Bradley Schools","Bradley School Providence Program Standard Rate",64070,298,215,null,null,"RI","5341B ","Lifespan School Solutions/Bradley Schools: Bradley School Providence Program Standard Rate","09505037-5341B -Lifespan School Solutions/Bradley Schools: Bradley School Providence Program Standard Rate","No","09505037-5341B -Lifespan School Solutions/Bradley Schools: Bradley School Providence Program Standard Rate"," ","09505037",null,0]
["09505038","Day","Lifespan School Solutions/Bradley Schools","Bradley School Providence Program  Intensive Rate",77830,362,215,null,null,"RI","5341D","Lifespan School Solutions/Bradley Schools: Bradley School Providence Program  Intensive Rate","09505038-5341D-Lifespan School Solutions/Bradley Schools: Bradley School Providence Program  Intensive Rate","No","09505038-5341D-Lifespan School Solutions/Bradley Schools: Bradley School Providence Program  Intensive Rate"," ","09505038",null,0]
["09505040","Day","Lifespan School Solutions/Bradley Schools","Partnership Standard Rate Bradley School Portsmouth Partnership Program",54180,252,215,null,null,"RI","5341P","Lifespan School Solutions/Bradley Schools: Partnership Standard Rate Bradley School Portsmouth Partnership Program","09505040-5341P-Lifespan School Solutions/Bradley Schools: Partnership Standard Rate Bradley School Portsmouth Partnership Program","No","09505040-5341P-Lifespan School Solutions/Bradley Schools: Partnership Standard Rate Bradley School Portsmouth Partnership Program"," ","09505040",null,0]
["09505041","Res Ed","Groden Center","Resid. Inten.",324638,889.41917808219182,365,null,null,"RI","5454C","Groden Center: Resid. Inten.","09505041-5454C-Groden Center: Resid. Inten.","No","09505041-5454C-Groden Center: Resid. Inten."," ","09505041",null,0]
["09505042","Day","Groden Center","Intensive Day Program Non Res Students (30 hours)",97939,447.21004566210047,219,null,null,"RI","5454E","Groden Center: Intensive Day Program Non Res Students (30 hours)","09505042-5454E-Groden Center: Intensive Day Program Non Res Students (30 hours)","No","09505042-5454E-Groden Center: Intensive Day Program Non Res Students (30 hours)"," ","09505042",null,0]
["09505043","Day","Groden Center","Intensive Day Program Res students  (33 3/4 hours) ",110181,503.10958904109589,219,null,null,"RI","5454B","Groden Center: Intensive Day Program Res students  (33 3/4 hours)","09505043-5454B-Groden Center: Intensive Day Program Res students  (33 3/4 hours)","No","09505043-5454B-Groden Center: Intensive Day Program Res students  (33 3/4 hours)"," ","09505043",null,0]
["09505044","Res Ed","Devereux Glenholme","Glenholme",197100,540,365,null,null,"CT","5324E","Devereux Glenholme: Glenholme Program","09505044-5324E-Devereux Glenholme: Glenholme Program","No","09505044-5324E-Devereux Glenholme: Glenholme Program"," ","09505044",null,0]
["09505046","Day","Meeting Street School","Standard rate with 1 to 1 ",154881,723.74299065420564,214,null,null,"RI","5730C","Meeting Street School: Standard Rate and ESY with 1:1","09505046-5730C-Meeting Street School: Standard Rate and ESY with 1:1","No","09505046-5730C-Meeting Street School: Standard Rate and ESY with 1:1"," ","09505046",null,0]
["09505047","Day","Mount Prospect Academy","Ashuelot Valley Academy",75158.600000000006,341.63,220,null,null,"NH","6277D","Becket: Ashuelot Valley Academy Program","09505047-6277D-Becket: Ashuelot Valley Academy Program","No","09505047-6277D-Becket: Ashuelot Valley Academy Program"," ","09505047",null,0]
["09505048","Res Ed","Mount Prospect Academy","Mount Prospect Academy/Hampton",395211.05,1082.77,365,null,null,"NH","6277A","Becket: Mount Prospect Academy/Hampton Program","09505048-6277A-Becket: Mount Prospect Academy/Hampton Program","No","09505048-6277A-Becket: Mount Prospect Academy/Hampton Program"," ","09505048",null,0]
["09505049","Res Ed","Grove","Grove School",167100,586.31578947368416,285,null,null,"CT","5472A","Grove School Program","09505049-5472A-Grove School Program","No","09505049-5472A-Grove School Program"," ","09505049",null,0]
["09505050","Res Ed","Vermont Permanency Initiative, Inc.","NESFG Green Meadows Subacute",337347.6,924.24,365,null,null,"VT","6276S ","Becket: NESFG Green Meadows Subacute Program","09505050-6276S -Becket: NESFG Green Meadows Subacute Program","No","09505050-6276S -Becket: NESFG Green Meadows Subacute Program"," ","09505050",null,0]
["09505051","Res Ed","Vermont Permanency Initiative, Inc.","NESFG Intensive Residential",222471.15,609.51,365,null,null,"VT","6276T ","Becket: NESFG Intensive Residential Program","09505051-6276T -Becket: NESFG Intensive Residential Program","No","09505051-6276T -Becket: NESFG Intensive Residential Program"," ","09505051",null,0]
["09505053","Day","Mount Prospect Academy","Squamscott River Academy at Mount Prospect",76720.600000000006,348.73,220,null,null,"NH","6277E","Becket: Squamscott River Academy at Mount Prospect Program","09505053-6277E-Becket: Squamscott River Academy at Mount Prospect Program","No","09505053-6277E-Becket: Squamscott River Academy at Mount Prospect Program"," ","09505053",null,0]
["09505054","Day","Chapel Haven Schleifer Center, Inc.","Chapel Haven Schleifer Center, Inc.",77500,352.27272727272725,220,null,null,"CT","5241A","Chapel Haven Schleifer Center, Inc. Program","09505054-5241A-Chapel Haven Schleifer Center, Inc. Program","No","09505054-5241A-Chapel Haven Schleifer Center, Inc. Program"," ","09505054",null,0]
["09505055","Day","American School for the Deaf","PACES 180 Day Education",178237,990.20555555555552,180,null,null,"CT","5021L","American School for the Deaf: PACES 180 Day Education","09505055-5021L-American School for the Deaf: PACES 180 Day Education","No","09505055-5021L-American School for the Deaf: PACES 180 Day Education"," ","09505055",null,0]
["09505056","Res Ed","American School for the Deaf","PACES 180 Day Education/180 Residential",278833,1549.0759689922479,180,null,null,"CT","5021M","American School for the Deaf: PACES 180 Day Education/180 Residential","09505056-5021M-American School for the Deaf: PACES 180 Day Education/180 Residential","No","09505056-5021M-American School for the Deaf: PACES 180 Day Education/180 Residential"," ","09505056",null,0]
["09505057","Res Ed","American School for the Deaf","PACES 180 Day Residential",100596,558.86666666666667,180,null,null,"CT","5021N","American School for the Deaf: PACES 180 Day Residential","09505057-5021N-American School for the Deaf: PACES 180 Day Residential","No","09505057-5021N-American School for the Deaf: PACES 180 Day Residential"," ","09505057",null,0]
["09505058","Res Ed","American School for the Deaf","PACES 365 Res/PACES Day 215",498321.4,1365.2641095890413,365,null,null,"CT","5021G","American School for the Deaf: PACES 365 Res/PACES Day 215","09505058-5021G-American School for the Deaf: PACES 365 Res/PACES Day 215","No","09505058-5021G-American School for the Deaf: PACES 365 Res/PACES Day 215"," ","09505058",null,0]
["09505059","Res Ed","American School for the Deaf","PACES Day Residential 365",285426,781.98904109589046,365,null,null,"CT","5021P","American School for the Deaf: PACES Day Residential 365","09505059-5021P-American School for the Deaf: PACES Day Residential 365","No","09505059-5021P-American School for the Deaf: PACES Day Residential 365"," ","09505059",null,0]
["09505060","Res Ed","Mount Prospect Academy","Mount Prospect Academy/ Plymouth Cast",261172.09999999998,715.54,365,null,null,"NH","6277C","Becket: Mount Prospect Academy/ Plymouth Cast","09505060-6277C-Becket: Mount Prospect Academy/ Plymouth Cast","No","09505060-6277C-Becket: Mount Prospect Academy/ Plymouth Cast"," ","09505060",null,0]
["09505061","Res Ed","Mount Prospect Academy","Mount Prospect Academy/Pike (Subacute)",414844.39999999997,1136.56,365,null,null,"NH","6276M","Becket: Mount Prospect Academy/Pike (Subacute) Program","09505061-6276M-Becket: Mount Prospect Academy/Pike (Subacute) Program","No","09505061-6276M-Becket: Mount Prospect Academy/Pike (Subacute) Program"," ","09505061",null,0]
["09505062","Res Ed","Mount Prospect Academy","Mount Prospect Academy/Pike -Hall",293821.34999999998,804.99,365,null,null,"NH","6276J","Becket: Mount Prospect Academy/Pike -Hall Program","09505062-6276J-Becket: Mount Prospect Academy/Pike -Hall Program","No","09505062-6276J-Becket: Mount Prospect Academy/Pike -Hall Program"," ","09505062",null,0]
["09505063","Res Ed","Mount Prospect Academy","Mount Prospect Academy/Plymouth- Summit ",310439.8,850.52,365,null,null,"NH","6276N","Becket: Mount Prospect Academy/Plymouth- Summit Program","09505063-6276N-Becket: Mount Prospect Academy/Plymouth- Summit Program","No","09505063-6276N-Becket: Mount Prospect Academy/Plymouth- Summit Program"," ","09505063",null,0]
["09505064","Res Ed","Bellefaire Jewish  Childrens Bureau","Monarch School",451517,1237.0328767123287,365,null,null,"OH","5121A","Bellefaire Jewish  Childrens Bureau: Monarch School","09505064-5121A-Bellefaire Jewish  Childrens Bureau: Monarch School","No","09505064-5121A-Bellefaire Jewish  Childrens Bureau: Monarch School"," ","09505064",null,0]
["09505065","Res Ed","Easter Seals of New Hampshire","Easterseals Gammon Academy at Krol House  - Int",455084.89,1246.8079178082191,365,null,null,"NH","5338D","Easter Seals of New Hampshire: Easterseals Gammon Academy at Krol House  - Intensive","09505065-5338D-Easter Seals of New Hampshire: Easterseals Gammon Academy at Krol House  - Intensive","No","09505065-5338D-Easter Seals of New Hampshire: Easterseals Gammon Academy at Krol House  - Intensive"," ","09505065",null,0]
["09505066","Res Ed","Easter Seals of New Hampshire","Easterseals Gammon Academy at Mammoth Road - Int",502527.59,1376.7879178082192,365,null,null,"NH","5338H","Easter Seals of New Hampshire: Easterseals Gammon Academy at Mammoth Road - Intensive","09505066-5338H-Easter Seals of New Hampshire: Easterseals Gammon Academy at Mammoth Road - Intensive","No","09505066-5338H-Easter Seals of New Hampshire: Easterseals Gammon Academy at Mammoth Road - Intensive"," ","09505066",null,0]
["09505067","Res Ed","Easter Seals of New Hampshire","Easterseals Gammon Academy at Mammoth Road - Regular",346936.46,950.51084931506853,365,null,null,"NH","5338G","Easter Seals of New Hampshire: Easterseals Gammon Academy at Mammoth Road - Regular","09505067-5338G-Easter Seals of New Hampshire: Easterseals Gammon Academy at Mammoth Road - Regular","No","09505067-5338G-Easter Seals of New Hampshire: Easterseals Gammon Academy at Mammoth Road - Regular"," ","09505067",null,0]
["09505068","Res Ed","Greenwood School","Greenwood School Boarding Program",99500,487.74509803921569,204,null,null,"VT","5451A","Greenwood School: Greenwood School Boarding Program","09505068-5451A-Greenwood School: Greenwood School Boarding Program","No","09505068-5451A-Greenwood School: Greenwood School Boarding Program"," ","09505068",null,0]
["09505069","Day","Lifespan School Solutions/Bradley Schools","Bradley School Clinical Intensive Program (used for both Bradley School Providence & Bradley School Portsmouth) Rate",86645,403,215,null,null,"RI","5341N","Lifespan School Solutions/Bradley Schools: Bradley School Clinical Intensive Program (used for both Bradley School Providence & Bradley School Portsmouth) Rate","09505069-5341N-Lifespan School Solutions/Bradley Schools: Bradley School Clinical Intensive Program (used for both Bradley School Providence & Bradley School Portsmouth) Rate","No","09505069-5341N-Lifespan School Solutions/Bradley Schools: Bradley School Clinical Intensive Program (used for both Bradley School Providence & Bradley School Portsmouth) Rate"," ","09505069",null,0]
["09505070","Day","Lifespan School Solutions/Bradley Schools","Bradley School North, Intensive Rate",77830,362,215,null,null,"RI","5341S","Lifespan School Solutions/Bradley Schools: Bradley School North, Intensive Rate","09505070-5341S-Lifespan School Solutions/Bradley Schools: Bradley School North, Intensive Rate","No","09505070-5341S-Lifespan School Solutions/Bradley Schools: Bradley School North, Intensive Rate"," ","09505070",null,0]
["09505071","Day","Lifespan School Solutions/Bradley Schools","Bradley School North, Standard Rate",64070,298,215,null,null,"RI","5341T","Lifespan School Solutions/Bradley Schools: Bradley School North, Standard Rate","09505071-5341T-Lifespan School Solutions/Bradley Schools: Bradley School North, Standard Rate","No","09505071-5341T-Lifespan School Solutions/Bradley Schools: Bradley School North, Standard Rate"," ","09505071",null,0]
["09505074","Res Ed/Day","The Home for Little Wanderers","Wediko School at The home for Little Wanderers",247577.74,678.2951780821918,365,null,null,"NH","5785I","The Home for Little Wanderers: Wediko School at the Home for Little Wanderers Residential Program","09505074-5785I-The Home for Little Wanderers: Wediko School at the Home for Little Wanderers Residential Program","No","09505074-5785I-The Home for Little Wanderers: Wediko School at the Home for Little Wanderers Residential Program"," ","09505074",null,0]
["09505077","Summer","Wolf School","Summer ",6700,335,20,null,null,"RI","6263B","Wolf School: Summer Program","09505077-6263B-Wolf School: Summer Program","Yes","09505077-6263B-Wolf School: Summer Program"," ","09505077",null,0]
["09505078","Day","Pathways","Pathways Strategic Teaching Center",111351.24,501.58216216216221,222,null,null,"RI","5885A","Pathways: Pathways Strategic Teaching Center","09505078-5885A-Pathways: Pathways Strategic Teaching Center","No","09505078-5885A-Pathways: Pathways Strategic Teaching Center"," ","09505078",null,0]
[50010101,"Res Ed","Amego","Autistic",311280.38,852.82,365,null,null,"MA","5017A","Amego School: Amego Residential Program","50010101-5017A-Amego School: Amego Residential Program","No","50010101-5017A-Amego School: Amego Residential Program"," ","50010101",null,0]
[50010102,"Day","Amego","Amego School Day ",155276.43,655.16999999999996,237,null,null,"MA","5017B","Amego School: Amego Day Program","50010102-5017B-Amego School: Amego Day Program","No","50010102-5017B-Amego School: Amego Day Program"," ","50010102",null,0]
[50040101,"Day","Justice Resource Institute","Bay Cove",100216.16,455.53,220,null,null,"MA","5112B","JRI Bay Cove School: JRI Bay Cove Academy Day Program","50040101-5112B-JRI Bay Cove School: JRI Bay Cove Academy Day Program","No","50040101-5112B-JRI Bay Cove School: JRI Bay Cove Academy Day Program"," ","50040101",null,0]
[50060101,"Day","Boston College Campus School","Campus School",119770.11,604.9,198,null,null,"MA","5157A","B C Campus School: BC Campus School Day Program","50060101-5157A-B C Campus School: BC Campus School Day Program","No","50060101-5157A-B C Campus School: BC Campus School Day Program"," ","50060101",null,0]
[50070101,"Day","Boston Higashi School","Day Education",101213.39,466.42,217,null,null,"MA","5154A","Boston Higashi School: Boston Higashi School Day Program","50070101-5154A-Boston Higashi School: Boston Higashi School Day Program","No","50070101-5154A-Boston Higashi School: Boston Higashi School Day Program"," ","50070101",null,0]
[50070102,"Res Ed","Boston Higashi School","Residential Ed.",0,0,304,null,null,"MA","5154B","Boston Higashi School: Boston Higashi School Residential Program","50070102-5154B-Boston Higashi School: Boston Higashi School Residential Program","No","50070102-5154B-Boston Higashi School: Boston Higashi School Residential Program"," ","50070102",null,0]
[50070103,"Res Ed","Boston Higashi School","Residential Ed. 365",297540.67,815.18,365,null,null,"MA","5154C","Boston Higashi School: Boston Higashi School 365 Residential Program","50070103-5154C-Boston Higashi School: Boston Higashi School 365 Residential Program",{"$f":"IF(B68<>\"Summer\", \"No\", \"Yes\")","v":"No"},"50070103-5154C-Boston Higashi School: Boston Higashi School 365 Residential Program"," ",{"$f":"TRIM(A68)","v":"50070103"},null,{"$f":"IF(G68=366,366*F68,0)","v":0}]
[50080101,"Day","Brandon Residential Treatment Center","Intensive Day",103846,480.77,216,null,null,"MA","5160C","Brandon School: Brandon Intensive Day Program",{"$f":"CONCATENATE($A69,\"-\",$K69, \"-\",$L69)","v":"50080101-5160C-Brandon School: Brandon Intensive Day Program"},"No",{"$f":"CONCATENATE($A69,\"-\",$K69, \"-\",$L69)","v":"50080101-5160C-Brandon School: Brandon Intensive Day Program"}," ","50080101",null,0]
[50080102,"Res Ed","Brandon Residential Treatment Center","Intensive Res.",264108.34999999998,723.58,365,null,null,"MA","5160D","Brandon School: Brandon Intensive Residential Program","50080102-5160D-Brandon School: Brandon Intensive Residential Program","No","50080102-5160D-Brandon School: Brandon Intensive Residential Program"," ","50080102",null,0]
[50110101,"Day","Broccoli Hall, Inc.","Corwin-Russell",66662.960000000006,370.35,180,null,null,"MA","5165A","Corwin-Russell School @ Broccoli Hall: Corwin-Russell Day Program","50110101-5165A-Corwin-Russell School @ Broccoli Hall: Corwin-Russell Day Program","No","50110101-5165A-Corwin-Russell School @ Broccoli Hall: Corwin-Russell Day Program"," ","50110101",null,0]
[50120101,"Day","Specialized Education Services, Inc.","High Road School of MA.",52420.83,291.23,180,null,null,"MA","5177G","High Road School of Massachusetts: High Road Day Program","50120101-5177G-High Road School of Massachusetts: High Road Day Program","No","50120101-5177G-High Road School of Massachusetts: High Road Day Program"," ","50120101",null,0]
[50120102,"Summer","Specialized Education Services, Inc.","High Road School of MA.",7702.89,320.95375000000001,24,null,null,"MA","5177H","High Road School of Massachusetts: High Road Summer Program","50120102-5177H-High Road School of Massachusetts: High Road Summer Program","Yes","50120102-5177H-High Road School of Massachusetts: High Road Summer Program"," ","50120102",null,0]
[50130101,"Day","Cardinal Cushing  Ctr.","Day/Vocational",121633.93,563.12,216,null,null,"MA","5296A","Cardinal Cushing Centers School - Hanover: Cardinal Cushing Centers Day Program","50130101-5296A-Cardinal Cushing Centers School - Hanover: Cardinal Cushing Centers Day Program","No","50130101-5296A-Cardinal Cushing Centers School - Hanover: Cardinal Cushing Centers Day Program"," ","50130101",null,0]
[50130102,"Day","Cardinal Cushing  Ctr.","Braintree St. Coletta",113837.69,527.03,216,null,null,"MA","6012A","Cardinal Cushing Centers School - Braintree: Cardinal Cushing Centers Braintree St. Coletta Day Program","50130102-6012A-Cardinal Cushing Centers School - Braintree: Cardinal Cushing Centers Braintree St. Coletta Day Program","No","50130102-6012A-Cardinal Cushing Centers School - Braintree: Cardinal Cushing Centers Braintree St. Coletta Day Program"," ","50130102",null,0]
[50130103,"Res Ed","Cardinal Cushing  Ctr.","Residential",317623.78999999998,870.2,365,null,null,"MA","5296C","Cardinal Cushing Centers School - Hanover: Cardinal Cushing Centers Residential Program","50130103-5296C-Cardinal Cushing Centers School - Hanover: Cardinal Cushing Centers Residential Program","No","50130103-5296C-Cardinal Cushing Centers School - Hanover: Cardinal Cushing Centers Residential Program"," ","50130103",null,0]
[50180101,"Day","Meeting Street School ","Schwartz Center Day",92171.19,417.06,221,null,null,"MA","6054A","Schwartz Center School: Schwartz Center Day Program","50180101-6054A-Schwartz Center School: Schwartz Center Day Program","No","50180101-6054A-Schwartz Center School: Schwartz Center Day Program"," ","50180101",null,0]
[50190201,"Day","Helix Human Services, Inc","Mill Pond Day Program",65440.62,302.97000000000003,216,null,null,"MA","5249A","Mill Pond School: Mill Pond Day Program","50190201-5249A-Mill Pond School: Mill Pond Day Program","No","50190201-5249A-Mill Pond School: Mill Pond Day Program"," ","50190201",null,0]
[50200101,"Day","Clarke School for the Deaf","Clarke School East",71860.539999999994,374.27,192,null,null,"MA","5257D","Clarke School East: Clarke School East Day Program","50200101-5257D-Clarke School East: Clarke School East Day Program","No","50200101-5257D-Clarke School East: Clarke School East Day Program"," ","50200101",null,0]
[50200201,"Day","Clarke School for the Deaf","Day Education",77116.63,428.43,180,null,null,"MA","5257A","Clarke School for the Deaf Northampton: Clarke School for the Deaf Day Program","50200201-5257A-Clarke School for the Deaf Northampton: Clarke School for the Deaf Day Program","No","50200201-5257A-Clarke School for the Deaf Northampton: Clarke School for the Deaf Day Program"," ","50200201",null,0]
[50200202,"Day","Clarke School for the Deaf","Preschool",65021.83,328.39,198,null,null,"MA","5257B","Clarke School: Clarke School for the Deaf Preschool Day Program","50200202-5257B-Clarke School: Clarke School for the Deaf Preschool Day Program","No","50200202-5257B-Clarke School: Clarke School for the Deaf Preschool Day Program"," ","50200202",null,0]
[50210101,"Day","Clearway School, Inc.","766 School",72267.41,401.49,180,null,null,"MA","5258A","Clearway School: Clearway Day Program","50210101-5258A-Clearway School: Clearway Day Program","No","50210101-5258A-Clearway School: Clearway Day Program"," ","50210101",null,0]
[50210102,"Summer","Clearway School, Inc.","Summer",7399.71,308.32,24,null,null,"MA","5258B","Clearway School: Clearway Summer Program","50210102-5258B-Clearway School: Clearway Summer Program","Yes","50210102-5258B-Clearway School: Clearway Summer Program"," ","50210102",null,0]
[50240001,"Summer","COMPASS, Inc.","Summer",9875.85,411.49,24,null,null,"MA","5110A","Compass School: Compass Summer Program","50240001-5110A-Compass School: Compass Summer Program","Yes","50240001-5110A-Compass School: Compass Summer Program"," ","50240001",null,0]
[50240101,"Day","COMPASS, Inc.","766 Day School",93770.95,520.95000000000005,180,null,null,"MA","5110C","Compass School: Compass Day Treatment & Education Program","50240101-5110C-Compass School: Compass Day Treatment & Education Program","No","50240101-5110C-Compass School: Compass Day Treatment & Education Program"," ","50240101",null,0]
[50240102,"Day","COMPASS, Inc.","Short Term Crisis",39203.35,217.8,180,null,null,"MA","5110B","Compass School: Compass Short Term Crisis Day Program","50240102-5110B-Compass School: Compass Short Term Crisis Day Program","No","50240102-5110B-Compass School: Compass Short Term Crisis Day Program"," ","50240102",null,0]
[50250101,"Day","Community Therapeutic Day School","Day School",102252.59,568.07000000000005,180,null,null,"MA","5265A","Community Therapeutic School: Community Therapeutic Day Program","50250101-5265A-Community Therapeutic School: Community Therapeutic Day Program","No","50250101-5265A-Community Therapeutic School: Community Therapeutic Day Program"," ","50250101",null,0]
[50250102,"Summer","Community Therapeutic Day School","Summer",9097.89,454.89,20,null,null,"MA","5265B","Community Therapeutic School: Community Therapaeutic Summer Program","50250102-5265B-Community Therapeutic School: Community Therapaeutic Summer Program","Yes","50250102-5265B-Community Therapeutic School: Community Therapaeutic Summer Program"," ","50250102",null,0]
[50260101,"Day","Cotting School, Inc.","Cotting Day",115271.14,640.4,180,null,null,"MA","5274A","Cotting School: Cotting Day Program","50260101-5274A-Cotting School: Cotting Day Program","No","50260101-5274A-Cotting School: Cotting Day Program"," ","50260101",null,0]
[50260102,"Summer","Cotting School, Inc.","Cotting Summer",9957.6200000000008,398.3,25,null,null,"MA","5274B","Cotting School: Cotting Summer Day Program","50260102-5274B-Cotting School: Cotting Summer Day Program","Yes","50260102-5274B-Cotting School: Cotting Summer Day Program"," ","50260102",null,0]
[50260105,"Res Ed","Cotting School, Inc.","HOPEhouse",{"$error":"#VALUE!"},{"$error":"#VALUE!"},180,null,null,"MA","5274E","Cotting School: Cotting HOPEhouse Residential Program","50260105-5274E-Cotting School: Cotting HOPEhouse Residential Program","No","50260105-5274E-Cotting School: Cotting HOPEhouse Residential Program"," ","50260105",null,0]
[50270101,"Day","Crossroads School  Children, Inc.","Crossroads School",157490.23000000001,696.86,226,null,null,"MA","5272A","Crossroads School: Crossroads Day Program","50270101-5272A-Crossroads School: Crossroads Day Program","No","50270101-5272A-Crossroads School: Crossroads Day Program"," ","50270101",null,0]
[50280101,"Day","Cutchins Programs for Children & Fam.","New Directions",98344.24,451.12,218,null,null,"MA","5811A","New Directions School: New Directions Day Program","50280101-5811A-New Directions School: New Directions Day Program","No","50280101-5811A-New Directions School: New Directions Day Program"," ","50280101",null,0]
[50290101,"Day","Devereux Foundation of Mass., Inc.","Day Program",77780.399999999994,360.09,216,null,null,"MA","5324P","Devereux Advanced Behavioral Health School: Devereux Day Program","50290101-5324P-Devereux Advanced Behavioral Health School: Devereux Day Program","No","50290101-5324P-Devereux Advanced Behavioral Health School: Devereux Day Program"," ","50290101",null,0]
[50290103,"Res Ed","Devereux Foundation of Mass., Inc.","West Meadow",256664.44,703.19,365,null,null,"MA","5324B","Devereux Advanced Behavioral Health School: Devereux Residential Program","50290103-5324B-Devereux Advanced Behavioral Health School: Devereux Residential Program","No","50290103-5324B-Devereux Advanced Behavioral Health School: Devereux Residential Program"," ","50290103",null,0]
[50300101,"Day ","RFK Community Alliance","Doctor Franklin Perkins School Day Program ",96353.84,441.99,218,null,null,"MA","5887B","Doctor Franklin Perkins School: Dr. Franklin Perkins Day Program","50300101-5887B-Doctor Franklin Perkins School: Dr. Franklin Perkins Day Program","No","50300101-5887B-Doctor Franklin Perkins School: Dr. Franklin Perkins Day Program"," ","50300101",null,0]
[50300102,"Res Ed","RFK Community Alliance","Doctor Franklin Perkins School Intensive Residential Program",283818.86,777.59,365,null,null,"MA","5887A","Doctor Franklin Perkins School: Dr. Franklin Perkins Residential Program","50300102-5887A-Doctor Franklin Perkins School: Dr. Franklin Perkins Residential Program","No","50300102-5887A-Doctor Franklin Perkins School: Dr. Franklin Perkins Residential Program"," ","50300102",null,0]
[50330101,"Res Ed","Evergreen Center, Inc.","BDU",318561.32,872.77,365,null,null,"MA","5385A","Evergreen Center School: Evergreen Center for Basic Skills Residential Program","50330101-5385A-Evergreen Center School: Evergreen Center for Basic Skills Residential Program","No","50330101-5385A-Evergreen Center School: Evergreen Center for Basic Skills Residential Program"," ","50330101",null,0]
[50330102,"Res Ed","Evergreen Center, Inc.","Multi H.",287967.68,788.95,365,null,null,"MA","5385B","Evergreen Center School: Evergreen Center for Behavior Development Residential Program","50330102-5385B-Evergreen Center School: Evergreen Center for Behavior Development Residential Program","No","50330102-5385B-Evergreen Center School: Evergreen Center for Behavior Development Residential Program"," ","50330102",null,0]
[50340001,"Day","F. L. Chamberlain School, Inc.","Day",130925.42,606.14,216,null,null,"MA","5238E","F. L. Chamberlain School: F.L. Chamberlain Day Program","50340001-5238E-F. L. Chamberlain School: F.L. Chamberlain Day Program","No","50340001-5238E-F. L. Chamberlain School: F.L. Chamberlain Day Program",null,"50340001",null,0]
[50340101,"Res Ed","F. L. Chamberlain School, Inc.","365 Day Residential",220404.77,603.85,365,null,null,"MA","5238F","F. L. Chamberlain School: Chamberlain International Residential Program","50340101-5238F-F. L. Chamberlain School: Chamberlain International Residential Program","No","50340101-5238F-F. L. Chamberlain School: Chamberlain International Residential Program"," ","50340101",null,0]
[50350101,"Res Ed","Fall River Deaconess, Inc.","Residential Program",253075.02,693.36,365,null,null,"MA","5303A","Fall River Deaconess Home School: Fall River Deaconess Home Residential Program","50350101-5303A-Fall River Deaconess Home School: Fall River Deaconess Home Residential Program","No","50350101-5303A-Fall River Deaconess Home School: Fall River Deaconess Home Residential Program"," ","50350101",null,0]
[50350102,"Day","Fall River Deaconess, Inc.","Day Program",89042.37,412.23,216,null,null,"MA","5303C","Fall River Deaconess Home School: Fall River Deaconess Home Day Program","50350102-5303C-Fall River Deaconess Home School: Fall River Deaconess Home Day Program","No","50350102-5303C-Fall River Deaconess Home School: Fall River Deaconess Home Day Program"," ","50350102",null,0]
[50360101,"Day","James Farr Academy","Farr Academy",116584.98,647.69000000000005,180,null,null,"MA","5381A","Farr Academy School: Farr Academy Day Program","50360101-5381A-Farr Academy School: Farr Academy Day Program","No","50360101-5381A-Farr Academy School: Farr Academy Day Program"," ","50360101",null,0]
[50360102,"Summer","James Farr Academy","Farr Academy Summer",10677.49,427.1,25,null,null,"MA","5381C","Farr Academy School: Farr Academy Summer Program","50360102-5381C-Farr Academy School: Farr Academy Summer Program","Yes","50360102-5381C-Farr Academy School: Farr Academy Summer Program"," ","50360102",null,0]
[50370101,"Day","Franciscan Children's Hospital","Kennedy Day",129052.06,645.26,200,null,null,"MA","5582A","Kennedy Day School: Kennedy Day Program","50370101-5582A-Kennedy Day School: Kennedy Day Program","No","50370101-5582A-Kennedy Day School: Kennedy Day Program"," ","50370101",null,0]
[50390101,"Day","Margaret Gifford School","Gifford School",82466.460000000006,458.15,180,null,null,"MA","5440A","Gifford School: Gifford Day Program","50390101-5440A-Gifford School: Gifford Day Program","No","50390101-5440A-Gifford School: Gifford Day Program"," ","50390101",null,0]
[50390102,"Summer","Margaret Gifford School","Gifford Summer",7617.42,380.87,20,null,null,"MA","5440B","Gifford School: Gifford Summer Program","50390102-5440B-Gifford School: Gifford Summer Program","Yes","50390102-5440B-Gifford School: Gifford Summer Program"," ","50390102",null,0]
[50410301,"Day","Beth Israel Lahey Health","Solstice Day Program",98139.02,454.35,216,null,null,"MA","6059A","Solstice School: Solstice Day Program","50410301-6059A-Solstice School: Solstice Day Program","No","50410301-6059A-Solstice School: Solstice Day Program"," ","50410301",null,0]
[50420001,"Day","Hillcrest Educational Centers, Inc.","Housatonic Academy",74687.63,345.78,216,null,null,"MA","5088F ","Hillcrest Educational Centers School: Hillcrest Academy Program","50420001-5088F -Hillcrest Educational Centers School: Hillcrest Academy Program","No","50420001-5088F -Hillcrest Educational Centers School: Hillcrest Academy Program"," ","50420001",null,0]
[50420101,"Res Ed","Hillcrest Educational Centers, Inc.","Autism Spectrum Disorders",466978.44,1279.3900000000001,365,null,null,"MA","5088G","Hillcrest Educational Centers School: Brookside Residential Program","50420101-5088G-Hillcrest Educational Centers School: Brookside Residential Program","No","50420101-5088G-Hillcrest Educational Centers School: Brookside Residential Program"," ","50420101",null,0]
[50420102,"Res Ed","Hillcrest Educational Centers, Inc.","Intensive Tx Unit",440427.34,1206.6500000000001,365,null,null,"MA","5088E","Hillcrest Educational Centers School: Highpoint Residential Program","50420102-5088E-Hillcrest Educational Centers School: Highpoint Residential Program","No","50420102-5088E-Hillcrest Educational Centers School: Highpoint Residential Program"," ","50420102",null,0]
[50420103,"Res Ed","Hillcrest Educational Centers, Inc.","Hillcrest Centers",341761.37,936.33,365,null,null,"MA","5088D","Hillcrest Educational Centers School: Hillcrest Center Residential Program","50420103-5088D-Hillcrest Educational Centers School: Hillcrest Center Residential Program","No","50420103-5088D-Hillcrest Educational Centers School: Hillcrest Center Residential Program"," ","50420103",null,0]
[50420104,"Day","Hillcrest Educational Centers, Inc.","Hillcrest Inten -Day program",150616.18,697.3,216,null,null,"MA","5088H","Hillcrest Educational Centers School: Hillcrest Academy Intensive Day Program","50420104-5088H-Hillcrest Educational Centers School: Hillcrest Academy Intensive Day Program","No","50420104-5088H-Hillcrest Educational Centers School: Hillcrest Academy Intensive Day Program"," ","50420104",null,0]
[50440101,"Day","Home for Little Wanderers","Southeast Campus Day",120818.44,559.34,216,null,null,"MA","5095B","The COVE School: The COVE School Day School","50440101-5095B-The COVE School: The COVE School Day School","No","50440101-5095B-The COVE School: The COVE School Day School"," ","50440101",null,0]
[50440102,"Res Ed","Home for Little Wanderers","Southeast Campus Res.",304957.89,835.5,365,null,null,"MA","5095A","The COVE School: The COVE School Residential Program","50440102-5095A-The COVE School: The COVE School Residential Program","No","50440102-5095A-The COVE School: The COVE School Residential Program"," ","50440102",null,0]
[50440401,"Res Ed","Home for Little Wanderers","Clifford Res",286226.55,784.18,365,null,null,"MA","5785F","Clifford Academy: Clifford Academy Residential Program","50440401-5785F-Clifford Academy: Clifford Academy Residential Program","No","50440401-5785F-Clifford Academy: Clifford Academy Residential Program"," ","50440401",null,0]
[50440402,"Day","Home for Little Wanderers","Clifford Day",106041.72,589.12,180,null,null,"MA","5785E","Clifford Academy: Clifford Academy Day Program","50440402-5785E-Clifford Academy: Clifford Academy Day Program","No","50440402-5785E-Clifford Academy: Clifford Academy Day Program"," ","50440402",null,0]
[50440403,"Summer","Home for Little Wanderers","Clifford Academy 36 Day",14139.97,392.78,36,null,null,"MA","5785G","Clifford Academy: Clifford Academy Summer Program","50440403-5785G-Clifford Academy: Clifford Academy Summer Program","Yes","50440403-5785G-Clifford Academy: Clifford Academy Summer Program"," ","50440403",null,0]
[50450101,"Res Ed","Crystal Springs, Inc.","Main Program",369298.8,1011.78,365,null,null,"MA","5297A","Crystal Springs School: Crystal Springs Residential Program","50450101-5297A-Crystal Springs School: Crystal Springs Residential Program","No","50450101-5297A-Crystal Springs School: Crystal Springs Residential Program"," ","50450101",null,0]
[50460101,"Day","Italian Home for Children, Inc.","Italian Home Day",109656,498.44,220,null,null,"MA","5534B","Italian Home For Children: Italian Home for Children Day Program","50460101-5534B-Italian Home For Children: Italian Home for Children Day Program","No","50460101-5534B-Italian Home For Children: Italian Home for Children Day Program"," ","50460101",null,0]
[50470101,"Day","Judge Baker Children's Center, Inc.","Manville",137712.64000000001,765.07,180,null,null,"MA","5097A","Manville School: Manville School Day Program","50470101-5097A-Manville School: Manville School Day Program","No","50470101-5097A-Manville School: Manville School Day Program"," ","50470101",null,0]
[50470102,"Summer","Judge Baker Children's Center, Inc.","Manville-Summer",11902.87,595.14,20,null,null,"MA","5097B","Manville School: Manville School Summer Program","50470102-5097B-Manville School: Manville School Summer Program","Yes","50470102-5097B-Manville School: Manville School Summer Program"," ","50470102",null,0]
[50480101,"Res Ed","Judge Rotenberg Educational Center","Judge Rotenberg",347793.47,952.86,365,null,null,"MA","5120A","Judge Rotenberg School: Judge Rotenberg Residential Program","50480101-5120A-Judge Rotenberg School: Judge Rotenberg Residential Program","No","50480101-5120A-Judge Rotenberg School: Judge Rotenberg Residential Program"," ","50480101",null,0]
[50490101,"Res Ed","Justice Resource Institute","Berkshire Meadows",296798.77,813.15,365,null,null,"MA","5127C","JRI Berkshire Meadows: JRI Berkshire Meadows Program","50490101-5127C-JRI Berkshire Meadows: JRI Berkshire Meadows Program","No","50490101-5127C-JRI Berkshire Meadows: JRI Berkshire Meadows Program"," ","50490101",null,0]
[50490102,"Res Ed","Justice Resource Institute","Littleton Academy",337921.97,925.81,365,null,null,"MA","5127E","JRI Littleton Academy Residential Program: JRI Meadowridge Littleton Academy Campus","50490102-5127E-JRI Littleton Academy Residential Program: JRI Meadowridge Littleton Academy Campus","No","50490102-5127E-JRI Littleton Academy Residential Program: JRI Meadowridge Littleton Academy Campus"," ","50490102",null,0]
[50490501,"Day","Justice Resource Institute","Victor School",73812.39,341.72,216,null,null,"MA","5127D","JRI The Victor School: JRI The Victor School Program","50490501-5127D-JRI The Victor School: JRI The Victor School Program","No","50490501-5127D-JRI The Victor School: JRI The Victor School Program"," ","50490501",null,0]
[50490601,"Res Ed","Justice Resource Institute","Meadowridge",267155.28000000003,731.93,365,null,null,"MA","5997F","JRI Meadowridge Academy School: JRI Meadowridge Academy","50490601-5997F-JRI Meadowridge Academy School: JRI Meadowridge Academy","No","50490601-5997F-JRI Meadowridge Academy School: JRI Meadowridge Academy"," ","50490601",null,0]
[50490701,"Day","Justice Resource Institute","Anchor Academy",71459.23,360.91,198,null,null,"MA","5992D","JRI Anchor Academy School - Middleborough: JRI Anchor Academy Day Program - Middleborough","50490701-5992D-JRI Anchor Academy School - Middleborough: JRI Anchor Academy Day Program - Middleborough","No","50490701-5992D-JRI Anchor Academy School - Middleborough: JRI Anchor Academy Day Program - Middleborough",null,"50490701",null,0]
[50530101,"Day","Landmark Foundation","Landmark Day",72078.070000000007,400.43,180,null,null,"MA","5607A","Landmark School: Landmark Day Program","50530101-5607A-Landmark School: Landmark Day Program","No","50530101-5607A-Landmark School: Landmark Day Program"," ","50530101",null,0]
[50530102,"Res Ed","Landmark Foundation","Landmark Residential",95828.87,399.29,240,null,null,"MA","5607B","Landmark School: Landmark Residential Program","50530102-5607B-Landmark School: Landmark Residential Program","No","50530102-5607B-Landmark School: Landmark Residential Program"," ","50530102",null,0]
[50540101,"Res Ed","Latham Centers, Inc.","Intensive",313638.5,859.28,365,null,null,"MA","5957C","Latham School: Latham Intensive Residential Program","50540101-5957C-Latham School: Latham Intensive Residential Program",{"$f":"IF(B132<>\"Summer\", \"No\", \"Yes\")","v":"No"},"50540101-5957C-Latham School: Latham Intensive Residential Program"," ",{"$f":"TRIM(A132)","v":"50540101"},null,{"$f":"IF(G132=366,366*F132,0)","v":0}]
[50550101,"Day","League School of Boston","Day Ed",131756.93,609.99,216,null,null,"MA","5614A","League School: League School Day Program",{"$f":"CONCATENATE($A133,\"-\",$K133, \"-\",$L133)","v":"50550101-5614A-League School: League School Day Program"},"No",{"$f":"CONCATENATE($A133,\"-\",$K133, \"-\",$L133)","v":"50550101-5614A-League School: League School Day Program"}," ","50550101",null,0]
[50550102,"Res Ed","League School of Boston","Fine House",281304.43,770.7,365,null,null,"MA","5614B","League School: League School Residential Program","50550102-5614B-League School: League School Residential Program","No","50550102-5614B-League School: League School Residential Program"," ","50550102",null,0]
[50560105,"Day","Learning Ctr. for the Deaf","Day",101177.95,511,198,null,null,"MA","5617G","The Learning Center for the Deaf School: TLCD Marie Philip Day Program","50560105-5617G-The Learning Center for the Deaf School: TLCD Marie Philip Day Program","No","50560105-5617G-The Learning Center for the Deaf School: TLCD Marie Philip Day Program"," ","50560105",null,0]
[50560202,"Day","Learning Ctr. for the Deaf","Intensive Day",112120.67,566.27,198,null,null,"MA","5617H","The Learning Center for the Deaf School: TLCD Marie Philip Intensive Day Program","50560202-5617H-The Learning Center for the Deaf School: TLCD Marie Philip Intensive Day Program","No","50560202-5617H-The Learning Center for the Deaf School: TLCD Marie Philip Intensive Day Program"," ","50560202",null,0]
[50560203,"Res Ed","Learning Ctr. for the Deaf","Residential",145432.62,734.51,198,null,null,"MA","5617I","The Learning Center for the Deaf School: TLCD Marie Philip Residential Program","50560203-5617I-The Learning Center for the Deaf School: TLCD Marie Philip Residential Program","No","50560203-5617I-The Learning Center for the Deaf School: TLCD Marie Philip Residential Program"," ","50560203",null,0]
[50560204,"Res Ed","Learning Ctr. for the Deaf","Walden",503703.54,1380.01,365,null,null,"MA","5617B","The Learning Center for the Deaf School: TLCD Marie Philip Walden School Residential Program","50560204-5617B-The Learning Center for the Deaf School: TLCD Marie Philip Walden School Residential Program","No","50560204-5617B-The Learning Center for the Deaf School: TLCD Marie Philip Walden School Residential Program"," ","50560204",null,0]
[50560205,"Day ","Learning Ctr. for the Deaf","Walden",187581.74,868.43,216,null,null,"MA","5617J","The Learning Center for the Deaf School: TLCD Marie Phillip Walden School Day Program","50560205-5617J-The Learning Center for the Deaf School: TLCD Marie Phillip Walden School Day Program","No","50560205-5617J-The Learning Center for the Deaf School: TLCD Marie Phillip Walden School Day Program"," ","50560205",null,0]
[50570101,"Day","Lighthouse School","Comp. Services Prog.",131793.51999999999,732.19,180,null,null,"MA","5498B","Lighthouse School: Lighthouse Comprehensive Day School","50570101-5498B-Lighthouse School: Lighthouse Comprehensive Day School","No","50570101-5498B-Lighthouse School: Lighthouse Comprehensive Day School"," ","50570101",null,0]
[50580101,"Day","Little People's School","Learning Prep School",71635.05,397.97,180,null,null,"MA","5643A","Learning Prep School: Learning Prep School Day Program","50580101-5643A-Learning Prep School: Learning Prep School Day Program","No","50580101-5643A-Learning Prep School: Learning Prep School Day Program"," ","50580101",null,0]
[50590101,"Res Ed","MAB Community Services","IVY Street School",315546.09999999998,864.51,365,null,null,"MA","5685B","Ivy Street School: Ivy Street Residential Program","50590101-5685B-Ivy Street School: Ivy Street Residential Program","No","50590101-5685B-Ivy Street School: Ivy Street Residential Program"," ","50590101",null,0]
[50590102,"Day","MAB Community Services","IVY Street School Day Program",145672.26,604.45000000000005,241,null,null,"MA","5685C","Ivy Street School: Ivy Street Day Program","50590102-5685C-Ivy Street School: Ivy Street Day Program","No","50590102-5685C-Ivy Street School: Ivy Street Day Program"," ","50590102",null,0]
[50600101,"Day","Mass. Found. for Learning Disabilities","White Oak School",61419.839999999997,341.22,180,null,null,"MA","5049A","White Oak School: White Oak Day Program","50600101-5049A-White Oak School: White Oak Day Program","No","50600101-5049A-White Oak School: White Oak Day Program"," ","50600101",null,0]
[50610101,"Day","Justice Resource Institute"," Granite Day Ed",85315.63,422.35,202,null,null,"MA","5695A","JRI Granite Academy School: JRI Granite Academy Day Program","50610101-5695A-JRI Granite Academy School: JRI Granite Academy Day Program","No","50610101-5695A-JRI Granite Academy School: JRI Granite Academy Day Program"," ","50610101",null,0]
[50620101,"Res Ed","May Institute","Randolph Res.",318254.94,871.93,365,null,null,"MA","5706B","May Center School for Autism and Developmental Disabilities (Randolph): The May Center School for Autism and Developmental Disabilities - Randolph Residential","50620101-5706B-May Center School for Autism and Developmental Disabilities (Randolph): The May Center School for Autism and Developmental Disabilities - Randolph Residential","No","50620101-5706B-May Center School for Autism and Developmental Disabilities (Randolph): The May Center School for Autism and Developmental Disabilities - Randolph Residential"," ","50620101",null,0]
[50620301,"Day","May Institute","Norwood Rehabilitative ",153727.25,654.16,235,null,null,"MA","5706G","The May Center School for Brain Injury and Neurobehavioral Disorders â€“ Norwood: The May Center School for Brain Injury and Neurobehavioral Disorders - Norwood Day Program","50620301-5706G-The May Center School for Brain Injury and Neurobehavioral Disorders â€“ Norwood: The May Center School for Brain Injury and Neurobehavioral Disorders - Norwood Day Program","No","50620301-5706G-The May Center School for Brain Injury and Neurobehavioral Disorders â€“ Norwood: The May Center School for Brain Injury and Neurobehavioral Disorders - Norwood Day Program"," ","50620301",null,0]
[50620302,"Res Ed","May Institute","Norwood Rehabilitative ",333612.49,914.01,365,null,null,"MA","5706H","The May Center School for Brain Injury and Neurobehavioral Disorders â€“ Norwood: The May Center School for Brain Injury and Neurobehavioral Disorders - Norwood Residential Program","50620302-5706H-The May Center School for Brain Injury and Neurobehavioral Disorders â€“ Norwood: The May Center School for Brain Injury and Neurobehavioral Disorders - Norwood Residential Program","No","50620302-5706H-The May Center School for Brain Injury and Neurobehavioral Disorders â€“ Norwood: The May Center School for Brain Injury and Neurobehavioral Disorders - Norwood Residential Program"," ","50620302",null,0]
[50620401,"Day","May Institute","West Springfield",156195.29999999999,703.58,222,null,null,"MA","5706N","The May Center School for Autism and Developmental Disabilities - Chicopee and West Springfield: The May Center School for Autism and Developmental Disabilities - Chicopee and West Springfield","50620401-5706N-The May Center School for Autism and Developmental Disabilities - Chicopee and West Springfield: The May Center School for Autism and Developmental Disabilities - Chicopee and West Springfield","No","50620401-5706N-The May Center School for Autism and Developmental Disabilities - Chicopee and West Springfield: The May Center School for Autism and Developmental Disabilities - Chicopee and West Springfield"," ","50620401",null,0]
[50620402,"Day","May Institute","Randolph Day",153054.35999999999,651.29999999999995,235,null,null,"MA","5706E","May Center School for Autism and Developmental Disabilities (Randolph): May Center School for Autism and Developmental Disabilities - Randolph Day and Wilmington Day","50620402-5706E-May Center School for Autism and Developmental Disabilities (Randolph): May Center School for Autism and Developmental Disabilities - Randolph Day and Wilmington Day","No","50620402-5706E-May Center School for Autism and Developmental Disabilities (Randolph): May Center School for Autism and Developmental Disabilities - Randolph Day and Wilmington Day"," ","50620402",null,0]
[50630001,"Day","McAuley Nazareth Inc.","Nazareth Day",45062.5,208.62,216,null,null,"MA","5709A","McAuley Nazareth School: McAuley Nazareth Day Program","50630001-5709A-McAuley Nazareth School: McAuley Nazareth Day Program","No","50630001-5709A-McAuley Nazareth School: McAuley Nazareth Day Program"," ","50630001",null,0]
[50630101,"Res Ed","McAuley Nazareth Inc.","McAuley Nazareth",196816.52,539.22,365,null,null,"MA","5709B","McAuley Nazareth School: McAuley Nazareth Residential Program","50630101-5709B-McAuley Nazareth School: McAuley Nazareth Residential Program","No","50630101-5709B-McAuley Nazareth School: McAuley Nazareth Residential Program"," ","50630101",null,0]
[50640101,"Day","Mass General Brigham Inc.  and Affiliates\" AKA McLean","Arlington-Academy",93671.25,473.09,198,null,null,"MA","5036A","Arlington School: Arlington Day Program","50640101-5036A-Arlington School: Arlington Day Program","No","50640101-5036A-Arlington School: Arlington Day Program"," ","50640101",null,0]
[50640201,"Day","Mass General Brigham Inc.  and Affiliates AKA McLean","CNS",136060.1,629.91,216,null,null,"MA","5036I","CNS/Pathways Academy: Center for Neuronintegrative Services (CNS Pathways Academy) Program","50640201-5036I-CNS/Pathways Academy: Center for Neuronintegrative Services (CNS Pathways Academy) Program","No","50640201-5036I-CNS/Pathways Academy: Center for Neuronintegrative Services (CNS Pathways Academy) Program"," ","50640201",null,0]
[50650101,"Day","Melmark Home, Inc.","Melmark Day",150257.62,634,237,null,null,"MA","5710C","Melmark New England School: Melmark Day Program","50650101-5710C-Melmark New England School: Melmark Day Program","No","50650101-5710C-Melmark New England School: Melmark Day Program"," ","50650101",null,0]
[50650102,"Res Ed","Melmark Home, Inc.","Melmark N.E.",354283.45,970.64,365,null,null,"MA","5710B","Melmark New England School: Melmark Residential Program","50650102-5710B-Melmark New England School: Melmark Residential Program","No","50650102-5710B-Melmark New England School: Melmark Residential Program"," ","50650102",null,0]
[50670101,"Day","Nashoba Learning Group, Inc.","Nashoba Learning ",142995.37,638.37,224,null,null,"MA","5752A","Nashoba Learning Group: Nashoba Day Program","50670101-5752A-Nashoba Learning Group: Nashoba Day Program","No","50670101-5752A-Nashoba Learning Group: Nashoba Day Program"," ","50670101",null,0]
[50680101,"Day","N. E. Adolescent Research Institute","N.E.A.R.I.",105428.11,479.22,220,null,null,"MA","5760A","N.E.A.R.I. School: NEARI Day Program","50680101-5760A-N.E.A.R.I. School: NEARI Day Program","No","50680101-5760A-N.E.A.R.I. School: NEARI Day Program"," ","50680101",null,0]
[50690102,"Day","New England Center for Children","Intensive Instruction",156954.84,694.49,226,null,null,"MA","5343D","New England Center for Children School: NECC Intensive Instruction Day Program","50690102-5343D-New England Center for Children School: NECC Intensive Instruction Day Program","No","50690102-5343D-New England Center for Children School: NECC Intensive Instruction Day Program"," ","50690102",null,0]
[50690103,"Res Ed","New England Center for Children","Intermediate",421220.59,1154.03,365,null,null,"MA","5343E","New England Center for Children School: NECC Intermediate Residential Program","50690103-5343E-New England Center for Children School: NECC Intermediate Residential Program","No","50690103-5343E-New England Center for Children School: NECC Intermediate Residential Program"," ","50690103",null,0]
[50690104,"Res Ed","New England Center for Children","N.E.C.C. Residen",312921.24,857.32,365,null,null,"MA","5343B","New England Center for Children School: NECC Residential Program","50690104-5343B-New England Center for Children School: NECC Residential Program","No","50690104-5343B-New England Center for Children School: NECC Residential Program"," ","50690104",null,0]
[50690105,"Res Ed","New England Center for Children","N.E.C.C. Severe",455372.43,1247.5999999999999,365,null,null,"MA","5343C","New England Center for Children School: NECC Severe Residential Program","50690105-5343C-New England Center for Children School: NECC Severe Residential Program","No","50690105-5343C-New England Center for Children School: NECC Severe Residential Program"," ","50690105",null,0]
[50700101,"Day","New England Long Term Care","NELTC Day Progrram ",80665.259999999995,321.38,251,null,null,"MA","5113A","NE Pediatric School: N.E. Pediatric Day Program","50700101-5113A-NE Pediatric School: N.E. Pediatric Day Program","No","50700101-5113A-NE Pediatric School: N.E. Pediatric Day Program"," ","50700101",null,0]
[50760101,"Day","Perkins School for the Blind","Day Program",171055.39,834.42,205,null,null,"MA","5889O","Perkins School for Blind: Perkins Day Program","50760101-5889O-Perkins School for Blind: Perkins Day Program","No","50760101-5889O-Perkins School for Blind: Perkins Day Program"," ","50760101",null,0]
[50760102,"Res Ed","Perkins School for the Blind","Residential Program",334167.78000000003,1180.8,283,null,null,"MA","5889P","Perkins School for Blind: Perkins Residential Program","50760102-5889P-Perkins School for Blind: Perkins Residential Program","No","50760102-5889P-Perkins School for Blind: Perkins Residential Program"," ","50760102",null,0]
[50760105,"Day","Perkins School for the Blind","Intermediate Day Program",221732.37,1081.6199999999999,205,null,null,"MA","5889S","Perkins School for Blind: Perkins Intermediate Day Program","50760105-5889S-Perkins School for Blind: Perkins Intermediate Day Program","No","50760105-5889S-Perkins School for Blind: Perkins Intermediate Day Program"," ","50760105",null,0]
[50760106,"Res Ed","Perkins School for the Blind","Intermediate Res.",421662.15,1489.97,283,null,null,"MA","5889T","Perkins School for Blind: Perkins Intermediate Residential Program","50760106-5889T-Perkins School for Blind: Perkins Intermediate Residential Program","No","50760106-5889T-Perkins School for Blind: Perkins Intermediate Residential Program"," ","50760106",null,0]
[50760107,"Day","Perkins School for the Blind","Intensive Day Program",255749.95,1247.56,205,null,null,"MA","5889U","Perkins School for Blind: Perkins Intensive Day Program","50760107-5889U-Perkins School for Blind: Perkins Intensive Day Program","No","50760107-5889U-Perkins School for Blind: Perkins Intensive Day Program"," ","50760107",null,0]
[50760108,"Res Ed","Perkins School for the Blind","Intensive Residential Program",491491.23,1736.72,283,null,null,"MA","5889V","Perkins School for Blind: Perkins Intensive Residential Program","50760108-5889V-Perkins School for Blind: Perkins Intensive Residential Program","No","50760108-5889V-Perkins School for Blind: Perkins Intensive Residential Program"," ","50760108",null,0]
[50770101,"Day","Professional Ctr. for Child Development","Day Program",130972.12,661.48,198,null,null,"MA","5253A","Anderson School: Anderson School Day Program","50770101-5253A-Anderson School: Anderson School Day Program","No","50770101-5253A-Anderson School: Anderson School Day Program"," ","50770101",null,0]
[50780101,"Day","Guild for Human Services","Learning Center Day",178896.63,764.52,234,null,null,"MA","5915A","The Guild for Human Services School: The Guild for Human Services Day Program","50780101-5915A-The Guild for Human Services School: The Guild for Human Services Day Program","No","50780101-5915A-The Guild for Human Services School: The Guild for Human Services Day Program"," ","50780101",null,0]
[50780102,"Res Ed","Guild for Human Services","Learning Center Res",390813.21,1070.72,365,null,null,"MA","5915B","The Guild for Human Services School: The Guild for Human Services Residential Program","50780102-5915B-The Guild for Human Services School: The Guild for Human Services Residential Program","No","50780102-5915B-The Guild for Human Services School: The Guild for Human Services Residential Program"," ","50780102",null,0]
[50800001,"Day","Camp Sunshine Day","Reed Academy Day",109764.55,508.17,216,null,null,"MA","5947C","Reed Academy School: Reed Academy Day Program","50800001-5947C-Reed Academy School: Reed Academy Day Program","No","50800001-5947C-Reed Academy School: Reed Academy Day Program"," ","50800001",null,0]
[50810101,"Res Ed","Riverview School","Riverview",109473.77,448.66,244,null,null,"MA","5975B","Riverview School: Riverview School Residential Program","50810101-5975B-Riverview School: Riverview School Residential Program","No","50810101-5975B-Riverview School: Riverview School Residential Program"," ","50810101",null,0]
[50810102,"Day","Riverview School","Riverview Day",63500.59,352.78,180,null,null,"MA","5975A","Riverview School: Riverview School Day Program","50810102-5975A-Riverview School: Riverview School Day Program","No","50810102-5975A-Riverview School: Riverview School Day Program"," ","50810102",null,0]
[50820101,"Day","RFK Community Alliance","RFK Academy Day Program",88461.59,409.54,216,null,null,"MA","5365A","RFK Academy School: RFK Academy Day Program","50820101-5365A-RFK Academy School: RFK Academy Day Program","No","50820101-5365A-RFK Academy School: RFK Academy Day Program"," ","50820101",null,0]
[50820202,"Day","RFK Community Alliance","Don Watson Academy Day Program",91364.78,422.99,216,null,null,"MA","6252B","RFK Don Watson Academy: RFK Don Watson Academy Day Program","50820202-6252B-RFK Don Watson Academy: RFK Don Watson Academy Day Program","No","50820202-6252B-RFK Don Watson Academy: RFK Don Watson Academy Day Program"," ","50820202",null,0]
[50830101,"Day","Saint Ann's Home, Inc.","St. Ann's Day School",70547.94,391.93,180,null,null,"MA","6002C","Saint Ann's Home School: Saint Ann's Home Day Program","50830101-6002C-Saint Ann's Home School: Saint Ann's Home Day Program","No","50830101-6002C-Saint Ann's Home School: Saint Ann's Home Day Program"," ","50830101",null,0]
[50830102,"Res Ed","Saint Ann's Home, Inc.","St. Ann's Residential",252636.52,692.15,365,null,null,"MA","6002B","Saint Ann's Home School: Saint Ann's Home Residential Program","50830102-6002B-Saint Ann's Home School: Saint Ann's Home Residential Program","No","50830102-6002B-Saint Ann's Home School: Saint Ann's Home Residential Program"," ","50830102",null,0]
[50830103,"Summer","Saint Ann's Home, Inc.","Summer Day",11893.87,330.39,36,null,null,"MA","6002D","Saint Ann's Home School: Saint Ann's Home Summer Program","50830103-6002D-Saint Ann's Home School: Saint Ann's Home Summer Program","Yes","50830103-6002D-Saint Ann's Home School: Saint Ann's Home Summer Program"," ","50830103",null,0]
[50850101,"Day","Schools for Children","Dearborn Academy",111762.9,620.91,180,null,null,"MA","5306B","Dearborn Academy School: Dearborn Academy Day Program","50850101-5306B-Dearborn Academy School: Dearborn Academy Day Program","No","50850101-5306B-Dearborn Academy School: Dearborn Academy Day Program"," ","50850101",null,0]
[50850102,"Summer","Schools for Children","Dearborn Summer",9405.6,313.52,30,null,null,"MA","5306C","Dearborn Academy School: Dearborn Academy Summer Program","50850102-5306C-Dearborn Academy School: Dearborn Academy Summer Program","Yes","50850102-5306C-Dearborn Academy School: Dearborn Academy Summer Program"," ","50850102",null,0]
[50850201,"Day","Schools for Children","Seaport Campus",99139.13,550.77,180,null,null,"MA","5306D","Seaport Academy School: Seaport Campus Day Program","50850201-5306D-Seaport Academy School: Seaport Campus Day Program","No","50850201-5306D-Seaport Academy School: Seaport Campus Day Program"," ","50850201",null,0]
[50860101,"Day","Seven Hills Foundation, Inc.","Groton - Clin Nursery",64411.96,256.62,251,null,null,"MA","5242A","Seven Hills School: Seven Hills at Groton Day Program","50860101-5242A-Seven Hills School: Seven Hills at Groton Day Program","No","50860101-5242A-Seven Hills School: Seven Hills at Groton Day Program"," ","50860101",null,0]
[50860103,"Res Ed","Seven Hills Foundation, Inc.","Stetson School",263968.73,723.2,365,null,null,"MA","6120A","Seven Hills/Stetson School: Seven Hills/Stetson Residential Program","50860103-6120A-Seven Hills/Stetson School: Seven Hills/Stetson Residential Program","No","50860103-6120A-Seven Hills/Stetson School: Seven Hills/Stetson Residential Program"," ","50860103",null,0]
[50880101,"Res Ed","Stevens Children's Home","Stevens Home  Day Program",276321.78000000003,757.05,365,null,null,"MA","6121A","Stevens School: Stevens Residential Program","50880101-6121A-Stevens School: Stevens Residential Program","No","50880101-6121A-Stevens School: Stevens Residential Program"," ","50880101",null,0]
[50880102,"Day","Stevens Children's Home","Stevens Home",102298.58,456.69,224,null,null,"MA","6121B","Stevens School: Stevens Day Program","50880102-6121B-Stevens School: Stevens Day Program","No","50880102-6121B-Stevens School: Stevens Day Program"," ","50880102",null,0]
[50890101,"Day","Milestones, Inc.","Milestones Day School",149190.25,690.7,216,null,null,"MA","5360A","Milestones Day School: Milestones Day School Program","50890101-5360A-Milestones Day School: Milestones Day School Program","No","50890101-5360A-Milestones Day School: Milestones Day School Program"," ","50890101",null,0]
[50910101,"Day","Valley West Day School","Valley West Day School",66316.81,368.43,180,null,null,"MA","6185A","Valley West School: Valley West Day Program","50910101-6185A-Valley West School: Valley West Day Program","No","50910101-6185A-Valley West School: Valley West Day Program"," ","50910101",null,0]
[50910102,"Summer","Valley West Day School","Valley West Summer",7904.43,263.48,30,null,null,"MA","6185B","Valley West School: Valley West Day Program","50910102-6185B-Valley West School: Valley West Day Program","Yes","50910102-6185B-Valley West School: Valley West Day Program"," ","50910102",null,0]
[50930101,"Day","Walker, Inc.","Beacon High School",76010.05,383.89,198,null,null,"MA","6245D","Walker Beacon School: Walker Beacon Day Program","50930101-6245D-Walker Beacon School: Walker Beacon Day Program","No","50930101-6245D-Walker Beacon School: Walker Beacon Day Program"," ","50930101",null,0]
[50930201,"Res Ed","Walker, Inc.","Intensive",326341.17,894.09,365,null,null,"MA","6245C","Walker School: Walker School Intensive Residential Program","50930201-6245C-Walker School: Walker School Intensive Residential Program","No","50930201-6245C-Walker School: Walker School Intensive Residential Program"," ","50930201",null,0]
[50930202,"Day","Walker, Inc.","Walker School",117842.16,545.57000000000005,216,null,null,"MA","6245A","Walker School: Walker School Day Program","50930202-6245A-Walker School: Walker School Day Program","No","50930202-6245A-Walker School: Walker School Day Program"," ","50930202",null,0]
[50940101,"Day","Wayside Youth and Family Support Ntwk.","Wayside Academy",86650.63,393.87,220,null,null,"MA","5985C","Wayside Academy School: Wayside Academy Day Program","50940101-5985C-Wayside Academy School: Wayside Academy Day Program","No","50940101-5985C-Wayside Academy School: Wayside Academy Day Program"," ","50940101",null,0]
[50940102,"Res Ed","Wayside Youth and Family Support Ntwk.","Residential Education",327351.63,896.85,365,null,null,"MA","5985A","Wayside Academy School: Wayside Academy Residential Program","50940102-5985A-Wayside Academy School: Wayside Academy Residential Program","No","50940102-5985A-Wayside Academy School: Wayside Academy Residential Program"," ","50940102",null,0]
[50950101,"Res Ed","Whitney Academy, Inc.","Intensive",383256.35,1050.02,365,null,null,"MA","6257B","Whitney Academy School: Whitney Academy Intensive Residential Program","50950101-6257B-Whitney Academy School: Whitney Academy Intensive Residential Program",{"$f":"IF(B196<>\"Summer\", \"No\", \"Yes\")","v":"No"},"50950101-6257B-Whitney Academy School: Whitney Academy Intensive Residential Program"," ",{"$f":"TRIM(A196)","v":"50950101"},null,{"$f":"IF(G196=366,366*F196,0)","v":0}]
[50960101,"Day","Willie Ross School for the Deaf","Day",83170.960000000006,462.06,180,null,null,"MA","5986C","Willie Ross School for the Deaf: Willie Ross School for the Deaf Day Program",{"$f":"CONCATENATE($A197,\"-\",$K197, \"-\",$L197)","v":"50960101-5986C-Willie Ross School for the Deaf: Willie Ross School for the Deaf Day Program"},"No",{"$f":"CONCATENATE($A197,\"-\",$K197, \"-\",$L197)","v":"50960101-5986C-Willie Ross School for the Deaf: Willie Ross School for the Deaf Day Program"}," ","50960101",null,0]
[50970101,"Day","Willow Hill School","Willow Hill School",71062.710000000006,394.79,180,null,null,"MA","6052A","Willow Hill School: Willow Hill Day Program","50970101-6052A-Willow Hill School: Willow Hill Day Program","No","50970101-6052A-Willow Hill School: Willow Hill Day Program"," ","50970101",null,0]
[50990002,"Day","Realizing Children's Strengths","Intensive Day",165561.01,749.14,221,null,null,"MA","5940A","RCS Learning Center School: RCS Intensive Day Program","50990002-5940A-RCS Learning Center School: RCS Intensive Day Program","No","50990002-5940A-RCS Learning Center School: RCS Intensive Day Program"," ","50990002",null,0]
[50990003,"Day","Realizing Children's Strengths","Day Ed.",119978.41,542.89,221,null,null,"MA","5940B","RCS Learning Center School: RCS Day Program","50990003-5940B-RCS Learning Center School: RCS Day Program","No","50990003-5940B-RCS Learning Center School: RCS Day Program"," ","50990003",null,0]
[51000100,"Day","Summit Academy","Sch. for Alt. Learners",65087.71,328.73,198,null,null,"MA","6125A","Summit Academy School for Alternative Learners: Summit Academy - Day Program","51000100-6125A-Summit Academy School for Alternative Learners: Summit Academy - Day Program","No","51000100-6125A-Summit Academy School for Alternative Learners: Summit Academy - Day Program"," ","51000100",null,0]
[51030100,"Day","New England Academy","NE Academy",83554.960000000006,421.99,198,null,null,"MA","5788A","New England Academy School: New England Academy Day School Program","51030100-5788A-New England Academy School: New England Academy Day School Program","No","51030100-5788A-New England Academy School: New England Academy Day School Program"," ","51030100",null,0]
[51040101,"Day","Hopeful Journeys Education Center, Inc.","Hopeful Journeys ",154805.26999999999,716.69,216,null,null,"MA","5415A","Hopeful Journeys Educational Center School: Hopeful Journeys Educational Center Day Program","51040101-5415A-Hopeful Journeys Educational Center School: Hopeful Journeys Educational Center Day Program","No","51040101-5415A-Hopeful Journeys Educational Center School: Hopeful Journeys Educational Center Day Program"," ","51040101",null,0]
[51050001,"Day","Devereux Foundation of Mass., Inc.","CARES",115566.57,535.03,216,null,null,"MA","5530C","Devereux Advanced Behavioral Health School: Devereux CARES (Center for Autism Resources and Education Services)","51050001-5530C-Devereux Advanced Behavioral Health School: Devereux CARES (Center for Autism Resources and Education Services)","No","51050001-5530C-Devereux Advanced Behavioral Health School: Devereux CARES (Center for Autism Resources and Education Services)"," ","51050001",null,0]
[51060101,"Day","Center for School Crisis Inter. & Assess.","Center School",107730.97,489.69,220,null,null,"MA","5227B","The Center School: The Center School Day Program","51060101-5227B-The Center School: The Center School Day Program","No","51060101-5227B-The Center School: The Center School Day Program"," ","51060101",null,0]
[51070001,"Day","Riverside Community Care","Riverside Life Skills",93250.23,412.61,226,null,null,"MA","5969A","Riverside School: Riverside School Day Program","51070001-5969A-Riverside School: Riverside School Day Program","No","51070001-5969A-Riverside School: Riverside School Day Program"," ","51070001",null,0]
[51080001,"Day","Springdale Education Center","Springdale Ed. Center",95145.01,432.48,220,null,null,"MA","5227A","Springdale Education Center: Springdale Education Center Day Program","51080001-5227A-Springdale Education Center: Springdale Education Center Day Program","No","51080001-5227A-Springdale Education Center: Springdale Education Center Day Program"," ","51080001",null,0]
[51090101,"Day","Beverly School for the Deaf","Child. Comm. Ctr.",124631.06,610.94000000000005,204,null,null,"MA","5134C","Children's Center for Communication School: Children's Center for Communication Day Program","51090101-5134C-Children's Center for Communication School: Children's Center for Communication Day Program","No","51090101-5134C-Children's Center for Communication School: Children's Center for Communication Day Program"," ","51090101",null,0]
[51090102,"Day","Beverly School for the Deaf","BSD",101885.24,499.44,204,null,null,"MA","5134B","Children's Center for Communication School: Beverly School for the Deaf Day Program","51090102-5134B-Children's Center for Communication School: Beverly School for the Deaf Day Program","No","51090102-5134B-Children's Center for Communication School: Beverly School for the Deaf Day Program"," ","51090102",null,0]
[51140101,"Day","Merrimac Heights Academy ","Merrimac Heights Academy Day Program",110903.74,616.13,180,null,null,"MA","5734A","Merrimac Heights Academy: Merrimac Heights Academy Day Program","51140101-5734A-Merrimac Heights Academy: Merrimac Heights Academy Day Program","No","51140101-5734A-Merrimac Heights Academy: Merrimac Heights Academy Day Program"," ","51140101",null,0]
[51150101,"Day","Center for Applied Behavioral Instruction","Day Program",119950.17,530.75,226,null,null,"MA","5224A","Center for Applied Behavioral Instruction School: Center for Applied Behavioral Instruction Day Program","51150101-5224A-Center for Applied Behavioral Instruction School: Center for Applied Behavioral Instruction Day Program","No","51150101-5224A-Center for Applied Behavioral Instruction School: Center for Applied Behavioral Instruction Day Program"," ","51150101",null,0]
[51160101,"Day","Branches School of the Berkshire","Branches School ",119735.17,536.92999999999995,223,null,null,"MA","5159A","Branches School of the Berkshires: Branches Day Program","51160101-5159A-Branches School of the Berkshires: Branches Day Program","No","51160101-5159A-Branches School of the Berkshires: Branches Day Program"," ","51160101",null,0]
[51170101,"Day","Your Educational Success "," YES Day Program ",114498.469,511.154,224,null,null,"MA",6280,"Your Educational Success Academy: YES Day Program","51170101-6280-Your Educational Success Academy: YES Day Program","No","51170101-6280-Your Educational Success Academy: YES Day Program"," ","51170101",null,0]
["TBD","Day","Center for School Crisis Inter. & Assess.","Curtis Blake Day School",90084.34,428.97,210,null,null,"MA","5227C","Walker req a new DA code","TBD-5227C-Walker req a new DA code","No","TBD-5227C-Walker req a new DA code"," ","TBD",null,0]
["TBD","Res Ed","The Home for Little Wanderers","Wediko School at The home for Little Wanderers",161870.20000000001,443.48,365,null,null,"NH","5785J","Walker req a new DA code","TBD-5785J-Walker req a new DA code","No","TBD-5785J-Walker req a new DA code"," ","TBD",null,0]

{"sheet":"FY20_sped-prices_combined file","index":3,"n_rows":213,"n_cols":16,"rows_kept":213,"cut":false,"hidden":true,"merged":[]}
[]
[null,"Amego",237131690,"Day","Amego School Day ","2003-06-30","05","5017B",237,{"$f":"IF(I2=365,365+1,I2)","v":237},121717.14,{"$f":"+M2*J2","v":121717.13999999998},513.57443037974679,"2019-09-01",null,{"$f":"VLOOKUP(H2,data!$A$4:$A$316,1,FALSE)","v":{"$error":"#N/A"}}]
[null,"Amego","237131690","Res Ed","Autistic","2003-06-30","03","5017A",365,366,242151.74,242815.16942465754,663.42942465753424,null,null,{"$f":"VLOOKUP(H3,data!$A$4:$A$316,1,FALSE)","v":{"$error":"#N/A"}}]
[null,"American School for the Deaf","060667600","Day","MA Educational/Day",null,null,"5021C",180,180,69160,69160,384.22222222222223,"2019-08-01",null,{"$f":"VLOOKUP(H4,data!$A$4:$A$316,1,FALSE)","v":{"$error":"#N/A"}}]
[null,"American School for the Deaf","060667600","Res Ed","MA Educational/Residential","Exempt ",41090,"5021E",180,180,99797,99797,554.42777777777781,"2019-08-01",null,{"$f":"VLOOKUP(H5,data!$A$4:$A$316,1,FALSE)","v":{"$error":"#N/A"}}]
[null,"American School for the Deaf","060667600","Res Ed","MA PACES 365","Exempt ",41090,"5021G",365,366,489267,490607.45753424655,1340.4575342465753,"2019-08-01",null,{"$f":"VLOOKUP(H6,data!$A$4:$A$316,1,FALSE)","v":{"$error":"#N/A"}}]
[null,"Archway, Inc.","042643209","Res Ed","Archway","2003-06-30","01","5034A",365,366,176769.27,177253.56936986302,484.29936986301368,null,null,{"$f":"VLOOKUP(H7,data!$A$4:$A$316,1,FALSE)","v":{"$error":"#N/A"}}]
[null,"Becket","020433265","Res Ed","Belgrade","Exempt ",41090,"6276C",365,366,224777.95,225393.78000000003,615.83000000000004,null,null,{"$f":"VLOOKUP(H8,data!$A$4:$A$316,1,FALSE)","v":{"$error":"#N/A"}}]
[null,"Becket","020433265","Res Ed","Mount Prospect Academy/ Depot (Subacute)",null,null,"6276M",365,366,307289.84999999998,308131.74,841.89,"2019-11-01",null,{"$f":"VLOOKUP(H9,data!$A$4:$A$316,1,FALSE)","v":{"$error":"#N/A"}}]
[null,"Becket","020433265","Res Ed","Mount Prospect Academy/Campton",null,null,"6276H",365,366,259434.7,260145.48000000004,710.78000000000009,"2019-11-01",null,{"$f":"VLOOKUP(H10,data!$A$4:$A$316,1,FALSE)","v":{"$error":"#N/A"}}]
[null,"Becket","020433266","Res Ed","Mount Prospect Academy/Pike ",null,null,"6276J",365,366,185076.9,185583.96,507.06,"2019-11-01",null,{"$f":"VLOOKUP(H11,data!$A$4:$A$316,1,FALSE)","v":{"$error":"#N/A"}}]
[null,"Becket","020433266","Res Ed","Mount Prospect Academy/Plymouth",null,null,"6276N",365,366,181266.3,181762.91999999998,496.61999999999995,"2019-11-01",null,{"$f":"VLOOKUP(H12,data!$A$4:$A$316,1,FALSE)","v":{"$error":"#N/A"}}]
[null,"Becket","020433265","Res Ed","Mount Prospect Academy/Rummey",null,null,"6276I",365,366,186664.65,187176.06,511.40999999999997,"2019-11-01",null,{"$f":"VLOOKUP(H13,data!$A$4:$A$316,1,FALSE)","v":{"$error":"#N/A"}}]
[null,"Becket","020433267","Res Ed","NESFG Green Meadows Subacute",null,null,"6276S ",365,366,295102.5,295911,808.5,null,null,{"$f":"VLOOKUP(H14,data!$A$4:$A$316,1,FALSE)","v":{"$error":"#N/A"}}]
[null,"Becket","020433267","Res Ed","NESFG Intensive Residential",null,null,"6276T ",365,366,200056.5,200604.6,548.1,null,null,{"$f":"VLOOKUP(H15,data!$A$4:$A$316,1,FALSE)","v":{"$error":"#N/A"}}]
[null,"Becket","020433266","Res Ed","Vermont School for Girls",null,null,"6276P",365,366,141729.5,142117.80000000002,388.3,null,null,{"$f":"VLOOKUP(H16,data!$A$4:$A$316,1,FALSE)","v":{"$error":"#N/A"}}]
[null,"Bellefaire Jewish  Childrens Bureau",340714630,"Res Ed","Monarch School",null,null,"5121A",365,366,202056.03,202609.60816438356,553.57816438356167,null,null,{"$f":"VLOOKUP(H17,data!$A$4:$A$316,1,FALSE)","v":{"$error":"#N/A"}}]
[null,"Bellefaire Jewish  Childrens Bureau",340714630,"Day","Monarch School",null,null,"5121B",180,180,83551.48,83551.48,464.17488888888886,null,null,{"$f":"VLOOKUP(H18,data!$A$4:$A$316,1,FALSE)","v":{"$error":"#N/A"}}]
[null,"Beverly School for the Deaf","042103886","Day","BSD","2003-06-30","8","5134B",204,204,79865.19,79865.19,391.49602941176471,"2019-09-01",null,{"$f":"VLOOKUP(H19,data!$A$4:$A$316,1,FALSE)","v":{"$error":"#N/A"}}]
[null,"Beverly School for the Deaf","042103886","Day","Child. Comm. Ctr.","2003-06-30","7","5134C",204,204,97695.039999999994,97695.039999999994,478.89725490196076,"2019-09-01",null,{"$f":"VLOOKUP(H20,data!$A$4:$A$316,1,FALSE)","v":{"$error":"#N/A"}}]
[null,"Boston College Campus School","042103545","Day","Campus School","2016-05-30",1,"5157A",198,198,93171.76,93171.76,470.5644444444444,null,null,{"$f":"VLOOKUP(H21,data!$A$4:$A$316,1,FALSE)","v":{"$error":"#N/A"}}]
[null,"Boston Higashi School","222803661","Day","Day Education","2003-06-30",1,"5154A",217,217,78736.08,78736.08,362.83907834101382,null,null,{"$f":"VLOOKUP(H22,data!$A$4:$A$316,1,FALSE)","v":{"$error":"#N/A"}}]
[null,"Boston Higashi School","222803661","Res Ed","Residential Ed.","2003-06-30",2,"5154B",304,304,192787.48,192787.48000000004,634.16934210526324,null,null,{"$f":"VLOOKUP(H23,data!$A$4:$A$316,1,FALSE)","v":{"$error":"#N/A"}}]
[null,"Boston Higashi School","222803661","Res Ed","Residential Ed. 365","2003-06-30","3","5154C",365,366,231463.32,232097.46608219176,634.14608219178081,null,null,{"$f":"VLOOKUP(H24,data!$A$4:$A$316,1,FALSE)","v":{"$error":"#N/A"}}]
[null,"Brandon Residential Treatment Center","043015339","Day","Intensive Day","2003-06-30",11,"5160C",216,216,80784.039999999994,80784.039999999994,374.00018518518516,null,null,{"$f":"VLOOKUP(H25,data!$A$4:$A$316,1,FALSE)","v":{"$error":"#N/A"}}]
[null,"Brandon Residential Treatment Center","043015339","Res Ed","Intensive Res.","2003-06-30",12,"5160D",365,366,205455.61,206018.50208219176,562.89208219178079,null,null,{"$f":"VLOOKUP(H26,data!$A$4:$A$316,1,FALSE)","v":{"$error":"#N/A"}}]
[null,"Broccoli Hall, Inc.","043379875","Day","Corwin-Russell","2003-06-30","01","5165A",180,180,39236.949999999997,39236.949999999997,217.98305555555555,"1(FY21)",null,{"$f":"VLOOKUP(H27,data!$A$4:$A$316,1,FALSE)","v":{"$error":"#N/A"}}]
[null,"Camp Sunshine Day","042541474","Day","Reed Academy Day","2011-06-30","2","5947C",216,216,62754.26,62754.26,290.52898148148148,"1 (FY21) ",null,{"$f":"VLOOKUP(H28,data!$A$4:$A$316,1,FALSE)","v":{"$error":"#N/A"}}]
[null,"Cardinal Cushing School & Training Ctr.","042104871","Day","Braintree St. Coletta","2003-06-30",11,"6012A",216,216,89234.39,89234.39,413.12217592592594,"2019-11-01",null,{"$f":"VLOOKUP(H29,data!$A$4:$A$316,1,FALSE)","v":{"$error":"#N/A"}}]
[null,"Cardinal Cushing School & Training Ctr.","042104871","Day","Day/Vocational","2003-06-30",1,"5296A",216,216,95345.67,95345.67,441.41513888888886,"2019-11-01",null,{"$f":"VLOOKUP(H30,data!$A$4:$A$316,1,FALSE)","v":{"$error":"#N/A"}}]
[null,"Cardinal Cushing School & Training Ctr.","042104871","Res Ed","Residential","2003-06-30",9,"5296C",365,366,248977,249659.12876712327,682.12876712328762,"2019-11-01",null,{"$f":"VLOOKUP(H31,data!$A$4:$A$316,1,FALSE)","v":{"$error":"#N/A"}}]
[null,"Center for Applied Behavioral Instruction","272283580  ","Day","Day Program","2003-06-30","1","5224A",226,226,93311.83,93311.83,412.88420353982303,null,null,{"$f":"VLOOKUP(H32,data!$A$4:$A$316,1,FALSE)","v":{"$error":"#N/A"}}]
[null,"Center for School Crisis Inter. & Assess.","043244814","Day","Center School","2003-06-30","01","5227B",220,220,79151.039999999994,79151.039999999994,359.77745454545453,"2 (FY21) ",null,{"$f":"VLOOKUP(H33,data!$A$4:$A$316,1,FALSE)","v":{"$error":"#N/A"}}]
[null,"Children's Study Home",42105939,"Day","Curtis Blake Day School","2003-06-30",null,"5249G",180,180,43563.03,43563.03,242.01683333333332,null,null,{"$f":"VLOOKUP(H34,data!$A$4:$A$316,1,FALSE)","v":{"$error":"#N/A"}}]
[null,"Children's Study Home","042105939","Day","Mill Pond Day Program","2003-06-30","06","5249A",216,216,50907.67,50907.67,235.6836574074074,null,null,{"$f":"VLOOKUP(H35,data!$A$4:$A$316,1,FALSE)","v":{"$error":"#N/A"}}]
[null,"Clarke School for the Deaf","042104008","Day","Clarke School East","2003-06-30",4,"5257D",192,192,56329.38,56329.38,293.38218749999999,"2019-08-01",null,{"$f":"VLOOKUP(H36,data!$A$4:$A$316,1,FALSE)","v":{"$error":"#N/A"}}]
[null,"Clarke School for the Deaf","042104008","Day","Day Education","2003-06-30",2,"5257A",180,180,59990.69,59990.69000000001,333.28161111111115,"2019-08-01",null,{"$f":"VLOOKUP(H37,data!$A$4:$A$316,1,FALSE)","v":{"$error":"#N/A"}}]
[null,"Clarke School for the Deaf","042104008","Day","Preschool","2003-06-30",3,"5257B",198,198,50968.91,50968.909999999996,257.41873737373737,"2019-10-01",null,{"$f":"VLOOKUP(H38,data!$A$4:$A$316,1,FALSE)","v":{"$error":"#N/A"}}]
[null,"Clearway School, Inc.","042576523","Day","766 School","2003-06-30","01","5258A",180,180,49825.43,49825.43,276.80794444444444,"1(FY20)",null,{"$f":"VLOOKUP(H39,data!$A$4:$A$316,1,FALSE)","v":{"$error":"#N/A"}}]
[null,"Clearway School, Inc.",42576523,"Summer","Summer","2003-06-30","02","5258B",24,24,5756.4,5756.4,239.85,null,null,{"$f":"VLOOKUP(H40,data!$A$4:$A$316,1,FALSE)","v":{"$error":"#N/A"}}]
[null,"Community Therapeutic Day School","222725934","Day","Day School","2003-06-30","01","5265A",180,180,79544.5,79544.5,441.91388888888889,null,null,{"$f":"VLOOKUP(H41,data!$A$4:$A$316,1,FALSE)","v":{"$error":"#N/A"}}]
[null,"Community Therapeutic Day School","222725934","Summer","Summer","2003-06-30","02","5265B",20,20,7077.44,7077.4399999999987,353.87199999999996,null,null,{"$f":"VLOOKUP(H42,data!$A$4:$A$316,1,FALSE)","v":{"$error":"#N/A"}}]
[null,"COMPASS, Inc.",42539383,"Day","766 Day School","2003-06-30","01","5110C",180,180,72946.45,72946.45,405.25805555555553,null,null,{"$f":"VLOOKUP(H43,data!$A$4:$A$316,1,FALSE)","v":{"$error":"#N/A"}}]
[null,"COMPASS, Inc.","042539383","Day","Short Term Crisis","2003-06-30",20,"5110B",180,180,30497.14,30497.14,169.42855555555556,null,null,{"$f":"VLOOKUP(H44,data!$A$4:$A$316,1,FALSE)","v":{"$error":"#N/A"}}]
[null,"COMPASS, Inc.","042539383","Summer","Summer","2003-06-30","21","5110A",24,24,7682.63,7682.6299999999992,320.10958333333332,null,null,{"$f":"VLOOKUP(H45,data!$A$4:$A$316,1,FALSE)","v":{"$error":"#N/A"}}]
[null,"Cotting School, Inc.",42104328,"Day","Cotting Day","2003-06-30",1,"5274A",180,180,80442.64,80442.64,446.90355555555556,"1 (FY21) ",null,{"$f":"VLOOKUP(H46,data!$A$4:$A$316,1,FALSE)","v":{"$error":"#N/A"}}]
[null,"Cotting School, Inc.","042104328","Summer","Cotting Summer","2003-06-30",2,"5274B",25,25,7746.24,7746.24,309.84960000000001,null,null,{"$f":"VLOOKUP(H47,data!$A$4:$A$316,1,FALSE)","v":{"$error":"#N/A"}}]
[null,"Cotting School, Inc.","042104328","Residential","Hopehouse","2003-06-30","5","5274E",180,180,97880.18,97880.179999999978,543.77877777777769,null,null,{"$f":"VLOOKUP(H48,data!$A$4:$A$316,1,FALSE)","v":{"$error":"#N/A"}}]
[null,"Crossroads School  Children, Inc.",61660628,"Day","Crossroads School","2003-06-30","2","5272A",226,226,123452.49,123452.48999999999,546.24995575221237,"2019-09-01",null,{"$f":"VLOOKUP(H49,data!$A$4:$A$316,1,FALSE)","v":{"$error":"#N/A"}}]
[null,"Crotched Mountain Rehabilitation","020222168","Day","Day","9",41090,"5276D",220,220,118538.2,118538.19999999998,538.80999999999995,null,null,{"$f":"VLOOKUP(H50,data!$A$4:$A$316,1,FALSE)","v":{"$error":"#N/A"}}]
[null,"Crotched Mountain Rehabilitation","020222168","Res Ed","Residential","7",41090,"5276A",365,366,249407.04,250090.34695890412,683.30695890410959,null,null,{"$f":"VLOOKUP(H51,data!$A$4:$A$316,1,FALSE)","v":{"$error":"#N/A"}}]
[null,"Crystal Springs, Inc.",42764196,"Res Ed","Main Program","2003-06-30","01","5297A",365,366,287285.52,288072.6036164384,787.08361643835622,"2(FY20)",null,{"$f":"VLOOKUP(H52,data!$A$4:$A$316,1,FALSE)","v":{"$error":"#N/A"}}]
[null,"Cutchins Programs for Children & Fam.",42604427,"Day","New Directions","2003-06-30","02","5811A",218,218,77089.48,77089.48,353.62146788990822,"2019-09-01",null,{"$f":"VLOOKUP(H53,data!$A$4:$A$316,1,FALSE)","v":{"$error":"#N/A"}}]
[null,"Devereux -Ackerman Academy","231390618","Res Ed","Residential/Treatment Services ",null,null,"5324D",365,366,127629.55,127979.22,349.67,null,null,{"$f":"VLOOKUP(H54,data!$A$4:$A$316,1,FALSE)","v":{"$error":"#N/A"}}]
[null,"Devereux Foundation of Mass., Inc.","030284103","Day","CARES","2010-06-30","80","5530C",216,216,89901.73,89901.73,416.21171296296296,null,null,{"$f":"VLOOKUP(H55,data!$A$4:$A$316,1,FALSE)","v":{"$error":"#N/A"}}]
[null,"Devereux Foundation of Mass., Inc.","231390618","Day","Day Program","2003-06-30","03","5324P",216,216,60507.06,60507.05999999999,280.12527777777774,null,null,{"$f":"VLOOKUP(H56,data!$A$4:$A$316,1,FALSE)","v":{"$error":"#N/A"}}]
[null,"Devereux Foundation of Mass., Inc.","231390618","Res Ed","West Meadow","2003-06-30","01","5324B",365,366,199664.82,200211.84690410958,547.02690410958905,null,null,{"$f":"VLOOKUP(H57,data!$A$4:$A$316,1,FALSE)","v":{"$error":"#N/A"}}]
[null,"Devereux Glenholme","231390618","Res. Ed","Glenholme","05",41090,"5324E",365,366,138715,139095.04109589042,380.04109589041099,null,null,{"$f":"VLOOKUP(H58,data!$A$4:$A$316,1,FALSE)","v":{"$error":"#N/A"}}]
[null,"Dr. Franklin Perkins School, Inc.","042103834","Day ","Day Program","042103835","07","5887B",218,218,75529.27,75529.27,346.46454128440371,"2019-10-01",null,{"$f":"VLOOKUP(H59,data!$A$4:$A$316,1,FALSE)","v":{"$error":"#N/A"}}]
[null,"Dr. Franklin Perkins School, Inc.",42103834,"Res Ed","Intensive",42103835,"01","5887A",365,366,222478.2,223087.72931506849,609.52931506849313,"2019-10-01",null,{"$f":"VLOOKUP(H60,data!$A$4:$A$316,1,FALSE)","v":{"$error":"#N/A"}}]
[null,"Easter Seals of New Hampshire","020272825","Res Ed","DVPMTL Disabled MSchool - Lancaster - Int.","1a",41152,"5338J",365,366,357375.51,358354.62098630134,979.11098630136985,null,null,{"$f":"VLOOKUP(H61,data!$A$4:$A$316,1,FALSE)","v":{"$error":"#N/A"}}]
[null,"Easter Seals of New Hampshire","020272825","Res Ed","DVPMTL Disabled MSchool - Lancaster - Regular","1a",41152,"5338I",365,366,223577.67,224190.21156164384,612.54156164383562,null,null,{"$f":"VLOOKUP(H62,data!$A$4:$A$316,1,FALSE)","v":{"$error":"#N/A"}}]
[null,"Easter Seals of New Hampshire","020272825","Res Ed","Jolicouer - House III Males Residential - Regular","1c",41152,"5338G",365,366,201489.75,202041.77671232875,552.02671232876708,null,null,{"$f":"VLOOKUP(H63,data!$A$4:$A$316,1,FALSE)","v":{"$error":"#N/A"}}]
[null,"Easter Seals of New Hampshire","020272825","Res Ed","Jolicouer - Krol Residential - Regular","1f",41152,"5338C",365,366,201489.75,202042.97999999998,552.03,null,null,{"$f":"VLOOKUP(H64,data!$A$4:$A$316,1,FALSE)","v":{"$error":"#N/A"}}]
[null,"Easter Seals of New Hampshire","020272825","Res Ed","Jolicouer - Zachery Road Residential - Intensive","1d",41152,"5338F",365,366,353627.85,354596.69342465751,968.84342465753423,null,null,{"$f":"VLOOKUP(H65,data!$A$4:$A$316,1,FALSE)","v":{"$error":"#N/A"}}]
[null,"Easter Seals of New Hampshire","020272825","Res Ed","Jolicouer - Zachery Road Residential - Regular","1d",41152,"5338E",365,{"$f":"IF(I66=365,365+1,I66)","v":366},219830.01,{"$f":"+M66*J66","v":220432.28400000001},602.274,null,null,{"$f":"VLOOKUP(H66,data!$A$4:$A$316,1,FALSE)","v":{"$error":"#N/A"}}]
[null,"Evergreen Center, Inc.","042753469","Res Ed","BDU","2003-06-30","08","5385A",365,366,247815.73,248494.67720547947,678.94720547945212,null,null,{"$f":"VLOOKUP(H67,data!$A$4:$A$316,1,FALSE)","v":{"$error":"#N/A"}}]
[null,"Evergreen Center, Inc.",42753469,"Res Ed","Multi H.","2003-06-30","01","5385B",365,366,224016.28,224630.02323287673,613.74323287671234,null,null,{"$f":"VLOOKUP(H68,data!$A$4:$A$316,1,FALSE)","v":{"$error":"#N/A"}}]
[null,"F. L. Chamberlain School, Inc.","042593666","Res Ed","365 Day Residential","2004-08-31","02","5238F",365,366,172769.55,173242.89123287669,473.3412328767123,"2019-08-01",null,{"$f":"VLOOKUP(H69,data!$A$4:$A$316,1,FALSE)","v":{"$error":"#N/A"}}]
[null,"F. L. Chamberlain School, Inc.","042593666","Day","Day","2004-08-31","04","5238E",216,216,102629.03,102629.03,475.13439814814814,"2019-08-01",null,{"$f":"VLOOKUP(H70,data!$A$4:$A$316,1,FALSE)","v":{"$error":"#N/A"}}]
[null,"Fall River Deaconess, Inc.",null,"Day","Day Program",null,null,"5303B",216,216,59554.140552181561,59554.140552181561,275.71361366750722,"1 (FY21) ",null,{"$f":"VLOOKUP(H71,data!$A$4:$A$316,1,FALSE)","v":{"$error":"#N/A"}}]
[null,"Fall River Deaconess, Inc.",42103766,"Res Ed","Residential Program","2003-06-30","01","5303A",365,366,168958.87,169421.77101369863,462.90101369863015,"1 (FY21) ",null,{"$f":"VLOOKUP(H72,data!$A$4:$A$316,1,FALSE)","v":{"$error":"#N/A"}}]
[null,"Franciscan Children's Hospital","042156082","Day","Kennedy Day","2004-09-30",1,"5582A",200,200,90624.38,90624.38,453.12190000000004,"2(FY21)",null,{"$f":"VLOOKUP(H73,data!$A$4:$A$316,1,FALSE)","v":{"$error":"#N/A"}}]
[null,"Greenwood School","042642601","Day","Greenwood School","Exempt",41089,"5451B",152,152,59426.239999999998,59426.239999999998,390.96210526315787,"2019-10-01",null,{"$f":"VLOOKUP(H74,data!$A$4:$A$316,1,FALSE)","v":{"$error":"#N/A"}}]
[null,"Greenwood School","042642602","Res Ed","Greenwood School","Exempt",41090,"5451A",206,206,78826.240000000005,78826.240000000005,382.6516504854369,"2019-10-01",null,{"$f":"VLOOKUP(H75,data!$A$4:$A$316,1,FALSE)","v":{"$error":"#N/A"}}]
[null,"Groden Center",50369378,"Day","Intensive Day Program fro Res students                ( 33 3/4 hours ) ",null,null,"5454B",219,219,82385,82385,376.18721461187215,null,null,{"$f":"VLOOKUP(H76,data!$A$4:$A$316,1,FALSE)","v":{"$error":"#N/A"}}]
[null,"Groden Center","050369378","Day","Intensive Day Program Non Res Students             (30 hours )","Exempt",41090,"5454E",219,219,73231,73231,334.38812785388126,null,null,{"$f":"VLOOKUP(H77,data!$A$4:$A$316,1,FALSE)","v":{"$error":"#N/A"}}]
[null,"Groden Center",50369378,"Res Ed","Resid. Inten.",null,null,"5454C",365,366,243180,243846.24657534249,666.2465753424658,null,null,{"$f":"VLOOKUP(H78,data!$A$4:$A$316,1,FALSE)","v":{"$error":"#N/A"}}]
[null,"Grove","060775142","Res","Grove School",null,null,"5472A",289,289,144000,144000,498.26989619377161,null,null,{"$f":"VLOOKUP(H79,data!$A$4:$A$316,1,FALSE)","v":{"$error":"#N/A"}}]
[null,"Hillcrest Educational Centers, Inc.","042848510","Res Ed","Autism Spectrum Disorders","2003-06-30","10","5088G",365,366,363272.62,364267.88745205477,995.26745205479449,null,null,{"$f":"VLOOKUP(H80,data!$A$4:$A$316,1,FALSE)","v":{"$error":"#N/A"}}]
[null,"Hillcrest Educational Centers, Inc.","042848510","Res Ed","Hillcrest","2003-06-30","01","5088D",365,366,211580.96,212160.63386301367,579.67386301369856,null,null,{"$f":"VLOOKUP(H81,data!$A$4:$A$316,1,FALSE)","v":{"$error":"#N/A"}}]
[null,"Hillcrest Educational Centers, Inc.","042848510","Day","Housatonic Academy","2003-06-30","06-1","5088F ",216,216,58101.120000000003,58101.120000000003,268.98666666666668,null,null,{"$f":"VLOOKUP(H82,data!$A$4:$A$316,1,FALSE)","v":{"$error":"#N/A"}}]
[null,"Hillcrest Educational Centers, Inc.","042848510","Res Ed","Intensive Tx Unit","2003-06-30","05","5088E",365,366,342617.95,343556.62931506854,938.67931506849322,null,null,{"$f":"VLOOKUP(H83,data!$A$4:$A$316,1,FALSE)","v":{"$error":"#N/A"}}]
[null,"HMS School for Children with Cerebral Palsy",231352327,"Day","Extended school Year",null,null,"5495B",27,27,13770,13770,510,null,null,{"$f":"VLOOKUP(H84,data!$A$4:$A$316,1,FALSE)","v":{"$error":"#N/A"}}]
[null,"HMS School for Children with Cerebral Palsy",231352327,"Res Ed","Residential Program 7 days",null,null,"5495A",260,260,163300,163300,628.07692307692309,null,null,{"$f":"VLOOKUP(H85,data!$A$4:$A$316,1,FALSE)","v":{"$error":"#N/A"}}]
[null,"Home for Little Wanderers","042197449","Day","Clifford Day",null,null,"5785E",180,180,83123.34,83123.34,461.79633333333334,"2019-11-01",null,{"$f":"VLOOKUP(H86,data!$A$4:$A$316,1,FALSE)","v":{"$error":"#N/A"}}]
[null,"Home for Little Wanderers","042197449","Res Ed","Clifford Res",null,null,"5785F",365,366,224365.54,224980.24010958904,614.70010958904106,"2019-11-01",null,{"$f":"VLOOKUP(H87,data!$A$4:$A$316,1,FALSE)","v":{"$error":"#N/A"}}]
[null,"Home for Little Wanderers",42104764,"Day","Southeast Campus Day","2003-06-30",46,"5095B",216,216,73059.66,73059.66,338.23916666666668,"1 (FY21) ",null,{"$f":"VLOOKUP(H88,data!$A$4:$A$316,1,FALSE)","v":{"$error":"#N/A"}}]
[null,"Home for Little Wanderers","042104764","Res Ed","Southeast Campus Res.","2003-06-30",45,"5095A",365,366,219005.35,219605.36465753426,600.01465753424657,"1 (FY21) ",null,{"$f":"VLOOKUP(H89,data!$A$4:$A$316,1,FALSE)","v":{"$error":"#N/A"}}]
[null,"Hopeful Journeys Education Center, Inc.",800457637,"Day","Hopeful Journeys ","2011-06-30","1","5415A",216,216,120426.37,120426.37,557.5294907407407,null,null,{"$f":"VLOOKUP(H90,data!$A$4:$A$316,1,FALSE)","v":{"$error":"#N/A"}}]
[null,"Horace Mann","042300014","Day","Darnell School","2011-06-30","25.0","5488A",221,221,95847.31,95847.31,433.69823529411764,null,null,{"$f":"VLOOKUP(H91,data!$A$4:$A$316,1,FALSE)","v":{"$error":"#N/A"}}]
[null,"Italian Home for Children, Inc.","042103799","Day","Italian Home Day","2003-06-30","03","5534B",220,220,85303.78,85303.78,387.74445454545452,null,null,{"$f":"VLOOKUP(H92,data!$A$4:$A$316,1,FALSE)","v":{"$error":"#N/A"}}]
[null,"Italian Home for Children, Inc.",42103799,"Res Ed","Italian Home Res","2003-06-30","04","5534A",365,366,195840.95,196377.50054794521,536.55054794520549,null,null,{"$f":"VLOOKUP(H93,data!$A$4:$A$316,1,FALSE)","v":{"$error":"#N/A"}}]
[null,"James Farr Academy",42502446,"Day","Farr Academy","2003-06-30",1,"5381A",180,180,90693.97,90693.97,503.85538888888891,null,null,{"$f":"VLOOKUP(H94,data!$A$4:$A$316,1,FALSE)","v":{"$error":"#N/A"}}]
[null,"James Farr Academy",42502446,"Summer","Farr Academy Summer","2003-06-30",4,"5381C",25,25,8306.25,8306.25,332.25,null,null,{"$f":"VLOOKUP(H95,data!$A$4:$A$316,1,FALSE)","v":{"$error":"#N/A"}}]
[null,"Judge Baker Children's Center, Inc.","042103860","Day","Manville","2003-06-30","1","5097A",180,180,93565.92,93565.92,519.81066666666663,null,null,{"$f":"VLOOKUP(H96,data!$A$4:$A$316,1,FALSE)","v":{"$error":"#N/A"}}]
[null,"Judge Baker Children's Center, Inc.",42103860,"Summer","Manville-Summer","2003-06-30",2,"5097B",20,20,6488.8,6488.8,324.44,"1 (FY21) ",null,{"$f":"VLOOKUP(H97,data!$A$4:$A$316,1,FALSE)","v":{"$error":"#N/A"}}]
[null,"Judge Rotenberg Educational Center",42489805,"Res Ed","Judge Rotenberg","2003-06-30","01","5120A",365,366,270556.06,271297.30947945203,741.24947945205474,null,null,{"$f":"VLOOKUP(H98,data!$A$4:$A$316,1,FALSE)","v":{"$error":"#N/A"}}]
[null,"Justice Resource Institute","042737184","Day"," Granite Day Ed","2003-06-30","16","5695A",202,202,66368.88,66368.88,328.55881188118815,null,null,{"$f":"VLOOKUP(H99,data!$A$4:$A$316,1,FALSE)","v":{"$error":"#N/A"}}]
[null,"Justice Resource Institute","042526357","Day","Anchor Academy","2003-06-30","79","5992D",198,198,55589.68,55589.68,280.75595959595961,null,null,{"$f":"VLOOKUP(H100,data!$A$4:$A$316,1,FALSE)","v":{"$error":"#N/A"}}]
[null,"Justice Resource Institute","042526357","Day","Bay Cove","2003-06-30",24,"5112B",220,220,77960.31,77960.31,354.36504545454545,null,null,{"$f":"VLOOKUP(H101,data!$A$4:$A$316,1,FALSE)","v":{"$error":"#N/A"}}]
[null,"Justice Resource Institute","042526357","Res Ed","Berkshire Meadows","2003-06-30","02","5127C",365,366,230886.18,231518.74487671233,632.56487671232878,null,null,{"$f":"VLOOKUP(H102,data!$A$4:$A$316,1,FALSE)","v":{"$error":"#N/A"}}]
[null,"Justice Resource Institute","042526357","Res Ed","Meadowridge","2003-06-30",13,"5997F",365,366,207825.87,208395.25594520546,569.3859452054794,null,null,{"$f":"VLOOKUP(H103,data!$A$4:$A$316,1,FALSE)","v":{"$error":"#N/A"}}]
[null,"Justice Resource Institute","042526357","Day","Victor School","2003-06-30",11,"5127D",216,216,57420.25,57420.250000000007,265.83449074074076,null,null,{"$f":"VLOOKUP(H104,data!$A$4:$A$316,1,FALSE)","v":{"$error":"#N/A"}}]
[null,"Kennedy Donovan Center",42519028,"Day","Developmental Day","2003-06-30","01","5579A",235,235,98572.68,98572.68,419.4582127659574,"1 (FY21) ",null,{"$f":"VLOOKUP(H105,data!$A$4:$A$316,1,FALSE)","v":{"$error":"#N/A"}}]
[null,"Landmark Foundation","042429311","Day","Landmark Day","2003-06-30","01","5607A",180,180,56071.1,56071.100000000006,311.50611111111112,null,null,{"$f":"VLOOKUP(H106,data!$A$4:$A$316,1,FALSE)","v":{"$error":"#N/A"}}]
[null,"Landmark Foundation",42429311,"Res Ed","Landmark Residential","2003-06-30","02","5607B",240,240,74547.34,74547.34,310.61391666666663,null,null,{"$f":"VLOOKUP(H107,data!$A$4:$A$316,1,FALSE)","v":{"$error":"#N/A"}}]
[null,"Latham Centers, Inc.",42467497,"Res Ed","Intensive","2003-06-30",5,"5957C",365,366,243986.17,244654.62526027398,668.45526027397261,null,null,{"$f":"VLOOKUP(H108,data!$A$4:$A$316,1,FALSE)","v":{"$error":"#N/A"}}]
[null,"League School of Boston",46139988,"Day","Day Ed","2003-06-30",1,"5614A",216,216,103280.82,103280.82,478.1519444444445,"2019-08-01",null,{"$f":"VLOOKUP(H109,data!$A$4:$A$316,1,FALSE)","v":{"$error":"#N/A"}}]
[null,"League School of Boston","046139988","Res Ed","Fine House","2003-06-30","2","5614B",365,366,220507.21,221111.33934246577,604.12934246575344,"2019-08-01",null,{"$f":"VLOOKUP(H110,data!$A$4:$A$316,1,FALSE)","v":{"$error":"#N/A"}}]
[null,"Learning Ctr. for the Deaf",237064431,"Day","Day","2003-06-30",1,"5617G",198,198,61811,61811,312.17676767676767,null,null,{"$f":"VLOOKUP(H111,data!$A$4:$A$316,1,FALSE)","v":{"$error":"#N/A"}}]
[null,"Learning Ctr. for the Deaf","237064431","Day","Intensive Day","2003-06-30",2,"5617H",198,198,87221.1,87221.1,440.51060606060611,null,null,{"$f":"VLOOKUP(H112,data!$A$4:$A$316,1,FALSE)","v":{"$error":"#N/A"}}]
[null,"Learning Ctr. for the Deaf","237064431","Res Ed","Residential","2003-06-30",3,"5617I",198,198,113135.17,113135.16999999998,571.38974747474742,null,null,{"$f":"VLOOKUP(H113,data!$A$4:$A$316,1,FALSE)","v":{"$error":"#N/A"}}]
[null,"Learning Ctr. for the Deaf","237064431","Res Ed","Walden","2003-06-30","4","5617B",365,366,342737.69,343676.69736986299,939.00736986301365,null,null,{"$f":"VLOOKUP(H114,data!$A$4:$A$316,1,FALSE)","v":{"$error":"#N/A"}}]
[null,"Learning Skills Academy, Inc.",222580920,"Day","Learning Skills Academy","Exempt",41090,"5625A",180,180,49856.4,49856.4,276.98,null,null,{"$f":"VLOOKUP(H115,data!$A$4:$A$316,1,FALSE)","v":{"$error":"#N/A"}}]
[null,"Learning Skills Academy, Inc.",222580920,"Day","Summer","Exempt",41090,"5625B",16,16,2176.64,2176.64,136.04,null,null,{"$f":"VLOOKUP(H116,data!$A$4:$A$316,1,FALSE)","v":{"$error":"#N/A"}}]
[null,"Lifespan School Solutions/Bradley Schools",464910847,"Day"," Intensive Rate","Exempt ",41182,"5341E",215,215,64500,64500,300,null,null,{"$f":"VLOOKUP(H117,data!$A$4:$A$316,1,FALSE)","v":{"$error":"#N/A"}}]
[null,"Lifespan School Solutions/Bradley Schools",464910847,"Day"," Intensive Rate","Exempt ",41182,"5341D",215,215,64500,64500,300,null,null,{"$f":"VLOOKUP(H118,data!$A$4:$A$316,1,FALSE)","v":{"$error":"#N/A"}}]
[null,"Lifespan School Solutions/Bradley Schools",464910847,"Day","Bradley School North, Intensive",null,null,"5341S",215,215,64500,64500,300,null,null,{"$f":"VLOOKUP(H119,data!$A$4:$A$316,1,FALSE)","v":{"$error":"#N/A"}}]
[null,"Lifespan School Solutions/Bradley Schools",464910847,"Day","Bradley School North, Standard",null,null,"5341T",215,215,54395,54395,253,null,null,{"$f":"VLOOKUP(H120,data!$A$4:$A$316,1,FALSE)","v":{"$error":"#N/A"}}]
[null,"Lifespan School Solutions/Bradley Schools",464910847,"Day","Clinical Intensive",null,null,"5341N",215,215,71810,71810,334,null,null,{"$f":"VLOOKUP(H121,data!$A$4:$A$316,1,FALSE)","v":{"$error":"#N/A"}}]
[null,"Lifespan School Solutions/Bradley Schools",464910847,"Day","Partnership Standard Rate",null,null,"5341P",215,215,46010,46010,214,null,null,{"$f":"VLOOKUP(H122,data!$A$4:$A$316,1,FALSE)","v":{"$error":"#N/A"}}]
[null,"Lifespan School Solutions/Bradley Schools",464910847,"Day","Standard Rate","Exempt ",41182,"5341B ",215,215,54395,54395,253,null,null,{"$f":"VLOOKUP(H123,data!$A$4:$A$316,1,FALSE)","v":{"$error":"#N/A"}}]
[null,"Lifespan School Solutions/Bradley Schools",464910847,"Day","Standard Rate","Exempt ",41182,"5341J",215,215,54395,54395,253,null,null,{"$f":"VLOOKUP(H124,data!$A$4:$A$316,1,FALSE)","v":{"$error":"#N/A"}}]
[null,"Lighthouse School",42939326,"Day","Comp. Services Prog.","2003-06-30",2,"5498B",180,180,87317.41,87317.41,485.09672222222224,null,null,{"$f":"VLOOKUP(H125,data!$A$4:$A$316,1,FALSE)","v":{"$error":"#N/A"}}]
[null,"Little People's School",237068067,"Day","Learning Prep School","2003-06-30","01","5643A",180,180,55726.46,55726.46,309.59144444444445,null,null,{"$f":"VLOOKUP(H126,data!$A$4:$A$316,1,FALSE)","v":{"$error":"#N/A"}}]
[null,"MAB Community Services","042109859","Res Ed","IVY Street School","2003-06-30",4,"5685B",365,366,245470.13,246142.65090410961,672.52090410958908,"2019-08-01",null,{"$f":"VLOOKUP(H127,data!$A$4:$A$316,1,FALSE)","v":{"$error":"#N/A"}}]
[null,"MAB Community Services","042109859","Day","IVY Street School Day Program","2014-06-30","10","5685C",241,241,113321.60000000001,113321.60000000001,470.21410788381746,"2019-08-01",null,{"$f":"VLOOKUP(H128,data!$A$4:$A$316,1,FALSE)","v":{"$error":"#N/A"}}]
[null,"Margaret Gifford School","042381515","Day","Gifford School","2003-06-30",1,"5440A",180,180,64152.44,64152.44000000001,356.40244444444448,null,null,{"$f":"VLOOKUP(H129,data!$A$4:$A$316,1,FALSE)","v":{"$error":"#N/A"}}]
[null,"Margaret Gifford School","042381515","Summer","Gifford Summer","2003-06-30",2,"5440B",20,{"$f":"IF(I130=365,365+1,I130)","v":20},5925.76,{"$f":"+M130*J130","v":5925.76},296.28800000000001,null,null,{"$f":"VLOOKUP(H130,data!$A$4:$A$316,1,FALSE)","v":{"$error":"#N/A"}}]
[null,"Mass. Found. for Learning Disabilities","043099610","Day","White Oak School","2003-06-30","01","5049A",180,180,47779.82,47779.82,265.44344444444442,null,null,{"$f":"VLOOKUP(H131,data!$A$4:$A$316,1,FALSE)","v":{"$error":"#N/A"}}]
[null,"May Institute","042197449","Day"," Brockton Rehabilitative D","2003-06-30",19,"5706G",235,235,119587.74,119587.74,508.88400000000001,"2(FY21)",null,{"$f":"VLOOKUP(H132,data!$A$4:$A$316,1,FALSE)","v":{"$error":"#N/A"}}]
[null,"May Institute","042197449","Res Ed","Brockton Rehabilitative R","2003-06-30",20,"5706H",365,366,259524.37,260235.39567123287,711.02567123287668,"2(FY21)",null,{"$f":"VLOOKUP(H133,data!$A$4:$A$316,1,FALSE)","v":{"$error":"#N/A"}}]
[null,"May Institute","042197449","Day","Randolph Day","2003-06-30","5","5706E",235,235,119064.3,119064.3,506.65659574468089,null,null,{"$f":"VLOOKUP(H134,data!$A$4:$A$316,1,FALSE)","v":{"$error":"#N/A"}}]
[null,"May Institute","042197449","Res Ed","Randolph Res.","2003-06-30","3","5706B",365,366,247577.39,248255.6842191781,678.29421917808224,null,null,{"$f":"VLOOKUP(H135,data!$A$4:$A$316,1,FALSE)","v":{"$error":"#N/A"}}]
[null,"May Institute","042197449","Day","West Springfield","2003-06-30","17","5706N",222,222,121507.7,121507.69999999998,547.33198198198193,null,null,{"$f":"VLOOKUP(H136,data!$A$4:$A$316,1,FALSE)","v":{"$error":"#N/A"}}]
[null,"McAuley Nazareth Home for Boys","042432430","Res Ed","McAuley Nazareth","2003-06-30","01","5709B",365,366,153107.82,153527.29347945206,419.47347945205479,null,null,{"$f":"VLOOKUP(H137,data!$A$4:$A$316,1,FALSE)","v":{"$error":"#N/A"}}]
[null,"McAuley Nazareth Home for Boys","042432430","Day","Nazareth Day","2003-06-30","03","5709A",216,216,35055.1,35055.1,162.29212962962961,null,null,{"$f":"VLOOKUP(H138,data!$A$4:$A$316,1,FALSE)","v":{"$error":"#N/A"}}]
[null,"McLean Hospital, Inc.","043230035","Day","Arlington-Academy","2004-09-30","01Mc","5036A",198,198,72868.899999999994,72868.899999999994,368.02474747474747,null,null,{"$f":"VLOOKUP(H139,data!$A$4:$A$316,1,FALSE)","v":{"$error":"#N/A"}}]
[null,"McLean Hospital, Inc.","043230035","Day","CNS","2004-09-30","02Mc","5036I",216,216,105844.09,105844.09,490.01893518518517,null,null,{"$f":"VLOOKUP(H140,data!$A$4:$A$316,1,FALSE)","v":{"$error":"#N/A"}}]
[null,"Meeting Street School","050269232","Day","Basic","Exempt",41152,"5730A",220,220,71443,71443,324.7409090909091,null,null,{"$f":"VLOOKUP(H141,data!$A$4:$A$316,1,FALSE)","v":{"$error":"#N/A"}}]
[null,"Meeting Street School","050269233","Day","Standard rate with 1 to 1 ",null,null,"5730C",220,220,128192,128192.00000000001,582.69090909090914,null,null,{"$f":"VLOOKUP(H142,data!$A$4:$A$316,1,FALSE)","v":{"$error":"#N/A"}}]
[null,"Meeting Street School ","042296947","Day","Schwartz Center Day","2003-06-30","03","6054A",221,221,72250.600000000006,72250.600000000006,326.92579185520367,"2019-09-01",null,{"$f":"VLOOKUP(H143,data!$A$4:$A$316,1,FALSE)","v":{"$error":"#N/A"}}]
[null,"Melmark Home, Inc.",236399542,"Day","Melmark Day","2003-06-30","04","5710C",237,237,116888.65,116888.65,493.20105485232062,null,null,{"$f":"VLOOKUP(H144,data!$A$4:$A$316,1,FALSE)","v":{"$error":"#N/A"}}]
[null,"Melmark Home, Inc.","236399542","Res Ed","Melmark N.E.","2003-06-30","01","5710B",365,366,275604.75,276359.83150684932,755.08150684931502,null,null,{"$f":"VLOOKUP(H145,data!$A$4:$A$316,1,FALSE)","v":{"$error":"#N/A"}}]
[null,"Merrimac Heights Academy ",364760914,"Day","Merrimac Heights Academy Day Program","2003-06-30",null,"5734A",180,180,86934.55,86934.55,482.96972222222223,"2019-10-01",null,{"$f":"VLOOKUP(H146,data!$A$4:$A$316,1,FALSE)","v":{"$error":"#N/A"}}]
[null,"Milestones, Inc.","043494340","Day","Milestones Day School","2005-12-31","5","5360A",216,216,97315.96,97315.96,450.53685185185191,"1(FY21)",null,{"$f":"VLOOKUP(H147,data!$A$4:$A$316,1,FALSE)","v":{"$error":"#N/A"}}]
[null,"N. E. Adolescent Research Institute","042883771","Day","N.E.A.R.I.","2003-06-30",1,"5760A",220,220,76645.179999999993,76645.179999999993,348.38718181818177,"2(FY20)",null,{"$f":"VLOOKUP(H148,data!$A$4:$A$316,1,FALSE)","v":{"$error":"#N/A"}}]
[null,"Nashoba Learning Group, Inc.","010672424","Day","Nashoba Learning ","2003-06-30","03","5752A",216,216,111239.18,111239.18000000001,514.99620370370371,null,null,{"$f":"VLOOKUP(H149,data!$A$4:$A$316,1,FALSE)","v":{"$error":"#N/A"}}]
[null,"New England Academy",161748440,"Day","NE Academy","2007-12-31","01","5788A",198,198,64999.21,64999.21,328.27883838383838,null,null,{"$f":"VLOOKUP(H150,data!$A$4:$A$316,1,FALSE)","v":{"$error":"#N/A"}}]
[null,"New England Center for Children","042708762","Day","Intensive Instruction","2003-06-30",13,"5343D",226,226,122098.57,122098.57,540.25915929203541,null,null,{"$f":"VLOOKUP(H151,data!$A$4:$A$316,1,FALSE)","v":{"$error":"#N/A"}}]
[null,"New England Center for Children","042708762","Res Ed","Intermediate","2003-06-30","19","5343E",365,366,327676.61,328574.35413698631,897.74413698630133,null,null,{"$f":"VLOOKUP(H152,data!$A$4:$A$316,1,FALSE)","v":{"$error":"#N/A"}}]
[null,"New England Center for Children","042708762","Res Ed","N.E.C.C. Residen","2003-06-30","2","5343B",365,366,243428.19,244095.11654794519,666.92654794520547,null,null,{"$f":"VLOOKUP(H153,data!$A$4:$A$316,1,FALSE)","v":{"$error":"#N/A"}}]
[null,"New England Center for Children","042708762","Res Ed","N.E.C.C. Severe","2003-06-30","03","5343C",365,366,354244.05,355214.58164383558,970.53164383561636,null,null,{"$f":"VLOOKUP(H154,data!$A$4:$A$316,1,FALSE)","v":{"$error":"#N/A"}}]
[null,"New England Pediatric Nursing Home",42912578,"Day","Pediatric","2004-09-30","02","5113A",251,251,62751.25,62751.25,250.00498007968127,null,null,{"$f":"VLOOKUP(H155,data!$A$4:$A$316,1,FALSE)","v":{"$error":"#N/A"}}]
[null,"Northeast Behavioral Health",42777145,"Day","Solstice Day Program","2003-06-30",22,"6059A",216,216,72503.210000000006,72503.210000000006,335.6630092592593,"2 (FY21) ",null,{"$f":"VLOOKUP(H156,data!$A$4:$A$316,1,FALSE)","v":{"$error":"#N/A"}}]
[null,"Oak Grove School ",null,"Res","Waterfall Canyon",null,null,"5990A",365,366,159520,159957.04109589042,437.04109589041099,"2019-11-01",null,{"$f":"VLOOKUP(H157,data!$A$4:$A$316,1,FALSE)","v":{"$error":"#N/A"}}]
[null,"Pathways",null,"Day","Pathways Strategic Teaching Center",null,null,"5885A",224,224,90000,90000,401.78571428571428,null,null,{"$f":"VLOOKUP(H158,data!$A$4:$A$316,1,FALSE)","v":{"$error":"#N/A"}}]
[null,"Perkins School for the Blind",42103616,"Day","Blind","2003-06-30",1,"5889D",210,210,67063.490000000005,67063.490000000005,319.3499523809524,"4(FY21)",null,{"$f":"VLOOKUP(H159,data!$A$4:$A$316,1,FALSE)","v":{"$error":"#N/A"}}]
[null,"Perkins School for the Blind","042103616","Res Ed","Blind","2003-06-30",2,"5889B",210,210,152109.04999999999,152109.04999999999,724.32880952380947,"4(FY21)",null,{"$f":"VLOOKUP(H160,data!$A$4:$A$316,1,FALSE)","v":{"$error":"#N/A"}}]
[null,"Perkins School for the Blind","042103616","Day","Deaf/Blind/Multi-Impaired","2003-06-30",5,"5889J",210,210,146490.51,146490.51,697.57385714285715,"4(FY21)",null,{"$f":"VLOOKUP(H161,data!$A$4:$A$316,1,FALSE)","v":{"$error":"#N/A"}}]
[null,"Perkins School for the Blind","042103616","Res Ed","Deaf/Blind/Multi-Impaired","2003-06-30",6,"5889H",210,210,292981.03000000003,292981.03000000003,1395.1477619047621,"4(FY21)",null,{"$f":"VLOOKUP(H162,data!$A$4:$A$316,1,FALSE)","v":{"$error":"#N/A"}}]
[null,"Perkins School for the Blind","042103616","Day","Multi-Impaired","2003-06-30",3,"5889K",210,210,119888.75,119888.75,570.89880952380952,"4(FY21)",null,{"$f":"VLOOKUP(H163,data!$A$4:$A$316,1,FALSE)","v":{"$error":"#N/A"}}]
[null,"Perkins School for the Blind","042103616","Res Ed","Multi-Impaired","2003-06-30",4,"5889E",210,210,239404.78,239404.78,1140.0227619047619,"4(FY21)",null,{"$f":"VLOOKUP(H164,data!$A$4:$A$316,1,FALSE)","v":{"$error":"#N/A"}}]
[null,"Perkins School for the Blind","042103616","Day","Severely Impaired","2003-06-30",7,"5889M",210,210,147238.70000000001,147238.70000000001,701.13666666666677,"4(FY21)",null,{"$f":"VLOOKUP(H165,data!$A$4:$A$316,1,FALSE)","v":{"$error":"#N/A"}}]
[null,"Perkins School for the Blind","042103616","Res Ed","Severely Impaired","2003-06-30",8,"5889G",210,210,328196.93,328196.93,1562.8425238095238,"4(FY21)",null,{"$f":"VLOOKUP(H166,data!$A$4:$A$316,1,FALSE)","v":{"$error":"#N/A"}}]
[null,"Professional Ctr. for Handicapped Child.",42800853,"Day","Day Program","2003-06-30","01","5253A",198,198,88762.2,88762.2,448.29393939393935,null,null,{"$f":"VLOOKUP(H167,data!$A$4:$A$316,1,FALSE)","v":{"$error":"#N/A"}}]
[null,"Protestant Guild for Human Services/DBA The Guild for Human Services","042104849","Day","Learning Center Day","2003-06-30",1,"5915A",234,234,140232.41,140232.41,599.28380341880347,"2019-10-01",null,{"$f":"VLOOKUP(H168,data!$A$4:$A$316,1,FALSE)","v":{"$error":"#N/A"}}]
[null,"Protestant Guild for Human Services/DBA The Guild for Human Services","042104849","Res Ed","Learning Center Res","2003-06-30",2,"5915B",365,366,306348.28999999998,307187.60038356163,839.31038356164379,"2019-10-01",null,{"$f":"VLOOKUP(H169,data!$A$4:$A$316,1,FALSE)","v":{"$error":"#N/A"}}]
[null,"R. F. Kennedy Action Corps",42457298,"Day","Exp. With Travel","2003-06-30",42,"5365A",216,216,65609.02,65609.02,303.74546296296296,"1 (FY21) ",null,{"$f":"VLOOKUP(H170,data!$A$4:$A$316,1,FALSE)","v":{"$error":"#N/A"}}]
[null,"R. F. Kennedy Action Corps","042457298","Day","RFK Lancaster Day","2003-06-30","17","6252B",216,216,69214.41,69214.41,320.43708333333336,"1   ( 10/1)",null,{"$f":"VLOOKUP(H171,data!$A$4:$A$316,1,FALSE)","v":{"$error":"#N/A"}}]
[null,"R. F. Kennedy Action Corps","042457298","Res Ed","RFK Lancaster Program","2003-06-30","01","6252A",365,366,195754.6,196290.91397260278,536.3139726027398,null,null,{"$f":"VLOOKUP(H172,data!$A$4:$A$316,1,FALSE)","v":{"$error":"#N/A"}}]
[null,"Realizing Children's Strengths",208511604,"Day","Day Ed.","2008-06-30","02","5940B",221,221,93333.8,93333.8,422.32488687782808,null,null,{"$f":"VLOOKUP(H173,data!$A$4:$A$316,1,FALSE)","v":{"$error":"#N/A"}}]
[null,"Realizing Children's Strengths",208511604,"Day","Intensive Day","2008-06-30","01","5940A",221,221,128793.49,128793.49,582.77597285067873,null,null,{"$f":"VLOOKUP(H174,data!$A$4:$A$316,1,FALSE)","v":{"$error":"#N/A"}}]
[null,"Regional Services Education Center Inc.,","020354301","Day","RSEC Academy -Summer",null,null,"5948B",15,15,2849.55,2849.55,189.97,null,null,{"$f":"VLOOKUP(H175,data!$A$4:$A$316,1,FALSE)","v":{"$error":"#N/A"}}]
[null,"Regional Services Education Center Inc.,","020354301","Day","RSEC Academy-Day",null,null,"5948A",180,180,47736,47736,265.2,null,null,{"$f":"VLOOKUP(H176,data!$A$4:$A$316,1,FALSE)","v":{"$error":"#N/A"}}]
[null,"Riverside Community Care","043097170","Day","Riverside Life Skills","2003-06-30","16","5969A",226,226,63090.2,63090.2,279.16017699115042,"1 (FY21) ",null,{"$f":"VLOOKUP(H177,data!$A$4:$A$316,1,FALSE)","v":{"$error":"#N/A"}}]
[null,"Riverview School",42240919,"Res Ed","Riverview","2003-06-30",1,"5975B",244,244,85162.01,85162.01,349.02463114754096,null,null,{"$f":"VLOOKUP(H178,data!$A$4:$A$316,1,FALSE)","v":{"$error":"#N/A"}}]
[null,"Riverview School","042240919","Day","Riverview Day","2003-06-30","2","5975A",180,180,49398.48,49398.48,274.43600000000004,null,null,{"$f":"VLOOKUP(H179,data!$A$4:$A$316,1,FALSE)","v":{"$error":"#N/A"}}]
[null,"Saint Ann's Home, Inc.",42104866,"Day","St. Ann's Day School","2003-06-30",2,"6002C",180,180,54880.77,54880.770000000004,304.89316666666667,"2019-09-01",null,{"$f":"VLOOKUP(H180,data!$A$4:$A$316,1,FALSE)","v":{"$error":"#N/A"}}]
[null,"Saint Ann's Home, Inc.","042104866","Res Ed","St. Ann's Residential","2003-06-30",1,"6002B",365,366,196531.41,197069.85221917808,538.44221917808215,"2019-09-01",null,{"$f":"VLOOKUP(H181,data!$A$4:$A$316,1,FALSE)","v":{"$error":"#N/A"}}]
[null,"Saint Ann's Home, Inc.","042104866","Summer","Summer Day","2011-06-30","08","6002D",36,36,9252.5,9252.5,257.01388888888891,"2019-09-01",null,{"$f":"VLOOKUP(H182,data!$A$4:$A$316,1,FALSE)","v":{"$error":"#N/A"}}]
[null,"Schools for Children",42730069,"Day","Dearborn Academy","2003-06-30","01","5306B",180,180,86942.778714,86942.778714,483.01543729999997,null,null,{"$f":"VLOOKUP(H183,data!$A$4:$A$316,1,FALSE)","v":{"$error":"#N/A"}}]
[null,"Schools for Children","042730069","Summer","Dearborn Summer","2003-06-30","03","5306C",30,30,5761.71,5761.71,192.05699999999999,null,null,{"$f":"VLOOKUP(H184,data!$A$4:$A$316,1,FALSE)","v":{"$error":"#N/A"}}]
[null,"Schools for Children","042730069","Day","Seaport Campus","2003-06-30","05","5306D",180,180,69940.679999999993,69940.679999999993,388.55933333333331,null,null,{"$f":"VLOOKUP(H185,data!$A$4:$A$316,1,FALSE)","v":{"$error":"#N/A"}}]
[null,"Seven Hills Foundation, Inc.","043293659","Day","Groton - Clin Nursery","2004-06-30","79","5242A",251,251,50107.46,50107.46,199.63131474103585,null,null,{"$f":"VLOOKUP(H186,data!$A$4:$A$316,1,FALSE)","v":{"$error":"#N/A"}}]
[null,"Seven Hills Foundation, Inc.","042631391","RES Ed","Stetson School","2003-06-30","610","6120A",365,366,205346.98,205909.57446575345,562.59446575342474,null,null,{"$f":"VLOOKUP(H187,data!$A$4:$A$316,1,FALSE)","v":{"$error":"#N/A"}}]
[null,"Specialized Education Services, Inc.",273575446,"Day","High Road School of MA.","2003-06-30","1","5177G",180,180,40779.29,40779.29,226.55161111111113,null,null,{"$f":"VLOOKUP(H188,data!$A$4:$A$316,1,FALSE)","v":{"$error":"#N/A"}}]
[null,"Specialized Education Services, Inc.",273575446,"Summer","High Road School of MA.","2003-06-30",null,"5177H",30,30,6385.09,6385.09,212.83633333333333,null,null,{"$f":"VLOOKUP(H189,data!$A$4:$A$316,1,FALSE)","v":{"$error":"#N/A"}}]
[null,"Springdale Education Center","202007062","Day","Springdale Ed. Center","2010-06-30","01","5227A",220,220,74015.360000000001,74015.360000000001,336.43345454545454,null,null,{"$f":"VLOOKUP(H190,data!$A$4:$A$316,1,FALSE)","v":{"$error":"#N/A"}}]
[null,"Stevens Children's Home",42105950,"Day","Stevens Home","2003-06-30","03","6121B",224,224,61936.15,61936.149999999994,276.50066964285713,null,null,{"$f":"VLOOKUP(H191,data!$A$4:$A$316,1,FALSE)","v":{"$error":"#N/A"}}]
[null,"Stevens Children's Home","042105950","Res Ed","Stevens Home  Day Program","2003-06-30","01","6121A",365,366,182465.55,182965.45561643832,499.90561643835611,null,null,{"$f":"VLOOKUP(H192,data!$A$4:$A$316,1,FALSE)","v":{"$error":"#N/A"}}]
[null,"Summit Academy",760845512,"Day","Sch. for Alt. Learners","2010-06-30","01","6125A",198,198,50633.14,50633.14,255.72292929292928,null,null,{"$f":"VLOOKUP(H193,data!$A$4:$A$316,1,FALSE)","v":{"$error":"#N/A"}}]
[null,"The learning Clinic, Inc.","061023016","Day","Day",null,null,"5620B",230,{"$f":"IF(I194=365,365+1,I194)","v":230},74970.8,{"$f":"+M194*J194","v":74970.8},325.96000000000004,"2019-10-01",null,{"$f":"VLOOKUP(H194,data!$A$4:$A$316,1,FALSE)","v":{"$error":"#N/A"}}]
[null,"The learning Clinic, Inc.","061023016","Res","Residential",null,null,"5620E",365,366,147390.75,147794.5602739726,403.81027397260272,"2019-10-01",null,{"$f":"VLOOKUP(H195,data!$A$4:$A$316,1,FALSE)","v":{"$error":"#N/A"}}]
[null,"Valley West Day School","043220344","Day","Valley West Day School","2003-06-30","01","6185A",180,180,51589.279999999999,51589.279999999999,286.60711111111112,null,null,{"$f":"VLOOKUP(H196,data!$A$4:$A$316,1,FALSE)","v":{"$error":"#N/A"}}]
[null,"Valley West Day School","043220344","Summer","Valley West Summer","2003-06-30","02","6185B",30,30,6149.0251350000008,6149.0251350000008,204.96750450000002,null,null,{"$f":"VLOOKUP(H197,data!$A$4:$A$316,1,FALSE)","v":{"$error":"#N/A"}}]
[null,"Walker, Inc.",42171186,"Day","Beacon High School","2003-06-30","07","6245D",198,198,59129.87,59129.87,298.6357070707071,null,null,{"$f":"VLOOKUP(H198,data!$A$4:$A$316,1,FALSE)","v":{"$error":"#N/A"}}]
[null,"Walker, Inc.","042171186","Res Ed","Intensive","2003-06-30","05","6245C",365,366,253867.84,254563.36832876713,695.5283287671233,null,null,{"$f":"VLOOKUP(H199,data!$A$4:$A$316,1,FALSE)","v":{"$error":"#N/A"}}]
[null,"Walker, Inc.","042171186","Day","Walker School","2003-06-30","02","6245A",216,216,91671.96,91671.96,424.40722222222223,null,null,{"$f":"VLOOKUP(H200,data!$A$4:$A$316,1,FALSE)","v":{"$error":"#N/A"}}]
[null,"Wayside Youth and Family Support Ntwk.","042630450","Day","Wayside Academy","2003-06-30","3.0","5985C",220,220,58163.61,58163.609999999993,264.38004545454544,"1 (FY21) ",null,{"$f":"VLOOKUP(H201,data!$A$4:$A$316,1,FALSE)","v":{"$error":"#N/A"}}]
[null,"Wayside Youth and Family Support Ntwk.",42630450,"Res Ed","Wayside BTR","2003-06-30","2.0","5985A",365,366,180881.25,181376.81506849316,495.5650684931507,"1 (FY21) ",null,{"$f":"VLOOKUP(H202,data!$A$4:$A$316,1,FALSE)","v":{"$error":"#N/A"}}]
[null,"Wediko Children's Services","046002778","Res Ed","Winter/Diag.","02",41090,"6124I",365,366,149775,150185.34246575343,410.34246575342468,"2019-08-01",null,{"$f":"VLOOKUP(H203,data!$A$4:$A$316,1,FALSE)","v":{"$error":"#N/A"}}]
[null,"Wellspring Foundation, Inc","061014227","Day","Arch Bridge School Day ",null,null,"6255B",189,189,56647.08,56647.08,299.72000000000003,null,null,{"$f":"VLOOKUP(H204,data!$A$4:$A$316,1,FALSE)","v":{"$error":"#N/A"}}]
[null,"Wellspring Foundation, Inc","061014227","Summer","Arch Bridge School Summer",null,null,"6255A",19,19,4275,4275,225,null,null,{"$f":"VLOOKUP(H205,data!$A$4:$A$316,1,FALSE)","v":{"$error":"#N/A"}}]
[null,"Whitney Academy, Inc.","042939430","Res Ed","Intensive","2003-06-30",2,"6257B",365,366,252097.8,252788.47890410956,690.67890410958898,"1 (FY21) ",null,{"$f":"VLOOKUP(H206,data!$A$4:$A$316,1,FALSE)","v":{"$error":"#N/A"}}]
[null,"Willie Ross School for the Deaf",42430193,"Day","Day","2003-06-30","01","5986C",180,180,59300.29,59300.29,329.44605555555557,null,null,{"$f":"VLOOKUP(H207,data!$A$4:$A$316,1,FALSE)","v":{"$error":"#N/A"}}]
[null,"Willow Hill School",42469268,"Day","Willow Hill School","2003-06-30","1","6052A",180,180,55281.22,55281.22,307.1178888888889,null,null,{"$f":"VLOOKUP(H208,data!$A$4:$A$316,1,FALSE)","v":{"$error":"#N/A"}}]
[null,"Wolf School","050506471","Summer","Summer ",null,null,"6263B",20,20,5800,5800,290,null,null,{"$f":"VLOOKUP(H209,data!$A$4:$A$316,1,FALSE)","v":{"$error":"#N/A"}}]
[null,"Wolf School","050506471","Day","Wolf School","Exempt",41090,"6263A",165,165,57800,57800,350.30303030303031,null,null,{"$f":"VLOOKUP(H210,data!$A$4:$A$316,1,FALSE)","v":{"$error":"#N/A"}}]
[null,"Youth Opportunities Upheld","237112665","Res Ed","Cottage Hill Academy","2003-06-30","34.1","5995C",365,366,195918.32,196455.08252054793,536.7625205479452,null,null,{"$f":"VLOOKUP(H211,data!$A$4:$A$316,1,FALSE)","v":{"$error":"#N/A"}}]
[null,"Youth Opportunities Upheld",237112665,"Day","Educational Prog.","2003-06-30",19,"5995B",216,216,40646.629999999997,40646.629999999997,188.17884259259259,null,null,{"$f":"VLOOKUP(H212,data!$A$4:$A$316,1,FALSE)","v":{"$error":"#N/A"}}]
[null,"Youth Villages-Germaine Lawrence, Inc.",581716970,"Day","Day Education","2003-06-30","11","6006D",216,216,62178.11,62178.11,287.86162037037036,null,null,{"$f":"VLOOKUP(H213,data!$A$4:$A$316,1,FALSE)","v":{"$error":"#N/A"}}]